Workbook

Sheet 1. Info
AB1: Algoma Power Inc.
AB2: Atikokan Hydro Inc.
AB3: Attawapiskat Power Corporation
AB4: Bluewater Power Distribution Corp.
AB5: Brant County Power
AB6: Brantford Power Inc.
AB7: Burlington Hydro Inc.
AB8: Cambridge and North Dumfries Hydro
AB9: Canadian Niagara Power Inc. – Eastern Ontario Power/Fort Erie/Port Colborne
AB10: Centre Wellington Hydro Ltd.
AB11: Chapleau Public Utilities Corporation
AB12: COLLUS Power Corp.
AB13: Cooperative Hydro Embrun Inc.
AB14: E.L.K. Energy Inc.
C15: Utility Name | D15: Festival Hydro Inc. | AB15: Enersource Hydro Mississauga Inc.
AB16: Entegrus Powerlines Inc.
C17: Service Territory | D17: Greater Bruce/Huron | AB17: ENWIN Utilities Ltd.
AB18: Erie Thames Powerlines Corp.
C19: Assigned EB Number | D19: EB-2013-0167 | AB19: Espanola Regional Hydro Distribution Corporation
AB20: Essex Powerlines Corporation
C21: Name and Title | D21: Debbie Reece, CFO | AB21: Festival Hydro Inc.
AB22: Fort Albany Power Corporation
C23: Phone Number | D23: 519-271-4703 x268 | AB23: Fort Frances Power Corporation
AB24: Greater Sudbury Hydro Inc.
C25: Email Address | D25: dreece@festivalhydro.com | AB25: Grimsby Power Inc.
AB26: Guelph Hydro Electric Systems Inc.
C27: Date | D27: 2013-08-23 | AB27: Haldimand County Hydro Inc.
AB28: Halton Hills Hydro Inc.
C29: Last COS Re-based Year | D29: 2010 | AB29: Hearst Power Distribution Co. Ltd.
AB30: Horizon Utilities Corporation
AB31: Hydro 2000 Inc.
A32: Note: Drop-down lists are shaded blue; Input cells are shaded green. | AB32: Hydro Hawkesbury Inc.
AB33: Hydro One Brampton Networks Inc.
AB34: Hydro One Networks Inc.
AB35: Hydro One Remote Communities Inc.
AB36: Hydro Ottawa Limited
AB37: Innisfil Hydro Dist. Systems Limited
AB38: Kashechewan Power Corporation
AB39: Kenora Hydro Electric Corporation Ltd.
AB40: Kingston Hydro Corporation
AB41: Kitchener-Wilmot Hydro Inc.
AB42: Lakefront Utilities Inc.
AB43: Lakeland Power Distribution Ltd.
AB44: London Hydro Inc.
AB45: Midland Power Utility Corporation
AB46: Milton Hydro Distribution Inc.
AB47: Newmarket – Tay Power Distribution Ltd.
AB48: Niagara Peninsula Energy Inc.
AB49: Niagara-on-the-Lake Hydro Inc.
AB50: Norfolk Power Distribution Ltd.
AB51: North Bay Hydro Distribution Limited
AB52: Northern Ontario Wires Inc.
AB53: Oakville Hydro Distribution Inc.
AB54: Orangeville Hydro Limited
AB55: Orillia Power Distribution Corp.
AB56: Oshawa PUC Networks Inc.
AB57: Ottawa River Power Corporation
AB58: Parry Sound Power Corporation
AB59: Peterborough Distribution Inc.
AB60: PowerStream Inc.
AB61: PUC Distribution Inc.
AB62: Renfrew Hydro Inc.
AB63: Rideau St. Lawrence Distribution Inc.
AB64: St. Thomas Energy Inc.
AB65: Sioux Lookout Hydro Inc.
AB66: Thunder Bay Hydro Electricity Distribution
AB67: Tillsonburg Hydro Inc.
AB68: Toronto Hydro-Electric System Limited
AB69: Veridian Connections Inc.
AB70: Wasaga Distribution Inc.
AB71: Waterloo North Hydro Inc.
AB72: Welland Hydro Electric System Corp.
AB73: Wellington North Power Inc.
AB74: West Coast Huron Energy Inc.
AB75: Westario Power Inc.
AB76: Whitby Hydro Electric Corporation
AB77: Woodstock Hydro Services Inc.

Sheet 2. Table of Contents
D20: 1. Info | I20: 7. Current Wholesale
D22: 2. Table of Contents | I22: 8. Forecast Wholesale
D24: 3. Rate Classes | I24: 9. Adj Network to Current WS
D26: 4. RRR Data | I26: 10. Adj Conn. to Current WS
D28: 5. UTRs and Sub-Transmission | I28: 11. Adj Network to Forecast WS
D30: 6. Historical Wholesale | I30: 12. Adj Conn. to Forecast WS
I32: 13. Final 2013 RTS Rates

Sheet 3. Rate Classes
C13: 1. Select the appropriate rate classes that appear on your most recent Board-Approved Tariff of Rates and Charges. 2. Enter the RTS Network and Connection Rate as it appears on the Tariff of Rates and Charges
C22: Rate Class | H22: Unit | J22: RTSR-Network | M22: RTSR-Connection
C24: Residential | H24: kWh | J24: 0.0072 | M24: 0.0051 | Q24: =IF(OR(ISBLANK(C24), ISERROR(FIND("Choose", C24))=FALSE), 0, 1) -> 1 | R24: ="C" & ROW(C24) -> C24 | S24: =IF(OR(C24="General Service Intermediate Rate Class 1,000 To 4,999 kW (formerly General Service > 50 kW Customers)", C24="General Service Intermediate Rate Class 1,000 To 4,999 kW (formerly Large Use Customers)"), "x", "") ->  | AB24: Choose Rate Class
C25: Residential - Hensall | H25: kWh | J25: 0.0072 | M25: 0.0051 | Q25: 1 | R25: C25 | S25: =IF(OR(C25="General Service Intermediate Rate Class 1,000 To 4,999 kW (formerly General Service > 50 kW Customers)", C25="General Service Intermediate Rate Class 1,000 To 4,999 kW (formerly Large Use Customers)"), "x", "") ->  | AB25: Residential
C26: General Service Less Than 50 kW | H26: kWh | J26: 0.0062 | M26: 0.0047 | Q26: 1 | R26: C26 | AB26: Residential Regular
C27: General Service 50 to 4,999 kW | H27: kW | J27: 2.6136 | M27: 1.8682 | Q27: 1 | R27: C27 | AB27: Residential Urban
C28: General Service 50 to 999 kW - Interval Metered | H28: kW | J28: 2.7761 | M28: 2.0481 | Q28: 1 | R28: C28 | AB28: Residential Urban Year-Round
C29: Large Use | H29: kW | J29: 3.0738 | M29: 2.3422 | Q29: 1 | R29: C29 | AB29: Residential Suburban
C30: Unmetered Scattered Load | H30: kWh | J30: 0.0062 | M30: 0.0047 | Q30: 1 | R30: C30 | AB30: Residential Suburban Seasonal
C31: Sentinel Lighting | H31: kW | J31: 1.9812 | M31: 1.4746 | Q31: 1 | R31: C31 | AB31: Residential Suburban Year Round
C32: Street Lighting | H32: kW | J32: 1.9712 | M32: 1.4444 | Q32: 1 | R32: C32 | AB32: Residential - Time of Use
C33: Choose Rate Class | Q33: 0 | R33: C33 | AB33: Residential - Hensall
C34: Choose Rate Class | Q34: 0 | R34: C34 | AB34: Residential – High Density [R1]
C35: Choose Rate Class | Q35: 0 | R35: C35 | AB35: Residential – Normal Density [R2]
C36: Choose Rate Class | Q36: 0 | R36: C36 | AB36: Seasonal Residential – High Density [R3]
C37: Choose Rate Class | Q37: 0 | R37: C37 | AB37: Seasonal Residential – Normal Density [R4]
C38: Choose Rate Class | Q38: 0 | R38: C38 | AB38: Residential – Urban [UR]
C39: Choose Rate Class | Q39: 0 | R39: C39
C40: Choose Rate Class | Q40: 0 | R40: C40 | AB40: General Service Less Than 50 kW
C41: Choose Rate Class | Q41: 0 | R41: C41 | AB41: General Service Less Than 50 kW – Single Phase energy-billed [G1]
C42: Choose Rate Class | Q42: 0 | R42: C42 | AB42: General Service Less Than 50 kW – Three Phase energy-billed [G3]
C43: Choose Rate Class | Q43: 0 | R43: C43 | AB43: General Service Less Than 50 kW – Transmission Class energy-billed [T]
C44: Choose Rate Class | Q44: 0 | R44: C44 | AB44: General Service Less Than 50 kW – Urban energy-billed [UG]
C45: Choose Rate Class | Q45: 0 | R45: C45 | AB45: Westport Sewage Treatment Plant
S46: =COUNTIF(S24:S45, "x") -> 0 | AB46: Small Commercial and USL - per meter
AB47: Small Commercial and USL - per connection
AB48: Farms – Single Phase energy-billed [F1]
AB50: General Service 50 to 499 kW
AB51: General Service 50 to 699 kW
AB52: General Service 50 to 999 kW
AB53: General Service 50 to 999 kW - Interval Metered
AB54: General Service 50 to 1,000 kW
AB55: General Service 50 to 1,000 kW - Interval Meters
AB56: General Service 50 to 1,000 kW - Non Interval Meters
AB57: General Service 50 to 1,499 kW
AB58: General Service 50 to 1,499 kW - Interval Metered
AB59: General Service 50 to 2,499 kW
AB60: General Service 50 to 2,999 kW
AB61: General Service 50 to 2,999 kW - Time of Use
AB62: General Service 50 to 4,999 kW
AB63: General Service 50 to 4,999 kW – Interval Metered
AB64: General Service 50 to 4,999 kW - Time of Use
AB65: General Service 50 to 4,999 kW (CoGeneration)
AB66: General Service 50 to 4,999 kW (formerly Time of Use)
AB67: General Service 500 to 4,999 kW
AB68: General Service 700 to 4,999 kW
AB69: General Service 1,000 to 2,999 kW
AB70: General Service 1,000 to 4,999 kW
AB71: General Service 1,000 to 4,999 kW - Interval Meters
AB72: General Service 1,000 To 4,999 kW (co-generation)
AB73: General Service Greater Than 1,000 kW
AB74: General Service Intermediate Rate Class 1,000 To 4,999 kW (formerly Large Use Customers)
AB75: General Service Intermediate Rate Class 1,000 To 4,999 kW (formerly General Service > 50 kW Customers)
AB76: General Service 1,500 to 4,999 kW
AB77: General Service Equal To Or Greater Than 1,500 kW
AB78: General Service Equal To Or Greater Than 1,500 kW - Interval Metered
AB79: General Service Intermediate 1,000 To 4,999 kW
AB80: General Service 2,500 to 4,999 kW
AB81: General Service 3,000 to 4,999 kW
AB82: General Service 3,000 to 4,999 kW - Interval Metered
AB83: General Service 3,000 to 4,999 kW - Intermediate Use
AB84: General Service 3,000 to 4,999 kW - Time of Use
AB85: Intermediate With Self Generation
AB86: General Service - Commercial
AB87: General Service - Institutional
AB88: Farms – Three Phase energy-billed [F3]
AB90: Large Use
AB91: Large Use - Regular
AB92: Large Use > 5000 kW
AB93: Large Use - 3TS
AB94: Large Use - Ford Annex
AB96: Unmetered Scattered Load
AB98: Sentinel Lighting
AB100: Street Lighting
AB102: Embedded Distributor
AB103: Low Voltage Wheeling Charge Rate
AB105: Stand-By
AB106: Standby Power
AB107: Standby Power – INTERIM APPROVAL
AB108: Standby Power - APPROVED ON AN INTERIM BASIS
AB109: Standby - General Service 50 - 1,000 kW
AB110: Standby Power General Service 50 to 1,499 kW
AB111: Standby - General Service 1,000 - 5,000 kW
AB112: Standby Power General Service 1,500 to 4,999 kW
AB113: Standby - Large Use
AB114: Standby Power General Service Large Use
AB115: Standby Distribution Service

Sheet 4. RRR Data
B13: In the green shaded cells, enter the most recent reported RRR billing determinants. Please ensure that billing determinants are non-loss adjusted.
B24: Rate Class | D24: Unit | F24: Non-Loss Adjusted Metered kWh | G24: Non-Loss Adjusted Metered kW | H24: Applicable Loss Factor | J24: Load Factor | L24: Loss Adjusted Billed kWh | M24: Billed kW
B27: =IF('3. Rate Classes'!Q24=1,'3. Rate Classes'!C24, 0) -> Residential | D27: =IF(OR(VLOOKUP($B27, '3. Rate Classes'!$C$24:$H$45,6,0)=0, ISERROR(VLOOKUP($B27, '3. Rate Classes'!$C$24:$H$45,6,0))), "", VLOOKUP($B27, '3. Rate Classes'!$C$24:$H$45,6,0)) -> kWh | F27: 137145942 | H27: 1.0291 | J27: =IF(ISERROR(F27/(G27*30.4*24)), "", IF(D27="kW", F27/(G27*30.4*24), "")) ->  | L27: =IF(OR(H27=0, OR(ISBLANK(H27), TRIM(H27)="")), F27, F27*H27) -> 141136888.9 | M27: =IF(OR(H27=0, OR(ISBLANK(H27), TRIM(H27)="")), G27, G27) -> 0
B28: =IF('3. Rate Classes'!Q25=1,'3. Rate Classes'!C25, 0) -> Residential - Hensall | D28: =IF(OR(VLOOKUP($B28, '3. Rate Classes'!$C$24:$H$45,6,0)=0, ISERROR(VLOOKUP($B28, '3. Rate Classes'!$C$24:$H$45,6,0))), "", VLOOKUP($B28, '3. Rate Classes'!$C$24:$H$45,6,0)) -> kWh | F28: 3754857 | H28: 1.0291 | L28: =IF(OR(H28=0, OR(ISBLANK(H28), TRIM(H28)="")), F28, F28*H28) -> 3864123.339 | M28: =IF(OR(H28=0, OR(ISBLANK(H28), TRIM(H28)="")), G28, G28) -> 0
B29: =IF('3. Rate Classes'!Q26=1,'3. Rate Classes'!C26, 0) -> General Service Less Than 50 kW | D29: =IF(OR(VLOOKUP($B29, '3. Rate Classes'!$C$24:$H$45,6,0)=0, ISERROR(VLOOKUP($B29, '3. Rate Classes'!$C$24:$H$45,6,0))), "", VLOOKUP($B29, '3. Rate Classes'!$C$24:$H$45,6,0)) -> kWh | F29: 64179621 | H29: 1.0291 | L29: 66047247.97 | M29: 0
B30: =IF('3. Rate Classes'!Q27=1,'3. Rate Classes'!C27, 0) -> General Service 50 to 4,999 kW | D30: =IF(OR(VLOOKUP($B30, '3. Rate Classes'!$C$24:$H$45,6,0)=0, ISERROR(VLOOKUP($B30, '3. Rate Classes'!$C$24:$H$45,6,0))), "", VLOOKUP($B30, '3. Rate Classes'!$C$24:$H$45,6,0)) -> kW | F30: =361832480*0.139 -> 50294714.72 | G30: =946164*0.152 -> 143816.928 | J30: 0.4793221691 | L30: 50294714.72 | M30: 143816.928
B31: =IF('3. Rate Classes'!Q28=1,'3. Rate Classes'!C28, 0) -> General Service 50 to 999 kW - Interval Metered | D31: =IF(OR(VLOOKUP($B31, '3. Rate Classes'!$C$24:$H$45,6,0)=0, ISERROR(VLOOKUP($B31, '3. Rate Classes'!$C$24:$H$45,6,0))), "", VLOOKUP($B31, '3. Rate Classes'!$C$24:$H$45,6,0)) -> kW | F31: =361832480*0.861 -> 311537765.3 | G31: =946164*0.848 -> 802347.072 | J31: 0.5321861928 | L31: 311537765.3 | M31: 802347.072
B32: =IF('3. Rate Classes'!Q29=1,'3. Rate Classes'!C29, 0) -> Large Use | D32: =IF(OR(VLOOKUP($B32, '3. Rate Classes'!$C$24:$H$45,6,0)=0, ISERROR(VLOOKUP($B32, '3. Rate Classes'!$C$24:$H$45,6,0))), "", VLOOKUP($B32, '3. Rate Classes'!$C$24:$H$45,6,0)) -> kW | F32: 22191326 | G32: 34422 | J32: 0.8836134702 | L32: 22191326 | M32: 34422
B33: =IF('3. Rate Classes'!Q30=1,'3. Rate Classes'!C30, 0) -> Unmetered Scattered Load | D33: =IF(OR(VLOOKUP($B33, '3. Rate Classes'!$C$24:$H$45,6,0)=0, ISERROR(VLOOKUP($B33, '3. Rate Classes'!$C$24:$H$45,6,0))), "", VLOOKUP($B33, '3. Rate Classes'!$C$24:$H$45,6,0)) -> kWh | F33: 660967 | H33: 1.0291 | J33: =IF(ISERROR(F33/(G33*30.4*24)), "", IF(D33="kW", F33/(G33*30.4*24), "")) ->  | L33: 680201.1397 | M33: 0
B34: =IF('3. Rate Classes'!Q31=1,'3. Rate Classes'!C31, 0) -> Sentinel Lighting | D34: =IF(OR(VLOOKUP($B34, '3. Rate Classes'!$C$24:$H$45,6,0)=0, ISERROR(VLOOKUP($B34, '3. Rate Classes'!$C$24:$H$45,6,0))), "", VLOOKUP($B34, '3. Rate Classes'!$C$24:$H$45,6,0)) -> kW | F34: 150156 | G34: 356 | J34: 0.5781065198 | L34: 150156 | M34: 356
B35: =IF('3. Rate Classes'!Q32=1,'3. Rate Classes'!C32, 0) -> Street Lighting | D35: =IF(OR(VLOOKUP($B35, '3. Rate Classes'!$C$24:$H$45,6,0)=0, ISERROR(VLOOKUP($B35, '3. Rate Classes'!$C$24:$H$45,6,0))), "", VLOOKUP($B35, '3. Rate Classes'!$C$24:$H$45,6,0)) -> kW | F35: 4559343 | G35: 12017 | J35: 0.520021595 | L35: 4559343 | M35: 12017
B36: =IF('3. Rate Classes'!Q33=1,'3. Rate Classes'!C33, 0) -> 0 | D36: =IF(OR(VLOOKUP($B36, '3. Rate Classes'!$C$24:$H$45,6,0)=0, ISERROR(VLOOKUP($B36, '3. Rate Classes'!$C$24:$H$45,6,0))), "", VLOOKUP($B36, '3. Rate Classes'!$C$24:$H$45,6,0)) ->  | L36: 0 | M36: 0
B37: =IF('3. Rate Classes'!Q34=1,'3. Rate Classes'!C34, 0) -> 0 | D37: =IF(OR(VLOOKUP($B37, '3. Rate Classes'!$C$24:$H$45,6,0)=0, ISERROR(VLOOKUP($B37, '3. Rate Classes'!$C$24:$H$45,6,0))), "", VLOOKUP($B37, '3. Rate Classes'!$C$24:$H$45,6,0)) ->  | L37: 0 | M37: 0
B38: =IF('3. Rate Classes'!Q35=1,'3. Rate Classes'!C35, 0) -> 0 | D38: =IF(OR(VLOOKUP($B38, '3. Rate Classes'!$C$24:$H$45,6,0)=0, ISERROR(VLOOKUP($B38, '3. Rate Classes'!$C$24:$H$45,6,0))), "", VLOOKUP($B38, '3. Rate Classes'!$C$24:$H$45,6,0)) ->  | L38: 0 | M38: 0
B39: =IF('3. Rate Classes'!Q36=1,'3. Rate Classes'!C36, 0) -> 0 | D39: =IF(OR(VLOOKUP($B39, '3. Rate Classes'!$C$24:$H$45,6,0)=0, ISERROR(VLOOKUP($B39, '3. Rate Classes'!$C$24:$H$45,6,0))), "", VLOOKUP($B39, '3. Rate Classes'!$C$24:$H$45,6,0)) ->  | L39: 0 | M39: 0
B40: =IF('3. Rate Classes'!Q37=1,'3. Rate Classes'!C37, 0) -> 0 | D40: =IF(OR(VLOOKUP($B40, '3. Rate Classes'!$C$24:$H$45,6,0)=0, ISERROR(VLOOKUP($B40, '3. Rate Classes'!$C$24:$H$45,6,0))), "", VLOOKUP($B40, '3. Rate Classes'!$C$24:$H$45,6,0)) ->  | L40: 0 | M40: 0
B41: =IF('3. Rate Classes'!Q38=1,'3. Rate Classes'!C38, 0) -> 0 | D41: =IF(OR(VLOOKUP($B41, '3. Rate Classes'!$C$24:$H$45,6,0)=0, ISERROR(VLOOKUP($B41, '3. Rate Classes'!$C$24:$H$45,6,0))), "", VLOOKUP($B41, '3. Rate Classes'!$C$24:$H$45,6,0)) ->  | L41: 0 | M41: 0
B42: =IF('3. Rate Classes'!Q39=1,'3. Rate Classes'!C39, 0) -> 0 | D42: =IF(OR(VLOOKUP($B42, '3. Rate Classes'!$C$24:$H$45,6,0)=0, ISERROR(VLOOKUP($B42, '3. Rate Classes'!$C$24:$H$45,6,0))), "", VLOOKUP($B42, '3. Rate Classes'!$C$24:$H$45,6,0)) ->  | L42: 0 | M42: 0
B43: =IF('3. Rate Classes'!Q40=1,'3. Rate Classes'!C40, 0) -> 0 | D43: =IF(OR(VLOOKUP($B43, '3. Rate Classes'!$C$24:$H$45,6,0)=0, ISERROR(VLOOKUP($B43, '3. Rate Classes'!$C$24:$H$45,6,0))), "", VLOOKUP($B43, '3. Rate Classes'!$C$24:$H$45,6,0)) ->  | L43: 0 | M43: 0
B44: =IF('3. Rate Classes'!Q41=1,'3. Rate Classes'!C41, 0) -> 0 | D44: =IF(OR(VLOOKUP($B44, '3. Rate Classes'!$C$24:$H$45,6,0)=0, ISERROR(VLOOKUP($B44, '3. Rate Classes'!$C$24:$H$45,6,0))), "", VLOOKUP($B44, '3. Rate Classes'!$C$24:$H$45,6,0)) ->  | L44: 0 | M44: 0
B45: =IF('3. Rate Classes'!Q42=1,'3. Rate Classes'!C42, 0) -> 0 | D45: =IF(OR(VLOOKUP($B45, '3. Rate Classes'!$C$24:$H$45,6,0)=0, ISERROR(VLOOKUP($B45, '3. Rate Classes'!$C$24:$H$45,6,0))), "", VLOOKUP($B45, '3. Rate Classes'!$C$24:$H$45,6,0)) ->  | L45: 0 | M45: 0
B46: =IF('3. Rate Classes'!Q43=1,'3. Rate Classes'!C43, 0) -> 0 | D46: =IF(OR(VLOOKUP($B46, '3. Rate Classes'!$C$24:$H$45,6,0)=0, ISERROR(VLOOKUP($B46, '3. Rate Classes'!$C$24:$H$45,6,0))), "", VLOOKUP($B46, '3. Rate Classes'!$C$24:$H$45,6,0)) ->  | L46: 0 | M46: 0
B47: =IF('3. Rate Classes'!Q44=1,'3. Rate Classes'!C44, 0) -> 0 | D47: =IF(OR(VLOOKUP($B47, '3. Rate Classes'!$C$24:$H$45,6,0)=0, ISERROR(VLOOKUP($B47, '3. Rate Classes'!$C$24:$H$45,6,0))), "", VLOOKUP($B47, '3. Rate Classes'!$C$24:$H$45,6,0)) ->  | L47: 0 | M47: 0
B48: =IF('3. Rate Classes'!Q45=1,'3. Rate Classes'!C45, 0) -> 0 | D48: =IF(OR(VLOOKUP($B48, '3. Rate Classes'!$C$24:$H$45,6,0)=0, ISERROR(VLOOKUP($B48, '3. Rate Classes'!$C$24:$H$45,6,0))), "", VLOOKUP($B48, '3. Rate Classes'!$C$24:$H$45,6,0)) ->  | L48: 0 | M48: 0

Sheet 5. UTRs and Sub-Transmission
B18: Uniform Transmission Rates | C18: Unit | E18: Effective January 1, 2013 | G18: Effective January 1, 2014 | I18: Effective January 1, 2015
B20: Rate Description | E20: Rate | G20: Rate | I20: Rate
B22: Network Service Rate | C22: kW | E22: 3.63 | G22: 3.82 | I22: 3.82
B24: Line Connection Service Rate | C24: kW | E24: 0.75 | G24: 0.82 | I24: 0.82
B26: Transformation Connection Service Rate | C26: kW | E26: 1.85 | G26: 1.98 | I26: 1.98
B29: Hydro One Sub-Transmission Rates | C29: Unit | E29: Effective January 1, 2013 | G29: Effective January 1, 2014 | I29: Effective January 1, 2015
B33: Rate Description | E33: Rate | G33: Rate | I33: Rate
B35: Network Service Rate | C35: kW | E35: 3.18 | G35: 3.23 | I35: 3.39
B37: Line Connection Service Rate | C37: kW | E37: 0.7 | G37: 0.65 | I37: 0.68
B39: Transformation Connection Service Rate | C39: kW | E39: 1.63 | G39: 1.62 | I39: 1.68
B41: Both Line and Transformation Connection Service Rate | C41: kW | E41: =E39+E37 -> 2.33 | G41: =G39+G37 -> 2.27 | I41: =I39+I37 -> 2.36
B44: If needed , add extra host here (I) | C44: Unit | E44: Effective January 1, 2013 | G44: Effective January 1, 2014 | I44: Effective January 1, 2015
B48: Rate Description | E48: Rate | G48: Rate | I48: Rate
B50: Network Service Rate | C50: kW
B52: Line Connection Service Rate | C52: kW
B54: Transformation Connection Service Rate | C54: kW
B56: Both Line and Transformation Connection Service Rate | C56: kW | E56: =E54+E52 -> 0 | G56: =G54+G52 -> 0 | I56: =I54+I52 -> 0
B59: If needed , add extra host here (II) | C59: Unit | E59: Effective January 1, 2013 | G59: Effective January 1, 2014 | I59: Effective January 1, 2015
B63: Rate Description | E63: Rate | G63: Rate | I63: Rate
B65: Network Service Rate | C65: kW
B67: Line Connection Service Rate | C67: kW
B69: Transformation Connection Service Rate | C69: kW
B71: Both Line and Transformation Connection Service Rate | C71: kW | E71: =E69+E67 -> 0 | G71: =G69+G67 -> 0 | I71: =I69+I67 -> 0
B75: Hydro One Sub-Transmission Rate Rider 9A | C75: Unit | E75: Effective January 1, 2013 | G75: Effective January 1, 2014 | I75: Effective January 1, 2015
B77: Rate Description | E77: Rate | G77: Rate | I77: Rate
B79: RSVA Transmission network – 4714 – which affects 1584 | C79: kW | E79: 0 | G79: 0.1465 | I79: =+G79 -> 0.1465
B81: RSVA Transmission connection – 4716 – which affects 1586 | C81: kW | E81: 0 | G81: 0.0667 | I81: =+G81 -> 0.0667
B83: RSVA LV – 4750 – which affects 1550 | C83: kW | E83: 0 | G83: 0.0475 | I83: =+G83 -> 0.0475
B85: RARA 1 – 2252 – which affects 1590 | C85: kW | E85: 0 | G85: 0.0419 | I85: =+G85 -> 0.0419
B87: RARA 1 – 2252 – which affects 1590 (2008) | C87: kW | E87: 0 | G87: -0.027 | I87: =+G87 -> -0.027
B89: RARA 1 – 2252 – which affects 1590 (2009) | C89: kW | E89: 0 | G89: -0.0006 | I89: =+G89 -> -0.0006
B91: Hydro One Sub-Transmission Rate Rider 9A | C91: kW | E91: =SUM(E79:E89) -> 0 | G91: =SUM(G79:G89) -> 0.275 | I91: =SUM(I79:I89) -> 0.275
E94: Historical 2012 | G94: Current 2013 | I94: Forecast 2014
B95: Transformer Allowance Credit (if applicable, enter as a negative value) | C95: $

Sheet 6. Historical Wholesale
B21: IESO | D21: Network | H21: Line Connection | L21: Transformation Connection | P21: Total Line
B22: Month | D22: Units Billed | E22: Rate | F22: Amount | H22: Units Billed | I22: Rate | J22: Amount | L22: Units Billed | M22: Rate | N22: Amount | P22: Amount
B24: January | D24: 83603 | E24: ='5. UTRs and Sub-Transmission'!E22 -> 3.63 | F24: =D24*E24 -> 303478.89 | H24: 85972 | I24: ='5. UTRs and Sub-Transmission'!E24 -> 0.75 | J24: =H24*I24 -> 64479 | L24: 85972 | M24: ='5. UTRs and Sub-Transmission'!E26 -> 1.85 | N24: =L24*M24 -> 159048.2 | P24: =J24+N24 -> 223527.2
B25: February | D25: 82218 | E25: =E24 -> 3.63 | F25: =D25*E25 -> 298451.34 | H25: 82457 | I25: =I24 -> 0.75 | J25: =H25*I25 -> 61842.75 | L25: 82457 | M25: =M24 -> 1.85 | N25: =L25*M25 -> 152545.45 | P25: 214388.2
B26: March | D26: 78379 | E26: =E25 -> 3.63 | F26: 284515.77 | H26: 79188 | I26: =I25 -> 0.75 | J26: 59391 | L26: 79188 | M26: =M25 -> 1.85 | N26: 146497.8 | P26: 205888.8
B27: April | D27: 75342 | E27: 3.63 | F27: 273491.46 | H27: 77932 | I27: 0.75 | J27: 58449 | L27: 77932 | M27: 1.85 | N27: 144174.2 | P27: 202623.2
B28: May | D28: 78729 | E28: 3.63 | F28: 285786.27 | H28: 82643 | I28: 0.75 | J28: 61982.25 | L28: 82643 | M28: 1.85 | N28: 152889.55 | P28: 214871.8
B29: June | D29: 90985 | E29: 3.63 | F29: 330275.55 | H29: 92728 | I29: 0.75 | J29: 69546 | L29: 92728 | M29: 1.85 | N29: 171546.8 | P29: 241092.8
B30: July | D30: 94841 | E30: 3.63 | F30: 344272.83 | H30: 97445 | I30: 0.75 | J30: 73083.75 | L30: 97445 | M30: 1.85 | N30: 180273.25 | P30: 253357
B31: August | D31: 90023 | E31: 3.63 | F31: 326783.49 | H31: 92559 | I31: 0.75 | J31: 69419.25 | L31: 92559 | M31: 1.85 | N31: 171234.15 | P31: 240653.4
B32: September | D32: 91796 | E32: 3.63 | F32: 333219.48 | H32: 94942 | I32: 0.75 | J32: 71206.5 | L32: 94942 | M32: 1.85 | N32: 175642.7 | P32: 246849.2
B33: October | D33: 74610 | E33: 3.63 | F33: 270834.3 | H33: 78487 | I33: 0.75 | J33: 58865.25 | L33: 78487 | M33: 1.85 | N33: 145200.95 | P33: 204066.2
B34: November | D34: 81322 | E34: 3.63 | F34: 295198.86 | H34: 84420 | I34: 0.75 | J34: 63315 | L34: 84420 | M34: 1.85 | N34: 156177 | P34: 219492
B35: December | D35: =88846+401-848 -> 88399 | E35: 3.63 | F35: =D35*E35+18 -> 320906.37 | H35: =94336+1491.52-3119.01+1157.5 -> 93866.01 | I35: 0.75 | J35: 70399.5075 | L35: =94336+604.67-1264.46+190.5 -> 93866.71 | M35: 1.85 | N35: =L35*M35-438 -> 173215.4135 | P35: 243614.921
B37: Total | D37: =SUM(D24:D35) -> 1010247 | E37: =IF(D37<>0,F37/D37,0) -> 3.630017817 | F37: =SUM(F24:F35) -> 3667214.61 | H37: =SUM(H24:H35) -> 1042639.01 | I37: =IF(H37<>0,J37/H37,0) -> 0.75 | J37: =SUM(J24:J35) -> 781979.2575 | L37: =SUM(L24:L35) -> 1042639.71 | M37: =IF(L37<>0,N37/L37,0) -> 1.849579912 | N37: =SUM(N24:N35) -> 1928445.464 | P37: =SUM(P24:P35) -> 2710424.721
B39: Hydro One | D39: Network | H39: Line Connection | L39: Transformation Connection | P39: Total Line
B41: Month | D41: Units Billed | E41: Rate | F41: Amount | H41: Units Billed | I41: Rate | J41: Amount | L41: Units Billed | M41: Rate | N41: Amount | P41: Amount
B43: January | D43: 10396 | E43: ='5. UTRs and Sub-Transmission'!E35 -> 3.18 | F43: =D43*E43 -> 33059.28 | H43: 10396 | I43: ='5. UTRs and Sub-Transmission'!E37 -> 0.7 | J43: =H43*I43 -> 7277.2 | L43: 8701 | M43: ='5. UTRs and Sub-Transmission'!E39 -> 1.63 | N43: =L43*M43 -> 14182.63 | P43: =J43+N43 -> 21459.83
B44: February | D44: 9757 | E44: =E43 -> 3.18 | F44: =D44*E44 -> 31027.26 | H44: 9788 | I44: =I43 -> 0.7 | J44: =H44*I44 -> 6851.6 | L44: 8262 | M44: =M43 -> 1.63 | N44: =L44*M44 -> 13467.06 | P44: 20318.66
B45: March | D45: 9373 | E45: =E44 -> 3.18 | F45: 29806.14 | H45: 9422 | I45: =I44 -> 0.7 | J45: 6595.4 | L45: 7989 | M45: =M44 -> 1.63 | N45: 13022.07 | P45: 19617.47
B46: April | D46: 8788.68 | E46: 3.18 | F46: 27948.0024 | H46: 8841 | I46: 0.7 | J46: 6188.7 | L46: 7549.57 | M46: 1.63 | N46: 12305.7991 | P46: 18494.4991
B47: May | D47: 8820.74 | E47: 3.18 | F47: 28049.9532 | H47: 8867.76 | I47: 0.7 | J47: 6207.432 | L47: 7295.67 | M47: 1.63 | N47: 11891.9421 | P47: 18099.3741
B48: June | D48: 7952.87 | E48: 3.18 | F48: 25290.1266 | H48: 7978.23 | I48: 0.7 | J48: 5584.761 | L48: 6790.93 | M48: 1.63 | N48: 11069.2159 | P48: 16653.9769
B49: July | D49: 9775.77 | E49: 3.18 | F49: 31086.9486 | H49: 9775.77 | I49: 0.7 | J49: 6843.039 | L49: 8084.97 | M49: 1.63 | N49: 13178.5011 | P49: 20021.5401
B50: August | D50: 8615.95 | E50: 3.18 | F50: 27398.721 | H50: 8616 | I50: 0.7 | J50: 6031.2 | L50: 6916.49 | M50: 1.63 | N50: 11273.8787 | P50: 17305.0787
B51: September | D51: 8791.9 | E51: 3.18 | F51: 27958.242 | H51: 8791.9 | I51: 0.7 | J51: 6154.33 | L51: 7234.02 | M51: 1.63 | N51: 11791.4526 | P51: 17945.7826
B52: October | D52: 9588.94 | E52: 3.18 | F52: 30492.8292 | H52: 9651.79 | I52: 0.7 | J52: 6756.253 | L52: 8428.64 | M52: 1.63 | N52: 13738.6832 | P52: 20494.9362
B53: November | D53: 9973.72 | E53: 3.18 | F53: 31716.4296 | H53: 10003.51 | I53: 0.7 | J53: 7002.457 | L53: 8422.98 | M53: 1.63 | N53: 13729.4574 | P53: 20731.9144
B54: December | D54: 10885.47 | E54: 3.18 | F54: 34615.7946 | H54: 11008.4 | I54: 0.7 | J54: 7705.88 | L54: 9309.17 | M54: 1.63 | N54: 15173.9471 | P54: 22879.8271
B56: Total | D56: =SUM(D43:D54) -> 112720.04 | E56: =IF(D56<>0,F56/D56,0) -> 3.18 | F56: =SUM(F43:F54) -> 358449.7272 | H56: =SUM(H43:H54) -> 113140.36 | I56: =IF(H56<>0,J56/H56,0) -> 0.7 | J56: =SUM(J43:J54) -> 79198.252 | L56: =SUM(L43:L54) -> 94984.44 | M56: =IF(L56<>0,N56/L56,0) -> 1.63 | N56: =SUM(N43:N54) -> 154824.6372 | P56: =SUM(P43:P54) -> 234022.8892
B58: Add Extra Host Here (I) | D58: Network | H58: Line Connection | L58: Transformation Connection | P58: Total Line
B59: (if needed)
B60: Month | D60: Units Billed | E60: Rate | F60: Amount | H60: Units Billed | I60: Rate | J60: Amount | L60: Units Billed | M60: Rate | N60: Amount | P60: Amount
B62: January | E62: =IF(D62<>0,F62/D62,0) -> 0 | I62: =IF(H62<>0,J62/H62,0) -> 0 | M62: =IF(L62<>0,N62/L62,0) -> 0 | P62: =J62+N62 -> 0
B63: February | E63: 0 | I63: 0 | M63: 0 | P63: 0
B64: March | E64: 0 | I64: 0 | M64: 0 | P64: 0
B65: April | E65: 0 | I65: 0 | M65: 0 | P65: 0
B66: May | E66: 0 | I66: 0 | M66: 0 | P66: 0
B67: June | E67: 0 | I67: 0 | M67: 0 | P67: 0
B68: July | E68: 0 | I68: 0 | M68: 0 | P68: 0
B69: August | E69: 0 | I69: 0 | M69: 0 | P69: 0
B70: September | E70: 0 | I70: 0 | M70: 0 | P70: 0
B71: October | E71: 0 | I71: 0 | M71: 0 | P71: 0
B72: November | E72: 0 | I72: 0 | M72: 0 | P72: 0
B73: December | E73: 0 | I73: 0 | M73: 0 | P73: 0
B75: Total | D75: =SUM(D62:D73) -> 0 | E75: =IF(D75<>0,F75/D75,0) -> 0 | F75: =SUM(F62:F73) -> 0 | H75: =SUM(H62:H73) -> 0 | I75: =IF(H75<>0,J75/H75,0) -> 0 | J75: =SUM(J62:J73) -> 0 | L75: =SUM(L62:L73) -> 0 | M75: =IF(L75<>0,N75/L75,0) -> 0 | N75: =SUM(N62:N73) -> 0 | P75: =SUM(P62:P73) -> 0
B77: Add Extra Host Here (II) | D77: Network | H77: Line Connection | L77: Transformation Connection | P77: Total Line
B78: (if needed)
B79: Month | D79: Units Billed | E79: Rate | F79: Amount | H79: Units Billed | I79: Rate | J79: Amount | L79: Units Billed | M79: Rate | N79: Amount | P79: Amount
B81: January | E81: =IF(D81<>0,F81/D81,0) -> 0 | I81: =IF(H81<>0,J81/H81,0) -> 0 | M81: =IF(L81<>0,N81/L81,0) -> 0 | P81: =J81+N81 -> 0
B82: February | E82: 0 | I82: 0 | M82: 0 | P82: 0
B83: March | E83: 0 | I83: 0 | M83: 0 | P83: 0
B84: April | E84: 0 | I84: 0 | M84: 0 | P84: 0
B85: May | E85: 0 | I85: 0 | M85: 0 | P85: 0
B86: June | E86: 0 | I86: 0 | M86: 0 | P86: 0
B87: July | E87: 0 | I87: 0 | M87: 0 | P87: 0
B88: August | E88: 0 | I88: 0 | M88: 0 | P88: 0
B89: September | E89: 0 | I89: 0 | M89: 0 | P89: 0
B90: October | E90: 0 | I90: 0 | M90: 0 | P90: 0
B91: November | E91: 0 | I91: 0 | M91: 0 | P91: 0
B92: December | E92: 0 | I92: 0 | M92: 0 | P92: 0
B94: Total | D94: =SUM(D81:D92) -> 0 | E94: =IF(D94<>0,F94/D94,0) -> 0 | F94: =SUM(F81:F92) -> 0 | H94: =SUM(H81:H92) -> 0 | I94: =IF(H94<>0,J94/H94,0) -> 0 | J94: =SUM(J81:J92) -> 0 | L94: =SUM(L81:L92) -> 0 | M94: =IF(L94<>0,N94/L94,0) -> 0 | N94: =SUM(N81:N92) -> 0 | P94: =SUM(P81:P92) -> 0
B96: Total | D96: Network | H96: Line Connection | L96: Transformation Connection | P96: Total Line
B98: Month | D98: Units Billed | E98: Rate | F98: Amount | H98: Units Billed | I98: Rate | J98: Amount | L98: Units Billed | M98: Rate | N98: Amount | P98: Amount
B100: January | D100: =D24+D43+D62+D81 -> 93999 | E100: =IF(D100<>0,F100/D100,0) -> 3.580231385 | F100: =F24+F43+F62+F81 -> 336538.17 | H100: =H24+H43+H62+H81 -> 96368 | I100: =IF(H100<>0,J100/H100,0) -> 0.7446060933 | J100: =J24+J43+J62+J81 -> 71756.2 | L100: =L24+L43+L62+L81 -> 94673 | M100: =IF(L100<>0,N100/L100,0) -> 1.829780719 | N100: =N24+N43+N62+N81 -> 173230.83 | P100: =J100+N100 -> 244987.03
B101: February | D101: =D25+D44+D63+D82 -> 91975 | E101: 3.582262571 | F101: =F25+F44+F63+F82 -> 329478.6 | H101: =H25+H44+H63+H82 -> 92245 | I101: 0.7446945634 | J101: =J25+J44+J63+J82 -> 68694.35 | L101: =L25+L44+L63+L82 -> 90719 | M101: 1.829964065 | N101: =N25+N44+N63+N82 -> 166012.51 | P101: 234706.86
B102: March | D102: 87752 | E102: 3.581934429 | F102: 314321.91 | H102: 88610 | I102: 0.7446834443 | J102: 65986.4 | L102: 87177 | M102: 1.829838948 | N102: 159519.87 | P102: 225506.27
B103: April | D103: 84130.68 | E103: 3.582990918 | F103: 301439.4624 | H103: 86773 | I103: 0.7449056734 | J103: 64637.7 | L103: 85481.57 | M103: 1.830570018 | N103: 156479.9991 | P103: 221117.6991
B104: May | D104: 87549.74 | E104: 3.584661967 | F104: 313836.2232 | H104: 91510.76 | I104: 0.7451547993 | J104: 68189.682 | L104: 89938.67 | M104: 1.832153979 | N104: 164781.4921 | P104: 232971.1741
B105: June | D105: 98937.87 | E105: 3.59382789 | F105: 355565.6766 | H105: 100706.23 | I105: 0.7460388598 | J105: 75130.761 | L105: 99518.93 | M105: 1.834987734 | N105: 182616.0159 | P105: 257746.7769
B106: July | D106: 104616.77 | E106: 3.58795037 | F106: 375359.7786 | H106: 107220.77 | I106: 0.745441289 | J106: 79926.789 | L106: 105529.97 | M106: 1.833145135 | N106: 193451.7511 | P106: 273378.5401
B107: August | D107: 98638.95 | E107: 3.59069324 | F107: 354182.211 | H107: 101175 | I107: 0.7457420311 | J107: 75450.45 | L107: 99475.49 | M107: 1.83470349 | N107: 182508.0287 | P107: 257958.4787
B108: September | D108: 100587.9 | E108: 3.590667685 | F108: 361177.722 | H108: 103733.9 | I108: 0.7457622821 | J108: 77360.83 | L108: 102176.02 | M108: 1.834424091 | N108: 187434.1526 | P108: 264794.9826
B109: October | D109: 84198.94 | E109: 3.578752051 | F109: 301327.1292 | H109: 88138.79 | I109: 0.7445246639 | J109: 65621.503 | L109: 86915.64 | M109: 1.828665511 | N109: 158939.6332 | P109: 224561.1362
B110: November | D110: 91295.72 | E110: 3.580839163 | F110: 326915.2896 | H110: 94423.51 | I110: 0.74470285 | J110: 70317.457 | L110: 92842.98 | M110: 1.830040972 | N110: 169906.4574 | P110: 240223.9144
B111: December | D111: 99284.47 | E111: 3.580843657 | F111: 355522.1646 | H111: 104874.41 | I111: 0.7447516272 | J111: 78105.3875 | L111: 103175.88 | M111: 1.825905053 | N111: 188389.3606 | P111: 266494.7481
B113: Total | D113: =SUM(D100:D111) -> 1122967.04 | E113: =IF(D113<>0,F113/D113,0) -> 3.584846388 | F113: =SUM(F100:F111) -> 4025664.337 | H113: =SUM(H100:H111) -> 1155779.37 | I113: =IF(H113<>0,J113/H113,0) -> 0.7451054517 | J113: =SUM(J100:J111) -> 861177.5095 | L113: =SUM(L100:L111) -> 1137624.15 | M113: =IF(L113<>0,N113/L113,0) -> 1.831246375 | N113: =SUM(N100:N111) -> 2083270.101 | P113: =SUM(P100:P111) -> 2944447.61
N115: Transformer Allowance Credit (if applicable) | P115: ='5. UTRs and Sub-Transmission'!E95 -> 0
N117: Total including deduction for Transformer Allowance Credit | P117: =P113+P115 -> 2944447.61

Sheet 7. Current Wholesale
B13: The purpose of this sheet is to calculate the expected billing when current 2013 Uniform Transmission Rates are applied against historical 2012 transmission units.
B20: IESO | D20: Network | H20: Line Connection | L20: Transformation Connection | P20: Total Line
B22: Month | D22: Units Billed | E22: Rate | F22: Amount | H22: Units Billed | I22: Rate | J22: Amount | L22: Units Billed | M22: Rate | N22: Amount | P22: Amount
B24: January | D24: ='6. Historical Wholesale'!D24 -> 83603 | E24: ='5. UTRs and Sub-Transmission'!G22 -> 3.82 | F24: =D24*E24 -> 319363.46 | H24: ='6. Historical Wholesale'!H24 -> 85972 | I24: ='5. UTRs and Sub-Transmission'!G24 -> 0.82 | J24: =H24*I24 -> 70497.04 | L24: ='6. Historical Wholesale'!L24 -> 85972 | M24: ='5. UTRs and Sub-Transmission'!G26 -> 1.98 | N24: =L24*M24 -> 170224.56 | P24: =J24+N24 -> 240721.6
B25: February | D25: ='6. Historical Wholesale'!D25 -> 82218 | E25: =E24 -> 3.82 | F25: =D25*E25 -> 314072.76 | H25: ='6. Historical Wholesale'!H25 -> 82457 | I25: =I24 -> 0.82 | J25: =H25*I25 -> 67614.74 | L25: ='6. Historical Wholesale'!L25 -> 82457 | M25: =M24 -> 1.98 | N25: =L25*M25 -> 163264.86 | P25: 230879.6
B26: March | D26: ='6. Historical Wholesale'!D26 -> 78379 | E26: =E25 -> 3.82 | F26: 299407.78 | H26: ='6. Historical Wholesale'!H26 -> 79188 | I26: =I25 -> 0.82 | J26: 64934.16 | L26: ='6. Historical Wholesale'!L26 -> 79188 | M26: =M25 -> 1.98 | N26: 156792.24 | P26: 221726.4
B27: April | D27: ='6. Historical Wholesale'!D27 -> 75342 | E27: 3.82 | F27: 287806.44 | H27: ='6. Historical Wholesale'!H27 -> 77932 | I27: 0.82 | J27: 63904.24 | L27: ='6. Historical Wholesale'!L27 -> 77932 | M27: 1.98 | N27: 154305.36 | P27: 218209.6
B28: May | D28: ='6. Historical Wholesale'!D28 -> 78729 | E28: 3.82 | F28: 300744.78 | H28: ='6. Historical Wholesale'!H28 -> 82643 | I28: 0.82 | J28: 67767.26 | L28: ='6. Historical Wholesale'!L28 -> 82643 | M28: 1.98 | N28: 163633.14 | P28: 231400.4
B29: June | D29: ='6. Historical Wholesale'!D29 -> 90985 | E29: 3.82 | F29: 347562.7 | H29: ='6. Historical Wholesale'!H29 -> 92728 | I29: 0.82 | J29: 76036.96 | L29: ='6. Historical Wholesale'!L29 -> 92728 | M29: 1.98 | N29: 183601.44 | P29: 259638.4
B30: July | D30: ='6. Historical Wholesale'!D30 -> 94841 | E30: 3.82 | F30: 362292.62 | H30: ='6. Historical Wholesale'!H30 -> 97445 | I30: 0.82 | J30: 79904.9 | L30: ='6. Historical Wholesale'!L30 -> 97445 | M30: 1.98 | N30: 192941.1 | P30: 272846
B31: August | D31: ='6. Historical Wholesale'!D31 -> 90023 | E31: 3.82 | F31: 343887.86 | H31: ='6. Historical Wholesale'!H31 -> 92559 | I31: 0.82 | J31: 75898.38 | L31: ='6. Historical Wholesale'!L31 -> 92559 | M31: 1.98 | N31: 183266.82 | P31: 259165.2
B32: September | D32: ='6. Historical Wholesale'!D32 -> 91796 | E32: 3.82 | F32: 350660.72 | H32: ='6. Historical Wholesale'!H32 -> 94942 | I32: 0.82 | J32: 77852.44 | L32: ='6. Historical Wholesale'!L32 -> 94942 | M32: 1.98 | N32: 187985.16 | P32: 265837.6
B33: October | D33: ='6. Historical Wholesale'!D33 -> 74610 | E33: 3.82 | F33: 285010.2 | H33: ='6. Historical Wholesale'!H33 -> 78487 | I33: 0.82 | J33: 64359.34 | L33: ='6. Historical Wholesale'!L33 -> 78487 | M33: 1.98 | N33: 155404.26 | P33: 219763.6
B34: November | D34: ='6. Historical Wholesale'!D34 -> 81322 | E34: 3.82 | F34: 310650.04 | H34: ='6. Historical Wholesale'!H34 -> 84420 | I34: 0.82 | J34: 69224.4 | L34: ='6. Historical Wholesale'!L34 -> 84420 | M34: 1.98 | N34: 167151.6 | P34: 236376
B35: December | D35: ='6. Historical Wholesale'!D35 -> 88399 | E35: 3.82 | F35: 337684.18 | H35: ='6. Historical Wholesale'!H35 -> 93866.01 | I35: 0.82 | J35: 76970.1282 | L35: ='6. Historical Wholesale'!L35 -> 93866.71 | M35: 1.98 | N35: 185856.0858 | P35: 262826.214
B37: Total | D37: =SUM(D24:D35) -> 1010247 | E37: =IF(D37<>0,F37/D37,0) -> 3.82 | F37: =SUM(F24:F35) -> 3859143.54 | H37: =SUM(H24:H35) -> 1042639.01 | I37: =IF(H37<>0,J37/H37,0) -> 0.82 | J37: =SUM(J24:J35) -> 854963.9882 | L37: =SUM(L24:L35) -> 1042639.71 | M37: =IF(L37<>0,N37/L37,0) -> 1.98 | N37: =SUM(N24:N35) -> 2064426.626 | P37: =SUM(P24:P35) -> 2919390.614
B39: Hydro One | D39: Network | H39: Line Connection | L39: Transformation Connection | P39: Total Line
B41: Month | D41: Units Billed | E41: Rate | F41: Amount | H41: Units Billed | I41: Rate | J41: Amount | L41: Units Billed | M41: Rate | N41: Amount | P41: Amount
B43: January | D43: ='6. Historical Wholesale'!D43 -> 10396 | E43: ='5. UTRs and Sub-Transmission'!G35+'5. UTRs and Sub-Transmission'!G79 -> 3.3765 | F43: =D43*E43 -> 35102.094 | H43: ='6. Historical Wholesale'!H43 -> 10396 | I43: ='5. UTRs and Sub-Transmission'!G37+'5. UTRs and Sub-Transmission'!G81 -> 0.7167 | J43: =H43*I43 -> 7450.8132 | L43: ='6. Historical Wholesale'!L43 -> 8701 | M43: ='5. UTRs and Sub-Transmission'!G39 -> 1.62 | N43: =L43*M43 -> 14095.62 | P43: =J43+N43 -> 21546.4332
B44: February | D44: ='6. Historical Wholesale'!D44 -> 9757 | E44: =E43 -> 3.3765 | F44: =D44*E44 -> 32944.5105 | H44: ='6. Historical Wholesale'!H44 -> 9788 | I44: =I43 -> 0.7167 | J44: =H44*I44 -> 7015.0596 | L44: ='6. Historical Wholesale'!L44 -> 8262 | M44: =M43 -> 1.62 | N44: =L44*M44 -> 13384.44 | P44: 20399.4996
B45: March | D45: ='6. Historical Wholesale'!D45 -> 9373 | E45: =E44 -> 3.3765 | F45: 31647.9345 | H45: ='6. Historical Wholesale'!H45 -> 9422 | I45: =I44 -> 0.7167 | J45: 6752.7474 | L45: ='6. Historical Wholesale'!L45 -> 7989 | M45: =M44 -> 1.62 | N45: 12942.18 | P45: 19694.9274
B46: April | D46: ='6. Historical Wholesale'!D46 -> 8788.68 | E46: 3.3765 | F46: 29674.97802 | H46: ='6. Historical Wholesale'!H46 -> 8841 | I46: 0.7167 | J46: 6336.3447 | L46: ='6. Historical Wholesale'!L46 -> 7549.57 | M46: =M45 -> 1.62 | N46: 12230.3034 | P46: 18566.6481
B47: May | D47: ='6. Historical Wholesale'!D47 -> 8820.74 | E47: 3.3765 | F47: 29783.22861 | H47: ='6. Historical Wholesale'!H47 -> 8867.76 | I47: 0.7167 | J47: 6355.523592 | L47: ='6. Historical Wholesale'!L47 -> 7295.67 | M47: 1.62 | N47: 11818.9854 | P47: 18174.50899
B48: June | D48: ='6. Historical Wholesale'!D48 -> 7952.87 | E48: 3.3765 | F48: 26852.86556 | H48: ='6. Historical Wholesale'!H48 -> 7978.23 | I48: 0.7167 | J48: 5717.997441 | L48: ='6. Historical Wholesale'!L48 -> 6790.93 | M48: 1.62 | N48: 11001.3066 | P48: 16719.30404
B49: July | D49: ='6. Historical Wholesale'!D49 -> 9775.77 | E49: 3.3765 | F49: 33007.88741 | H49: ='6. Historical Wholesale'!H49 -> 9775.77 | I49: 0.7167 | J49: 7006.294359 | L49: ='6. Historical Wholesale'!L49 -> 8084.97 | M49: 1.62 | N49: 13097.6514 | P49: 20103.94576
B50: August | D50: ='6. Historical Wholesale'!D50 -> 8615.95 | E50: 3.3765 | F50: 29091.75518 | H50: ='6. Historical Wholesale'!H50 -> 8616 | I50: 0.7167 | J50: 6175.0872 | L50: ='6. Historical Wholesale'!L50 -> 6916.49 | M50: 1.62 | N50: 11204.7138 | P50: 17379.801
B51: September | D51: ='6. Historical Wholesale'!D51 -> 8791.9 | E51: 3.3765 | F51: 29685.85035 | H51: ='6. Historical Wholesale'!H51 -> 8791.9 | I51: 0.7167 | J51: 6301.15473 | L51: ='6. Historical Wholesale'!L51 -> 7234.02 | M51: 1.62 | N51: 11719.1124 | P51: 18020.26713
B52: October | D52: ='6. Historical Wholesale'!D52 -> 9588.94 | E52: 3.3765 | F52: 32377.05591 | H52: ='6. Historical Wholesale'!H52 -> 9651.79 | I52: 0.7167 | J52: 6917.437893 | L52: ='6. Historical Wholesale'!L52 -> 8428.64 | M52: 1.62 | N52: 13654.3968 | P52: 20571.83469
B53: November | D53: ='6. Historical Wholesale'!D53 -> 9973.72 | E53: 3.3765 | F53: 33676.26558 | H53: ='6. Historical Wholesale'!H53 -> 10003.51 | I53: 0.7167 | J53: 7169.515617 | L53: ='6. Historical Wholesale'!L53 -> 8422.98 | M53: 1.62 | N53: 13645.2276 | P53: 20814.74322
B54: December | D54: ='6. Historical Wholesale'!D54 -> 10885.47 | E54: 3.3765 | F54: 36754.78945 | H54: ='6. Historical Wholesale'!H54 -> 11008.4 | I54: 0.7167 | J54: 7889.72028 | L54: ='6. Historical Wholesale'!L54 -> 9309.17 | M54: 1.62 | N54: 15080.8554 | P54: 22970.57568
B56: Total | D56: =SUM(D43:D54) -> 112720.04 | E56: =IF(D56<>0,F56/D56,0) -> 3.3765 | F56: =SUM(F43:F54) -> 380599.2151 | H56: =SUM(H43:H54) -> 113140.36 | I56: =IF(H56<>0,J56/H56,0) -> 0.7167 | J56: =SUM(J43:J54) -> 81087.69601 | L56: =SUM(L43:L54) -> 94984.44 | M56: =IF(L56<>0,N56/L56,0) -> 1.62 | N56: =SUM(N43:N54) -> 153874.7928 | P56: =SUM(P43:P54) -> 234962.4888
B58: ='6. Historical Wholesale'!B58 -> Add Extra Host Here (I) | D58: Network | H58: Line Connection | L58: Transformation Connection | P58: Total Line
B60: Month | D60: Units Billed | E60: Rate | F60: Amount | H60: Units Billed | I60: Rate | J60: Amount | L60: Units Billed | M60: Rate | N60: Amount | P60: Amount
B62: January | D62: ='6. Historical Wholesale'!D62 -> 0 | E62: ='5. UTRs and Sub-Transmission'!G50 -> 0 | F62: =D62*E62 -> 0 | H62: ='6. Historical Wholesale'!H62 -> 0 | I62: ='5. UTRs and Sub-Transmission'!G52 -> 0 | J62: =H62*I62 -> 0 | L62: ='6. Historical Wholesale'!L62 -> 0 | M62: ='5. UTRs and Sub-Transmission'!G54 -> 0 | N62: =L62*M62 -> 0 | P62: =J62+N62 -> 0
B63: February | D63: ='6. Historical Wholesale'!D63 -> 0 | E63: =E62 -> 0 | F63: =D63*E63 -> 0 | H63: ='6. Historical Wholesale'!H63 -> 0 | I63: =I62 -> 0 | J63: =H63*I63 -> 0 | L63: ='6. Historical Wholesale'!L63 -> 0 | M63: =M62 -> 0 | N63: =L63*M63 -> 0 | P63: 0
B64: March | D64: ='6. Historical Wholesale'!D64 -> 0 | E64: =E63 -> 0 | F64: 0 | H64: ='6. Historical Wholesale'!H64 -> 0 | I64: =I63 -> 0 | J64: 0 | L64: ='6. Historical Wholesale'!L64 -> 0 | M64: =M63 -> 0 | N64: 0 | P64: 0
B65: April | D65: ='6. Historical Wholesale'!D65 -> 0 | E65: 0 | F65: 0 | H65: ='6. Historical Wholesale'!H65 -> 0 | I65: 0 | J65: 0 | L65: ='6. Historical Wholesale'!L65 -> 0 | M65: =M64 -> 0 | N65: 0 | P65: 0
B66: May | D66: ='6. Historical Wholesale'!D66 -> 0 | E66: 0 | F66: 0 | H66: ='6. Historical Wholesale'!H66 -> 0 | I66: 0 | J66: 0 | L66: ='6. Historical Wholesale'!L66 -> 0 | M66: 0 | N66: 0 | P66: 0
B67: June | D67: ='6. Historical Wholesale'!D67 -> 0 | E67: 0 | F67: 0 | H67: ='6. Historical Wholesale'!H67 -> 0 | I67: 0 | J67: 0 | L67: ='6. Historical Wholesale'!L67 -> 0 | M67: 0 | N67: 0 | P67: 0
B68: July | D68: ='6. Historical Wholesale'!D68 -> 0 | E68: 0 | F68: 0 | H68: ='6. Historical Wholesale'!H68 -> 0 | I68: 0 | J68: 0 | L68: ='6. Historical Wholesale'!L68 -> 0 | M68: 0 | N68: 0 | P68: 0
B69: August | D69: ='6. Historical Wholesale'!D69 -> 0 | E69: 0 | F69: 0 | H69: ='6. Historical Wholesale'!H69 -> 0 | I69: 0 | J69: 0 | L69: ='6. Historical Wholesale'!L69 -> 0 | M69: 0 | N69: 0 | P69: 0
B70: September | D70: ='6. Historical Wholesale'!D70 -> 0 | E70: 0 | F70: 0 | H70: ='6. Historical Wholesale'!H70 -> 0 | I70: 0 | J70: 0 | L70: ='6. Historical Wholesale'!L70 -> 0 | M70: 0 | N70: 0 | P70: 0
B71: October | D71: ='6. Historical Wholesale'!D71 -> 0 | E71: 0 | F71: 0 | H71: ='6. Historical Wholesale'!H71 -> 0 | I71: 0 | J71: 0 | L71: ='6. Historical Wholesale'!L71 -> 0 | M71: 0 | N71: 0 | P71: 0
B72: November | D72: ='6. Historical Wholesale'!D72 -> 0 | E72: 0 | F72: 0 | H72: ='6. Historical Wholesale'!H72 -> 0 | I72: 0 | J72: 0 | L72: ='6. Historical Wholesale'!L72 -> 0 | M72: 0 | N72: 0 | P72: 0
B73: December | D73: ='6. Historical Wholesale'!D73 -> 0 | E73: 0 | F73: 0 | H73: ='6. Historical Wholesale'!H73 -> 0 | I73: 0 | J73: 0 | L73: ='6. Historical Wholesale'!L73 -> 0 | M73: 0 | N73: 0 | P73: 0
B75: Total | D75: =SUM(D62:D73) -> 0 | E75: =IF(D75<>0,F75/D75,0) -> 0 | F75: =SUM(F62:F73) -> 0 | H75: =SUM(H62:H73) -> 0 | I75: =IF(H75<>0,J75/H75,0) -> 0 | J75: =SUM(J62:J73) -> 0 | L75: =SUM(L62:L73) -> 0 | M75: =IF(L75<>0,N75/L75,0) -> 0 | N75: =SUM(N62:N73) -> 0 | P75: =SUM(P62:P73) -> 0
B77: ='6. Historical Wholesale'!B77 -> Add Extra Host Here (II) | D77: Network | H77: Line Connection | L77: Transformation Connection | P77: Total Line
B79: Month | D79: Units Billed | E79: Rate | F79: Amount | H79: Units Billed | I79: Rate | J79: Amount | L79: Units Billed | M79: Rate | N79: Amount | P79: Amount
B81: January | D81: ='6. Historical Wholesale'!D81 -> 0 | E81: ='5. UTRs and Sub-Transmission'!G65 -> 0 | F81: =D81*E81 -> 0 | H81: ='6. Historical Wholesale'!H81 -> 0 | I81: ='5. UTRs and Sub-Transmission'!G67 -> 0 | J81: =H81*I81 -> 0 | L81: ='6. Historical Wholesale'!L81 -> 0 | M81: ='5. UTRs and Sub-Transmission'!G69 -> 0 | N81: =L81*M81 -> 0 | P81: =J81+N81 -> 0
B82: February | D82: ='6. Historical Wholesale'!D82 -> 0 | E82: =E81 -> 0 | F82: =D82*E82 -> 0 | H82: ='6. Historical Wholesale'!H82 -> 0 | I82: =I81 -> 0 | J82: =H82*I82 -> 0 | L82: ='6. Historical Wholesale'!L82 -> 0 | M82: =M81 -> 0 | N82: =L82*M82 -> 0 | P82: 0
B83: March | D83: ='6. Historical Wholesale'!D83 -> 0 | E83: =E82 -> 0 | F83: 0 | H83: ='6. Historical Wholesale'!H83 -> 0 | I83: =I82 -> 0 | J83: 0 | L83: ='6. Historical Wholesale'!L83 -> 0 | M83: =M82 -> 0 | N83: 0 | P83: 0
B84: April | D84: ='6. Historical Wholesale'!D84 -> 0 | E84: 0 | F84: 0 | H84: ='6. Historical Wholesale'!H84 -> 0 | I84: 0 | J84: 0 | L84: ='6. Historical Wholesale'!L84 -> 0 | M84: =M83 -> 0 | N84: 0 | P84: 0
B85: May | D85: ='6. Historical Wholesale'!D85 -> 0 | E85: 0 | F85: 0 | H85: ='6. Historical Wholesale'!H85 -> 0 | I85: 0 | J85: 0 | L85: ='6. Historical Wholesale'!L85 -> 0 | M85: 0 | N85: 0 | P85: 0
B86: June | D86: ='6. Historical Wholesale'!D86 -> 0 | E86: 0 | F86: 0 | H86: ='6. Historical Wholesale'!H86 -> 0 | I86: 0 | J86: 0 | L86: ='6. Historical Wholesale'!L86 -> 0 | M86: 0 | N86: 0 | P86: 0
B87: July | D87: ='6. Historical Wholesale'!D87 -> 0 | E87: 0 | F87: 0 | H87: ='6. Historical Wholesale'!H87 -> 0 | I87: 0 | J87: 0 | L87: ='6. Historical Wholesale'!L87 -> 0 | M87: 0 | N87: 0 | P87: 0
B88: August | D88: ='6. Historical Wholesale'!D88 -> 0 | E88: 0 | F88: 0 | H88: ='6. Historical Wholesale'!H88 -> 0 | I88: 0 | J88: 0 | L88: ='6. Historical Wholesale'!L88 -> 0 | M88: 0 | N88: 0 | P88: 0
B89: September | D89: ='6. Historical Wholesale'!D89 -> 0 | E89: 0 | F89: 0 | H89: ='6. Historical Wholesale'!H89 -> 0 | I89: 0 | J89: 0 | L89: ='6. Historical Wholesale'!L89 -> 0 | M89: 0 | N89: 0 | P89: 0
B90: October | D90: ='6. Historical Wholesale'!D90 -> 0 | E90: 0 | F90: 0 | H90: ='6. Historical Wholesale'!H90 -> 0 | I90: 0 | J90: 0 | L90: ='6. Historical Wholesale'!L90 -> 0 | M90: 0 | N90: 0 | P90: 0
B91: November | D91: ='6. Historical Wholesale'!D91 -> 0 | E91: 0 | F91: 0 | H91: ='6. Historical Wholesale'!H91 -> 0 | I91: 0 | J91: 0 | L91: ='6. Historical Wholesale'!L91 -> 0 | M91: 0 | N91: 0 | P91: 0
B92: December | D92: ='6. Historical Wholesale'!D92 -> 0 | E92: 0 | F92: 0 | H92: ='6. Historical Wholesale'!H92 -> 0 | I92: 0 | J92: 0 | L92: ='6. Historical Wholesale'!L92 -> 0 | M92: 0 | N92: 0 | P92: 0
B94: Total | D94: =SUM(D81:D92) -> 0 | E94: =IF(D94<>0,F94/D94,0) -> 0 | F94: =SUM(F81:F92) -> 0 | H94: =SUM(H81:H92) -> 0 | I94: =IF(H94<>0,J94/H94,0) -> 0 | J94: =SUM(J81:J92) -> 0 | L94: =SUM(L81:L92) -> 0 | M94: =IF(L94<>0,N94/L94,0) -> 0 | N94: =SUM(N81:N92) -> 0 | P94: =SUM(P81:P92) -> 0
B96: Total | D96: Network | H96: Line Connection | L96: Transformation Connection | P96: Total Line
B98: Month | D98: Units Billed | E98: Rate | F98: Amount | H98: Units Billed | I98: Rate | J98: Amount | L98: Units Billed | M98: Rate | N98: Amount | P98: Amount
B100: January | D100: =D24+D43+D62+D81 -> 93999 | E100: =IF(D100<>0,F100/D100,0) -> 3.770950265 | F100: =F24+F43+F62+F81 -> 354465.554 | H100: =H24+H43+H62+H81 -> 96368 | I100: =IF(H100<>0,J100/H100,0) -> 0.8088561888 | J100: =J24+J43+J62+J81 -> 77947.8532 | L100: =L24+L43+L62+L81 -> 94673 | M100: =IF(L100<>0,N100/L100,0) -> 1.946913904 | N100: =N24+N43+N62+N81 -> 184320.18 | P100: =J100+N100 -> 262268.0332
B101: February | D101: =D25+D44+D63+D82 -> 91975 | E101: 3.772952112 | F101: =F25+F44+F63+F82 -> 347017.2705 | H101: =H25+H44+H63+H82 -> 92245 | I101: 0.809038968 | J101: =J25+J44+J63+J82 -> 74629.7996 | L101: =L25+L44+L63+L82 -> 90719 | M101: 1.947213924 | N101: =N25+N44+N63+N82 -> 176649.3 | P101: 251279.0996
B102: March | D102: 87752 | E102: 3.772628709 | F102: 331055.7145 | H102: 88610 | I102: 0.8090159959 | J102: 71686.9074 | L102: 87177 | M102: 1.947009188 | N102: 169734.42 | P102: 241421.3274
B103: April | D103: 84130.68 | E103: 3.773669938 | F103: 317481.418 | H103: 86773 | I103: 0.8094751213 | J103: 70240.5847 | L103: 85481.57 | M103: 1.948205483 | N103: 166535.6634 | P103: 236776.2481
B104: May | D104: 87549.74 | E104: 3.77531685 | F104: 330528.0086 | H104: 91510.76 | I104: 0.8099898153 | J104: 74122.78359 | L104: 89938.67 | M104: 1.95079742 | N104: 175452.1254 | P104: 249574.909
B105: June | D105: 98937.87 | E105: 3.784350376 | F105: 374415.5656 | H105: 100706.23 | I105: 0.8118162843 | J105: 81754.95744 | L105: 99518.93 | M105: 1.955434475 | N105: 194602.7466 | P105: 276357.704
B106: July | D106: 104616.77 | E106: 3.778557753 | F106: 395300.5074 | H106: 107220.77 | I106: 0.8105817031 | J106: 86911.19436 | L106: 105529.97 | M106: 1.952419312 | N106: 206038.7514 | P106: 292949.9458
B107: August | D107: 98638.95 | E107: 3.781261005 | F107: 372979.6152 | H107: 101175 | I107: 0.8112030363 | J107: 82073.4672 | L107: 99475.49 | M107: 1.954969348 | N107: 194471.5338 | P107: 276545.001
B108: September | D108: 100587.9 | E108: 3.781235818 | F108: 380346.5703 | H108: 103733.9 | I108: 0.8112448749 | J108: 84153.59473 | L108: 102176.02 | M108: 1.954512149 | N108: 199704.2724 | P108: 283857.8671
B109: October | D109: 84198.94 | E109: 3.769492299 | F109: 317387.2559 | H109: 88138.79 | I109: 0.8086879556 | J109: 71276.77789 | L109: 86915.64 | M109: 1.945089017 | N109: 169058.6568 | P109: 240335.4347
B110: November | D110: 91295.72 | E110: 3.771549264 | F110: 344326.3056 | H110: 94423.51 | I110: 0.809056088 | J110: 76393.91562 | L110: 92842.98 | M110: 1.947339773 | N110: 180796.8276 | P110: 257190.7432
B111: December | D111: 99284.47 | E111: 3.771375014 | F111: 374438.9695 | H111: 104874.41 | I111: 0.8091568618 | J111: 84859.84848 | L111: 103175.88 | M111: 1.94751856 | N111: 200936.9412 | P111: 285796.7897
B113: Total | D113: =SUM(D100:D111) -> 1122967.04 | E113: =IF(D113<>0,F113/D113,0) -> 3.775482809 | F113: =SUM(F100:F111) -> 4239742.755 | H113: =SUM(H100:H111) -> 1155779.37 | I113: =IF(H113<>0,J113/H113,0) -> 0.8098878631 | J113: =SUM(J100:J111) -> 936051.6842 | L113: =SUM(L100:L111) -> 1137624.15 | M113: =IF(L113<>0,N113/L113,0) -> 1.949942271 | N113: =SUM(N100:N111) -> 2218301.419 | P113: =SUM(P100:P111) -> 3154353.103
N115: Transformer Allowance Credit (if applicable) | P115: ='5. UTRs and Sub-Transmission'!G95 -> 0
N117: Total including deduction for Transformer Allowance Credit | P117: =P113+P115 -> 3154353.103

Sheet 8. Forecast Wholesale
B13: The purpose of this sheet is to calculate the expected billing when forecasted 2014 Uniform Transmission Rates are applied against historical 2012 transmission units.
B20: IESO | D20: Network | H20: Line Connection | L20: Transformation Connection | P20: Total Line
B22: Month | D22: Units Billed | E22: Rate | F22: Amount | H22: Units Billed | I22: Rate | J22: Amount | L22: Units Billed | M22: Rate | N22: Amount | P22: Amount
B24: January | D24: ='6. Historical Wholesale'!D24 -> 83603 | E24: ='5. UTRs and Sub-Transmission'!I22 -> 3.82 | F24: =D24*E24 -> 319363.46 | H24: ='6. Historical Wholesale'!H24 -> 85972 | I24: ='5. UTRs and Sub-Transmission'!I24 -> 0.82 | J24: =H24*I24 -> 70497.04 | L24: ='6. Historical Wholesale'!L24-20000 -> 65972 | M24: ='5. UTRs and Sub-Transmission'!I26 -> 1.98 | N24: =L24*M24 -> 130624.56 | P24: =J24+N24 -> 201121.6
B25: February | D25: ='6. Historical Wholesale'!D25 -> 82218 | E25: =E24 -> 3.82 | F25: 314072.76 | H25: ='6. Historical Wholesale'!H25 -> 82457 | I25: =I24 -> 0.82 | J25: 67614.74 | L25: ='6. Historical Wholesale'!L25-20000 -> 62457 | M25: =M24 -> 1.98 | N25: 123664.86 | P25: 191279.6
B26: March | D26: ='6. Historical Wholesale'!D26 -> 78379 | E26: 3.82 | F26: 299407.78 | H26: ='6. Historical Wholesale'!H26 -> 79188 | I26: 0.82 | J26: 64934.16 | L26: ='6. Historical Wholesale'!L26-20000 -> 59188 | M26: 1.98 | N26: 117192.24 | P26: 182126.4
B27: April | D27: ='6. Historical Wholesale'!D27 -> 75342 | E27: 3.82 | F27: 287806.44 | H27: ='6. Historical Wholesale'!H27 -> 77932 | I27: 0.82 | J27: 63904.24 | L27: ='6. Historical Wholesale'!L27-20000 -> 57932 | M27: 1.98 | N27: 114705.36 | P27: 178609.6
B28: May | D28: ='6. Historical Wholesale'!D28 -> 78729 | E28: 3.82 | F28: 300744.78 | H28: ='6. Historical Wholesale'!H28 -> 82643 | I28: 0.82 | J28: 67767.26 | L28: ='6. Historical Wholesale'!L28-20000 -> 62643 | M28: 1.98 | N28: 124033.14 | P28: 191800.4
B29: June | D29: ='6. Historical Wholesale'!D29 -> 90985 | E29: 3.82 | F29: 347562.7 | H29: ='6. Historical Wholesale'!H29 -> 92728 | I29: 0.82 | J29: 76036.96 | L29: ='6. Historical Wholesale'!L29-20000 -> 72728 | M29: 1.98 | N29: 144001.44 | P29: 220038.4
B30: July | D30: ='6. Historical Wholesale'!D30 -> 94841 | E30: 3.82 | F30: 362292.62 | H30: ='6. Historical Wholesale'!H30 -> 97445 | I30: 0.82 | J30: 79904.9 | L30: ='6. Historical Wholesale'!L30-20000 -> 77445 | M30: 1.98 | N30: 153341.1 | P30: 233246
B31: August | D31: ='6. Historical Wholesale'!D31 -> 90023 | E31: 3.82 | F31: 343887.86 | H31: ='6. Historical Wholesale'!H31 -> 92559 | I31: 0.82 | J31: 75898.38 | L31: ='6. Historical Wholesale'!L31-20000 -> 72559 | M31: 1.98 | N31: 143666.82 | P31: 219565.2
B32: September | D32: ='6. Historical Wholesale'!D32 -> 91796 | E32: 3.82 | F32: 350660.72 | H32: ='6. Historical Wholesale'!H32 -> 94942 | I32: 0.82 | J32: 77852.44 | L32: ='6. Historical Wholesale'!L32-20000 -> 74942 | M32: 1.98 | N32: 148385.16 | P32: 226237.6
B33: October | D33: ='6. Historical Wholesale'!D33 -> 74610 | E33: 3.82 | F33: 285010.2 | H33: ='6. Historical Wholesale'!H33 -> 78487 | I33: 0.82 | J33: 64359.34 | L33: ='6. Historical Wholesale'!L33-20000 -> 58487 | M33: 1.98 | N33: 115804.26 | P33: 180163.6
B34: November | D34: ='6. Historical Wholesale'!D34 -> 81322 | E34: 3.82 | F34: 310650.04 | H34: ='6. Historical Wholesale'!H34 -> 84420 | I34: 0.82 | J34: 69224.4 | L34: ='6. Historical Wholesale'!L34-20000 -> 64420 | M34: 1.98 | N34: 127551.6 | P34: 196776
B35: December | D35: ='6. Historical Wholesale'!D35 -> 88399 | E35: 3.82 | F35: 337684.18 | H35: ='6. Historical Wholesale'!H35 -> 93866.01 | I35: 0.82 | J35: 76970.1282 | L35: ='6. Historical Wholesale'!L35-20000 -> 73866.71 | M35: 1.98 | N35: 146256.0858 | P35: 223226.214
B37: Total | D37: =SUM(D24:D35) -> 1010247 | E37: =IF(D37<>0,F37/D37,0) -> 3.82 | F37: =SUM(F24:F35) -> 3859143.54 | H37: =SUM(H24:H35) -> 1042639.01 | I37: =IF(H37<>0,J37/H37,0) -> 0.82 | J37: =SUM(J24:J35) -> 854963.9882 | L37: =SUM(L24:L35) -> 802639.71 | M37: =IF(L37<>0,N37/L37,0) -> 1.98 | N37: =SUM(N24:N35) -> 1589226.626 | P37: =SUM(P24:P35) -> 2444190.614
B39: Hydro One | D39: Network | H39: Line Connection | L39: Transformation Connection | P39: Total Line
B41: Month | D41: Units Billed | E41: Rate | F41: Amount | H41: Units Billed | I41: Rate | J41: Amount | L41: Units Billed | M41: Rate | N41: Amount | P41: Amount
B43: January | D43: ='6. Historical Wholesale'!D43 -> 10396 | E43: ='5. UTRs and Sub-Transmission'!I35+'5. UTRs and Sub-Transmission'!I79 -> 3.5365 | F43: =D43*E43 -> 36765.454 | H43: ='6. Historical Wholesale'!H43 -> 10396 | I43: ='5. UTRs and Sub-Transmission'!I37+'5. UTRs and Sub-Transmission'!I81 -> 0.7467 | J43: =H43*I43 -> 7762.6932 | L43: ='6. Historical Wholesale'!L43 -> 8701 | M43: ='5. UTRs and Sub-Transmission'!I39 -> 1.68 | N43: =L43*M43 -> 14617.68 | P43: =J43+N43 -> 22380.3732
B44: February | D44: ='6. Historical Wholesale'!D44 -> 9757 | E44: =E43 -> 3.5365 | F44: 34505.6305 | H44: ='6. Historical Wholesale'!H44 -> 9788 | I44: =I43 -> 0.7467 | J44: 7308.6996 | L44: ='6. Historical Wholesale'!L44 -> 8262 | M44: =M43 -> 1.68 | N44: 13880.16 | P44: 21188.8596
B45: March | D45: ='6. Historical Wholesale'!D45 -> 9373 | E45: 3.5365 | F45: 33147.6145 | H45: ='6. Historical Wholesale'!H45 -> 9422 | I45: 0.7467 | J45: 7035.4074 | L45: ='6. Historical Wholesale'!L45 -> 7989 | M45: 1.68 | N45: 13421.52 | P45: 20456.9274
B46: April | D46: ='6. Historical Wholesale'!D46 -> 8788.68 | E46: 3.5365 | F46: 31081.16682 | H46: ='6. Historical Wholesale'!H46 -> 8841 | I46: 0.7467 | J46: 6601.5747 | L46: ='6. Historical Wholesale'!L46 -> 7549.57 | M46: 1.68 | N46: 12683.2776 | P46: 19284.8523
B47: May | D47: ='6. Historical Wholesale'!D47 -> 8820.74 | E47: 3.5365 | F47: 31194.54701 | H47: ='6. Historical Wholesale'!H47 -> 8867.76 | I47: 0.7467 | J47: 6621.556392 | L47: ='6. Historical Wholesale'!L47 -> 7295.67 | M47: 1.68 | N47: 12256.7256 | P47: 18878.28199
B48: June | D48: ='6. Historical Wholesale'!D48 -> 7952.87 | E48: 3.5365 | F48: 28125.32476 | H48: ='6. Historical Wholesale'!H48 -> 7978.23 | I48: 0.7467 | J48: 5957.344341 | L48: ='6. Historical Wholesale'!L48 -> 6790.93 | M48: 1.68 | N48: 11408.7624 | P48: 17366.10674
B49: July | D49: ='6. Historical Wholesale'!D49 -> 9775.77 | E49: 3.5365 | F49: 34572.01061 | H49: ='6. Historical Wholesale'!H49 -> 9775.77 | I49: 0.7467 | J49: 7299.567459 | L49: ='6. Historical Wholesale'!L49 -> 8084.97 | M49: 1.68 | N49: 13582.7496 | P49: 20882.31706
B50: August | D50: ='6. Historical Wholesale'!D50 -> 8615.95 | E50: 3.5365 | F50: 30470.30718 | H50: ='6. Historical Wholesale'!H50 -> 8616 | I50: 0.7467 | J50: 6433.5672 | L50: ='6. Historical Wholesale'!L50 -> 6916.49 | M50: 1.68 | N50: 11619.7032 | P50: 18053.2704
B51: September | D51: ='6. Historical Wholesale'!D51 -> 8791.9 | E51: 3.5365 | F51: 31092.55435 | H51: ='6. Historical Wholesale'!H51 -> 8791.9 | I51: 0.7467 | J51: 6564.91173 | L51: ='6. Historical Wholesale'!L51 -> 7234.02 | M51: 1.68 | N51: 12153.1536 | P51: 18718.06533
B52: October | D52: ='6. Historical Wholesale'!D52 -> 9588.94 | E52: 3.5365 | F52: 33911.28631 | H52: ='6. Historical Wholesale'!H52 -> 9651.79 | I52: 0.7467 | J52: 7206.991593 | L52: ='6. Historical Wholesale'!L52 -> 8428.64 | M52: 1.68 | N52: 14160.1152 | P52: 21367.10679
B53: November | D53: ='6. Historical Wholesale'!D53 -> 9973.72 | E53: 3.5365 | F53: 35272.06078 | H53: ='6. Historical Wholesale'!H53 -> 10003.51 | I53: 0.7467 | J53: 7469.620917 | L53: ='6. Historical Wholesale'!L53 -> 8422.98 | M53: 1.68 | N53: 14150.6064 | P53: 21620.22732
B54: December | D54: ='6. Historical Wholesale'!D54 -> 10885.47 | E54: 3.5365 | F54: 38496.46466 | H54: ='6. Historical Wholesale'!H54 -> 11008.4 | I54: 0.7467 | J54: 8219.97228 | L54: ='6. Historical Wholesale'!L54 -> 9309.17 | M54: 1.68 | N54: 15639.4056 | P54: 23859.37788
B56: Total | D56: =SUM(D43:D54) -> 112720.04 | E56: =IF(D56<>0,F56/D56,0) -> 3.5365 | F56: =SUM(F43:F54) -> 398634.4215 | H56: =SUM(H43:H54) -> 113140.36 | I56: =IF(H56<>0,J56/H56,0) -> 0.7467 | J56: =SUM(J43:J54) -> 84481.90681 | L56: =SUM(L43:L54) -> 94984.44 | M56: =IF(L56<>0,N56/L56,0) -> 1.68 | N56: =SUM(N43:N54) -> 159573.8592 | P56: =SUM(P43:P54) -> 244055.766
B58: ='6. Historical Wholesale'!B58 -> Add Extra Host Here (I) | D58: Network | H58: Line Connection | L58: Transformation Connection | P58: Total Line
B60: Month | D60: Units Billed | E60: Rate | F60: Amount | H60: Units Billed | I60: Rate | J60: Amount | L60: Units Billed | M60: Rate | N60: Amount | P60: Amount
B62: January | D62: ='6. Historical Wholesale'!D62 -> 0 | E62: ='5. UTRs and Sub-Transmission'!I50 -> 0 | F62: =D62*E62 -> 0 | H62: ='6. Historical Wholesale'!H62 -> 0 | I62: ='5. UTRs and Sub-Transmission'!I52 -> 0 | J62: =H62*I62 -> 0 | L62: ='6. Historical Wholesale'!L62 -> 0 | M62: ='5. UTRs and Sub-Transmission'!I54 -> 0 | N62: =L62*M62 -> 0 | P62: =J62+N62 -> 0
B63: February | D63: ='6. Historical Wholesale'!D63 -> 0 | E63: =E62 -> 0 | F63: 0 | H63: ='6. Historical Wholesale'!H63 -> 0 | I63: =I62 -> 0 | J63: 0 | L63: ='6. Historical Wholesale'!L63 -> 0 | M63: =M62 -> 0 | N63: 0 | P63: 0
B64: March | D64: ='6. Historical Wholesale'!D64 -> 0 | E64: 0 | F64: 0 | H64: ='6. Historical Wholesale'!H64 -> 0 | I64: 0 | J64: 0 | L64: ='6. Historical Wholesale'!L64 -> 0 | M64: 0 | N64: 0 | P64: 0
B65: April | D65: ='6. Historical Wholesale'!D65 -> 0 | E65: 0 | F65: 0 | H65: ='6. Historical Wholesale'!H65 -> 0 | I65: 0 | J65: 0 | L65: ='6. Historical Wholesale'!L65 -> 0 | M65: 0 | N65: 0 | P65: 0
B66: May | D66: ='6. Historical Wholesale'!D66 -> 0 | E66: 0 | F66: 0 | H66: ='6. Historical Wholesale'!H66 -> 0 | I66: 0 | J66: 0 | L66: ='6. Historical Wholesale'!L66 -> 0 | M66: 0 | N66: 0 | P66: 0
B67: June | D67: ='6. Historical Wholesale'!D67 -> 0 | E67: 0 | F67: 0 | H67: ='6. Historical Wholesale'!H67 -> 0 | I67: 0 | J67: 0 | L67: ='6. Historical Wholesale'!L67 -> 0 | M67: 0 | N67: 0 | P67: 0
B68: July | D68: ='6. Historical Wholesale'!D68 -> 0 | E68: 0 | F68: 0 | H68: ='6. Historical Wholesale'!H68 -> 0 | I68: 0 | J68: 0 | L68: ='6. Historical Wholesale'!L68 -> 0 | M68: 0 | N68: 0 | P68: 0
B69: August | D69: ='6. Historical Wholesale'!D69 -> 0 | E69: 0 | F69: 0 | H69: ='6. Historical Wholesale'!H69 -> 0 | I69: 0 | J69: 0 | L69: ='6. Historical Wholesale'!L69 -> 0 | M69: 0 | N69: 0 | P69: 0
B70: September | D70: ='6. Historical Wholesale'!D70 -> 0 | E70: 0 | F70: 0 | H70: ='6. Historical Wholesale'!H70 -> 0 | I70: 0 | J70: 0 | L70: ='6. Historical Wholesale'!L70 -> 0 | M70: 0 | N70: 0 | P70: 0
B71: October | D71: ='6. Historical Wholesale'!D71 -> 0 | E71: 0 | F71: 0 | H71: ='6. Historical Wholesale'!H71 -> 0 | I71: 0 | J71: 0 | L71: ='6. Historical Wholesale'!L71 -> 0 | M71: 0 | N71: 0 | P71: 0
B72: November | D72: ='6. Historical Wholesale'!D72 -> 0 | E72: 0 | F72: 0 | H72: ='6. Historical Wholesale'!H72 -> 0 | I72: 0 | J72: 0 | L72: ='6. Historical Wholesale'!L72 -> 0 | M72: 0 | N72: 0 | P72: 0
B73: December | D73: ='6. Historical Wholesale'!D73 -> 0 | E73: 0 | F73: 0 | H73: ='6. Historical Wholesale'!H73 -> 0 | I73: 0 | J73: 0 | L73: ='6. Historical Wholesale'!L73 -> 0 | M73: 0 | N73: 0 | P73: 0
B75: Total | D75: =SUM(D62:D73) -> 0 | E75: =IF(D75<>0,F75/D75,0) -> 0 | F75: =SUM(F62:F73) -> 0 | H75: =SUM(H62:H73) -> 0 | I75: =IF(H75<>0,J75/H75,0) -> 0 | J75: =SUM(J62:J73) -> 0 | L75: =SUM(L62:L73) -> 0 | M75: =IF(L75<>0,N75/L75,0) -> 0 | N75: =SUM(N62:N73) -> 0 | P75: =SUM(P62:P73) -> 0
B77: ='6. Historical Wholesale'!B77 -> Add Extra Host Here (II) | D77: Network | H77: Line Connection | L77: Transformation Connection | P77: Total Line
B79: Month | D79: Units Billed | E79: Rate | F79: Amount | H79: Units Billed | I79: Rate | J79: Amount | L79: Units Billed | M79: Rate | N79: Amount | P79: Amount
B81: January | D81: ='6. Historical Wholesale'!D81 -> 0 | E81: ='5. UTRs and Sub-Transmission'!I65 -> 0 | F81: =D81*E81 -> 0 | H81: ='6. Historical Wholesale'!H81 -> 0 | I81: ='5. UTRs and Sub-Transmission'!I67 -> 0 | J81: =H81*I81 -> 0 | L81: ='6. Historical Wholesale'!L81 -> 0 | M81: ='5. UTRs and Sub-Transmission'!I69 -> 0 | N81: =L81*M81 -> 0 | P81: =J81+N81 -> 0
B82: February | D82: ='6. Historical Wholesale'!D82 -> 0 | E82: =E81 -> 0 | F82: 0 | H82: ='6. Historical Wholesale'!H82 -> 0 | I82: =I81 -> 0 | J82: 0 | L82: ='6. Historical Wholesale'!L82 -> 0 | M82: =M81 -> 0 | N82: 0 | P82: 0
B83: March | D83: ='6. Historical Wholesale'!D83 -> 0 | E83: 0 | F83: 0 | H83: ='6. Historical Wholesale'!H83 -> 0 | I83: 0 | J83: 0 | L83: ='6. Historical Wholesale'!L83 -> 0 | M83: 0 | N83: 0 | P83: 0
B84: April | D84: ='6. Historical Wholesale'!D84 -> 0 | E84: 0 | F84: 0 | H84: ='6. Historical Wholesale'!H84 -> 0 | I84: 0 | J84: 0 | L84: ='6. Historical Wholesale'!L84 -> 0 | M84: 0 | N84: 0 | P84: 0
B85: May | D85: ='6. Historical Wholesale'!D85 -> 0 | E85: 0 | F85: 0 | H85: ='6. Historical Wholesale'!H85 -> 0 | I85: 0 | J85: 0 | L85: ='6. Historical Wholesale'!L85 -> 0 | M85: 0 | N85: 0 | P85: 0
B86: June | D86: ='6. Historical Wholesale'!D86 -> 0 | E86: 0 | F86: 0 | H86: ='6. Historical Wholesale'!H86 -> 0 | I86: 0 | J86: 0 | L86: ='6. Historical Wholesale'!L86 -> 0 | M86: 0 | N86: 0 | P86: 0
B87: July | D87: ='6. Historical Wholesale'!D87 -> 0 | E87: 0 | F87: 0 | H87: ='6. Historical Wholesale'!H87 -> 0 | I87: 0 | J87: 0 | L87: ='6. Historical Wholesale'!L87 -> 0 | M87: 0 | N87: 0 | P87: 0
B88: August | D88: ='6. Historical Wholesale'!D88 -> 0 | E88: 0 | F88: 0 | H88: ='6. Historical Wholesale'!H88 -> 0 | I88: 0 | J88: 0 | L88: ='6. Historical Wholesale'!L88 -> 0 | M88: 0 | N88: 0 | P88: 0
B89: September | D89: ='6. Historical Wholesale'!D89 -> 0 | E89: 0 | F89: 0 | H89: ='6. Historical Wholesale'!H89 -> 0 | I89: 0 | J89: 0 | L89: ='6. Historical Wholesale'!L89 -> 0 | M89: 0 | N89: 0 | P89: 0
B90: October | D90: ='6. Historical Wholesale'!D90 -> 0 | E90: 0 | F90: 0 | H90: ='6. Historical Wholesale'!H90 -> 0 | I90: 0 | J90: 0 | L90: ='6. Historical Wholesale'!L90 -> 0 | M90: 0 | N90: 0 | P90: 0
B91: November | D91: ='6. Historical Wholesale'!D91 -> 0 | E91: 0 | F91: 0 | H91: ='6. Historical Wholesale'!H91 -> 0 | I91: 0 | J91: 0 | L91: ='6. Historical Wholesale'!L91 -> 0 | M91: 0 | N91: 0 | P91: 0
B92: December | D92: ='6. Historical Wholesale'!D92 -> 0 | E92: 0 | F92: 0 | H92: ='6. Historical Wholesale'!H92 -> 0 | I92: 0 | J92: 0 | L92: ='6. Historical Wholesale'!L92 -> 0 | M92: 0 | N92: 0 | P92: 0
B94: Total | D94: =SUM(D81:D92) -> 0 | E94: =IF(D94<>0,F94/D94,0) -> 0 | F94: =SUM(F81:F92) -> 0 | H94: =SUM(H81:H92) -> 0 | I94: =IF(H94<>0,J94/H94,0) -> 0 | J94: =SUM(J81:J92) -> 0 | L94: =SUM(L81:L92) -> 0 | M94: =IF(L94<>0,N94/L94,0) -> 0 | N94: =SUM(N81:N92) -> 0 | P94: =SUM(P81:P92) -> 0
B96: Total | D96: Network | H96: Line Connection | L96: Transformation Connection | P96: Total Line
B98: Month | D98: Units Billed | E98: Rate | F98: Amount | H98: Units Billed | I98: Rate | J98: Amount | L98: Units Billed | M98: Rate | N98: Amount | P98: Amount
B100: January | D100: =D24+D43 -> 93999 | E100: =IF(D100<>0,F100/D100,0) -> 3.788645773 | F100: =F24+F43 -> 356128.914 | H100: =H24+H43 -> 96368 | I100: =IF(H100<>0,J100/H100,0) -> 0.8120925328 | J100: =J24+J43 -> 78259.7332 | L100: =L24+L43 -> 74673 | M100: =IF(L100<>0,N100/L100,0) -> 1.94504359 | N100: =N24+N43 -> 145242.24 | P100: =J100+N100 -> 223501.9732
B101: February | D101: 91975 | E101: 3.78992542 | F101: 348578.3905 | H101: 92245 | I101: 0.8122222299 | J101: 74923.4396 | L101: 70719 | M101: 1.944951427 | N101: 137545.02 | P101: 212468.4596
B102: March | D102: 87752 | E102: 3.78971869 | F102: 332555.3945 | H102: 88610 | I102: 0.8122059294 | J102: 71969.5674 | L102: 67177 | M102: 1.94432261 | N102: 130613.76 | P102: 202583.3274
B103: April | D103: 84130.68 | E103: 3.790384279 | F103: 318887.6068 | H103: 86773 | I103: 0.8125317172 | J103: 70505.8147 | L103: 65481.57 | M103: 1.945412085 | N103: 127388.6376 | P103: 197894.4523
B104: May | D104: 87549.74 | E104: 3.791437039 | F104: 331939.327 | H104: 91510.76 | I104: 0.8128969357 | J104: 74388.81639 | L104: 69938.67 | M104: 1.948705424 | N104: 136289.8656 | P104: 210678.682
B105: June | D105: 98937.87 | E105: 3.797211571 | F105: 375688.0248 | H105: 100706.23 | I105: 0.8141929684 | J105: 81994.30434 | L105: 79518.93 | M105: 1.95437995 | N105: 155410.2024 | P105: 237404.5067
B106: July | D106: 104616.77 | E106: 3.793508733 | F106: 396864.6306 | H106: 107220.77 | I106: 0.8133169297 | J106: 87204.46746 | L106: 85529.97 | M106: 1.951641625 | N106: 166923.8496 | P106: 254128.3171
B107: August | D107: 98638.95 | E107: 3.795236741 | F107: 374358.1672 | H107: 101175 | I107: 0.8137578176 | J107: 82331.9472 | L107: 79475.49 | M107: 1.953891989 | N107: 155286.5232 | P107: 237618.4704
B108: September | D108: 100587.9 | E108: 3.795220641 | F108: 381753.2743 | H108: 103733.9 | I108: 0.8137875056 | J108: 84417.35173 | L108: 82176.02 | M108: 1.953590763 | N108: 160538.3136 | P108: 244955.6653
B109: October | D109: 84198.94 | E109: 3.787713792 | F109: 318921.4863 | H109: 88138.79 | I109: 0.8119731573 | J109: 71566.33159 | L109: 66915.64 | M109: 1.942212242 | N109: 129964.3752 | P109: 201530.7068
B110: November | D110: 91295.72 | E110: 3.789028673 | F110: 345922.1008 | H110: 94423.51 | I110: 0.812234378 | J110: 76694.02092 | L110: 72842.98 | M110: 1.945310398 | N110: 141702.2064 | P110: 218396.2273
B111: December | D111: 99284.47 | E111: 3.788917286 | F111: 376180.6447 | H111: 104874.41 | I111: 0.8123058855 | J111: 85190.10048 | L111: 83175.88 | M111: 1.946423547 | N111: 161895.4914 | P111: 247085.5919
B113: Total | D113: =SUM(D100:D111) -> 1122967.04 | E113: =IF(D113<>0,F113/D113,0) -> 3.791543126 | F113: =SUM(F100:F111) -> 4257777.961 | H113: =SUM(H100:H111) -> 1155779.37 | I113: =IF(H113<>0,J113/H113,0) -> 0.8128245921 | J113: =SUM(J100:J111) -> 939445.895 | L113: =SUM(L100:L111) -> 897624.15 | M113: =IF(L113<>0,N113/L113,0) -> 1.948254718 | N113: =SUM(N100:N111) -> 1748800.485 | P113: =SUM(P100:P111) -> 2688246.38
N115: Transformer Allowance Credit (if applicable) | P115: ='5. UTRs and Sub-Transmission'!I95 -> 0
N117: Total including deduction for Transformer Allowance Credit | P117: =P113+P115 -> 2688246.38

Sheet 9. Adj Network to Current WS
B13: The purpose of this sheet is to re-align the current RTS Network Rates to recover current wholesale network costs.
B22: Rate Class | D22: Unit | F22: Current RTSR-Network | H22: Loss Adjusted Billed kWh | J22: Loss Adjusted Billed kW | L22: Billed Amount | N22: Billed Amount % | P22: Current Wholesale Billing | R22: Proposed RTSR Network
B25: =IF('3. Rate Classes'!Q24=1,'3. Rate Classes'!C24, 0) -> Residential | D25: =IF(ISERROR(VLOOKUP($B25, '3. Rate Classes'!$C$24:$H$45,6,0)), "", VLOOKUP($B25, '3. Rate Classes'!$C$24:$H$45,6,0)) -> kWh | F25: =IF(ISERROR(VLOOKUP($B25,'3. Rate Classes'!$C$24:$N$45, 8,0)), "", VLOOKUP($B25,'3. Rate Classes'!$C$24:$N$45, 8,0)) -> 0.0072 | H25: =VLOOKUP('9. Adj Network to Current WS'!$B25, '4. RRR Data'!$B$27:$M$49,11,0) -> 141136888.9 | J25: =VLOOKUP('9. Adj Network to Current WS'!$B25, '4. RRR Data'!$B$27:$M$49,12,0) -> 0 | L25: =IF(F25="", "", IF(D25="kWh", F25*H25, F25*J25)) -> 1016185.6 | N25: =IF(ISERROR(L25/$L$49), "", L25/$L$49) -> 0.2424573819 | P25: =IF(ISERROR('7. Current Wholesale'!$F$113*N25), "", '7. Current Wholesale'!$F$113*N25) -> 1027956.928 | R25: =IF(D25="","",IF(D25="kWh",IF(H25<>0,P25/H25,),IF(J25<>0,P25/J25,0))) -> 0.007283403625
B26: =IF('3. Rate Classes'!Q25=1,'3. Rate Classes'!C25, 0) -> Residential - Hensall | D26: =IF(ISERROR(VLOOKUP($B26, '3. Rate Classes'!$C$24:$H$45,6,0)), "", VLOOKUP($B26, '3. Rate Classes'!$C$24:$H$45,6,0)) -> kWh | F26: =IF(ISERROR(VLOOKUP($B26,'3. Rate Classes'!$C$24:$N$45, 8,0)), "", VLOOKUP($B26,'3. Rate Classes'!$C$24:$N$45, 8,0)) -> 0.0072 | H26: =VLOOKUP('9. Adj Network to Current WS'!$B26, '4. RRR Data'!$B$27:$M$49,11,0) -> 3864123.339 | J26: =VLOOKUP('9. Adj Network to Current WS'!$B26, '4. RRR Data'!$B$27:$M$49,12,0) -> 0 | L26: =IF(F26="", "", IF(D26="kWh", F26*H26, F26*J26)) -> 27821.68804 | N26: =IF(ISERROR(L26/$L$49), "", L26/$L$49) -> 0.006638131499 | P26: =IF(ISERROR('7. Current Wholesale'!$F$113*N26), "", '7. Current Wholesale'!$F$113*N26) -> 28143.96993 | R26: =IF(D26="","",IF(D26="kWh",IF(H26<>0,P26/H26,),IF(J26<>0,P26/J26,0))) -> 0.007283403625
B27: =IF('3. Rate Classes'!Q26=1,'3. Rate Classes'!C26, 0) -> General Service Less Than 50 kW | D27: =IF(ISERROR(VLOOKUP($B27, '3. Rate Classes'!$C$24:$H$45,6,0)), "", VLOOKUP($B27, '3. Rate Classes'!$C$24:$H$45,6,0)) -> kWh | F27: =IF(ISERROR(VLOOKUP($B27,'3. Rate Classes'!$C$24:$N$45, 8,0)), "", VLOOKUP($B27,'3. Rate Classes'!$C$24:$N$45, 8,0)) -> 0.0062 | H27: =VLOOKUP('9. Adj Network to Current WS'!$B27, '4. RRR Data'!$B$27:$M$49,11,0) -> 66047247.97 | J27: =VLOOKUP('9. Adj Network to Current WS'!$B27, '4. RRR Data'!$B$27:$M$49,12,0) -> 0 | L27: 409492.9374 | N27: 0.09770320057 | P27: =IF(ISERROR('7. Current Wholesale'!$F$113*N27), "", '7. Current Wholesale'!$F$113*N27) -> 414236.4368 | R27: 0.006271819788
B28: =IF('3. Rate Classes'!Q27=1,'3. Rate Classes'!C27, 0) -> General Service 50 to 4,999 kW | D28: =IF(ISERROR(VLOOKUP($B28, '3. Rate Classes'!$C$24:$H$45,6,0)), "", VLOOKUP($B28, '3. Rate Classes'!$C$24:$H$45,6,0)) -> kW | F28: =IF(ISERROR(VLOOKUP($B28,'3. Rate Classes'!$C$24:$N$45, 8,0)), "", VLOOKUP($B28,'3. Rate Classes'!$C$24:$N$45, 8,0)) -> 2.6136 | H28: =VLOOKUP('9. Adj Network to Current WS'!$B28, '4. RRR Data'!$B$27:$M$49,11,0) -> 50294714.72 | J28: =VLOOKUP('9. Adj Network to Current WS'!$B28, '4. RRR Data'!$B$27:$M$49,12,0) -> 143816.928 | L28: 375879.923 | N28: 0.08968328426 | P28: =IF(ISERROR('7. Current Wholesale'!$F$113*N28), "", '7. Current Wholesale'!$F$113*N28) -> 380234.0547 | R28: 2.643875516
B29: =IF('3. Rate Classes'!Q28=1,'3. Rate Classes'!C28, 0) -> General Service 50 to 999 kW - Interval Metered | D29: =IF(ISERROR(VLOOKUP($B29, '3. Rate Classes'!$C$24:$H$45,6,0)), "", VLOOKUP($B29, '3. Rate Classes'!$C$24:$H$45,6,0)) -> kW | F29: =IF(ISERROR(VLOOKUP($B29,'3. Rate Classes'!$C$24:$N$45, 8,0)), "", VLOOKUP($B29,'3. Rate Classes'!$C$24:$N$45, 8,0)) -> 2.7761 | H29: =VLOOKUP('9. Adj Network to Current WS'!$B29, '4. RRR Data'!$B$27:$M$49,11,0) -> 311537765.3 | J29: =VLOOKUP('9. Adj Network to Current WS'!$B29, '4. RRR Data'!$B$27:$M$49,12,0) -> 802347.072 | L29: 2227395.707 | N29: 0.5314467469 | P29: =IF(ISERROR('7. Current Wholesale'!$F$113*N29), "", '7. Current Wholesale'!$F$113*N29) -> 2253197.495 | R29: 2.808257889
B30: =IF('3. Rate Classes'!Q29=1,'3. Rate Classes'!C29, 0) -> Large Use | D30: =IF(ISERROR(VLOOKUP($B30, '3. Rate Classes'!$C$24:$H$45,6,0)), "", VLOOKUP($B30, '3. Rate Classes'!$C$24:$H$45,6,0)) -> kW | F30: =IF(ISERROR(VLOOKUP($B30,'3. Rate Classes'!$C$24:$N$45, 8,0)), "", VLOOKUP($B30,'3. Rate Classes'!$C$24:$N$45, 8,0)) -> 3.0738 | H30: =VLOOKUP('9. Adj Network to Current WS'!$B30, '4. RRR Data'!$B$27:$M$49,11,0) -> 22191326 | J30: =VLOOKUP('9. Adj Network to Current WS'!$B30, '4. RRR Data'!$B$27:$M$49,12,0) -> 34422 | L30: 105806.3436 | N30: 0.0252449248 | P30: =IF(ISERROR('7. Current Wholesale'!$F$113*N30), "", '7. Current Wholesale'!$F$113*N30) -> 107031.987 | R30: 3.109406397
B31: =IF('3. Rate Classes'!Q30=1,'3. Rate Classes'!C30, 0) -> Unmetered Scattered Load | D31: =IF(ISERROR(VLOOKUP($B31, '3. Rate Classes'!$C$24:$H$45,6,0)), "", VLOOKUP($B31, '3. Rate Classes'!$C$24:$H$45,6,0)) -> kWh | F31: =IF(ISERROR(VLOOKUP($B31,'3. Rate Classes'!$C$24:$N$45, 8,0)), "", VLOOKUP($B31,'3. Rate Classes'!$C$24:$N$45, 8,0)) -> 0.0062 | H31: =VLOOKUP('9. Adj Network to Current WS'!$B31, '4. RRR Data'!$B$27:$M$49,11,0) -> 680201.1397 | J31: =VLOOKUP('9. Adj Network to Current WS'!$B31, '4. RRR Data'!$B$27:$M$49,12,0) -> 0 | L31: 4217.247066 | N31: 0.001006216465 | P31: =IF(ISERROR('7. Current Wholesale'!$F$113*N31), "", '7. Current Wholesale'!$F$113*N31) -> 4266.098968 | R31: 0.006271819788
B32: =IF('3. Rate Classes'!Q31=1,'3. Rate Classes'!C31, 0) -> Sentinel Lighting | D32: =IF(ISERROR(VLOOKUP($B32, '3. Rate Classes'!$C$24:$H$45,6,0)), "", VLOOKUP($B32, '3. Rate Classes'!$C$24:$H$45,6,0)) -> kW | F32: =IF(ISERROR(VLOOKUP($B32,'3. Rate Classes'!$C$24:$N$45, 8,0)), "", VLOOKUP($B32,'3. Rate Classes'!$C$24:$N$45, 8,0)) -> 1.9812 | H32: =VLOOKUP('9. Adj Network to Current WS'!$B32, '4. RRR Data'!$B$27:$M$49,11,0) -> 150156 | J32: =VLOOKUP('9. Adj Network to Current WS'!$B32, '4. RRR Data'!$B$27:$M$49,12,0) -> 356 | L32: 705.3072 | N32: 0.000168283173 | P32: =IF(ISERROR('7. Current Wholesale'!$F$113*N32), "", '7. Current Wholesale'!$F$113*N32) -> 713.4773635 | R32: 2.004149897
B33: =IF('3. Rate Classes'!Q32=1,'3. Rate Classes'!C32, 0) -> Street Lighting | D33: =IF(ISERROR(VLOOKUP($B33, '3. Rate Classes'!$C$24:$H$45,6,0)), "", VLOOKUP($B33, '3. Rate Classes'!$C$24:$H$45,6,0)) -> kW | F33: =IF(ISERROR(VLOOKUP($B33,'3. Rate Classes'!$C$24:$N$45, 8,0)), "", VLOOKUP($B33,'3. Rate Classes'!$C$24:$N$45, 8,0)) -> 1.9712 | H33: =VLOOKUP('9. Adj Network to Current WS'!$B33, '4. RRR Data'!$B$27:$M$49,11,0) -> 4559343 | J33: =VLOOKUP('9. Adj Network to Current WS'!$B33, '4. RRR Data'!$B$27:$M$49,12,0) -> 12017 | L33: 23687.9104 | N33: 0.00565183047 | P33: =IF(ISERROR('7. Current Wholesale'!$F$113*N33), "", '7. Current Wholesale'!$F$113*N33) -> 23962.30729 | R33: 1.994034059
B34: =IF('3. Rate Classes'!Q33=1,'3. Rate Classes'!C33, 0) -> 0 | D34: =IF(ISERROR(VLOOKUP($B34, '3. Rate Classes'!$C$24:$H$45,6,0)), "", VLOOKUP($B34, '3. Rate Classes'!$C$24:$H$45,6,0)) ->  | F34: =IF(ISERROR(VLOOKUP($B34,'3. Rate Classes'!$C$24:$N$45, 8,0)), "", VLOOKUP($B34,'3. Rate Classes'!$C$24:$N$45, 8,0)) ->  | H34: =VLOOKUP('9. Adj Network to Current WS'!$B34, '4. RRR Data'!$B$27:$M$49,11,0) -> 0 | J34: =VLOOKUP('9. Adj Network to Current WS'!$B34, '4. RRR Data'!$B$27:$M$49,12,0) -> 0 | P34: =IF(ISERROR('7. Current Wholesale'!$F$113*N34), "", '7. Current Wholesale'!$F$113*N34) -> 
B35: =IF('3. Rate Classes'!Q34=1,'3. Rate Classes'!C34, 0) -> 0 | D35: =IF(ISERROR(VLOOKUP($B35, '3. Rate Classes'!$C$24:$H$45,6,0)), "", VLOOKUP($B35, '3. Rate Classes'!$C$24:$H$45,6,0)) ->  | F35: =IF(ISERROR(VLOOKUP($B35,'3. Rate Classes'!$C$24:$N$45, 8,0)), "", VLOOKUP($B35,'3. Rate Classes'!$C$24:$N$45, 8,0)) ->  | H35: =VLOOKUP('9. Adj Network to Current WS'!$B35, '4. RRR Data'!$B$27:$M$49,11,0) -> 0 | J35: =VLOOKUP('9. Adj Network to Current WS'!$B35, '4. RRR Data'!$B$27:$M$49,12,0) -> 0 | P35: =IF(ISERROR('7. Current Wholesale'!$F$113*N35), "", '7. Current Wholesale'!$F$113*N35) -> 
B36: =IF('3. Rate Classes'!Q35=1,'3. Rate Classes'!C35, 0) -> 0 | D36: =IF(ISERROR(VLOOKUP($B36, '3. Rate Classes'!$C$24:$H$45,6,0)), "", VLOOKUP($B36, '3. Rate Classes'!$C$24:$H$45,6,0)) ->  | F36: =IF(ISERROR(VLOOKUP($B36,'3. Rate Classes'!$C$24:$N$45, 8,0)), "", VLOOKUP($B36,'3. Rate Classes'!$C$24:$N$45, 8,0)) ->  | H36: =VLOOKUP('9. Adj Network to Current WS'!$B36, '4. RRR Data'!$B$27:$M$49,11,0) -> 0 | J36: =VLOOKUP('9. Adj Network to Current WS'!$B36, '4. RRR Data'!$B$27:$M$49,12,0) -> 0 | P36: =IF(ISERROR('7. Current Wholesale'!$F$113*N36), "", '7. Current Wholesale'!$F$113*N36) -> 
B37: =IF('3. Rate Classes'!Q36=1,'3. Rate Classes'!C36, 0) -> 0 | D37: =IF(ISERROR(VLOOKUP($B37, '3. Rate Classes'!$C$24:$H$45,6,0)), "", VLOOKUP($B37, '3. Rate Classes'!$C$24:$H$45,6,0)) ->  | F37: =IF(ISERROR(VLOOKUP($B37,'3. Rate Classes'!$C$24:$N$45, 8,0)), "", VLOOKUP($B37,'3. Rate Classes'!$C$24:$N$45, 8,0)) ->  | H37: =VLOOKUP('9. Adj Network to Current WS'!$B37, '4. RRR Data'!$B$27:$M$49,11,0) -> 0 | J37: =VLOOKUP('9. Adj Network to Current WS'!$B37, '4. RRR Data'!$B$27:$M$49,12,0) -> 0 | P37: =IF(ISERROR('7. Current Wholesale'!$F$113*N37), "", '7. Current Wholesale'!$F$113*N37) -> 
B38: =IF('3. Rate Classes'!Q37=1,'3. Rate Classes'!C37, 0) -> 0 | D38: =IF(ISERROR(VLOOKUP($B38, '3. Rate Classes'!$C$24:$H$45,6,0)), "", VLOOKUP($B38, '3. Rate Classes'!$C$24:$H$45,6,0)) ->  | F38: =IF(ISERROR(VLOOKUP($B38,'3. Rate Classes'!$C$24:$N$45, 8,0)), "", VLOOKUP($B38,'3. Rate Classes'!$C$24:$N$45, 8,0)) ->  | H38: =VLOOKUP('9. Adj Network to Current WS'!$B38, '4. RRR Data'!$B$27:$M$49,11,0) -> 0 | J38: =VLOOKUP('9. Adj Network to Current WS'!$B38, '4. RRR Data'!$B$27:$M$49,12,0) -> 0 | P38: =IF(ISERROR('7. Current Wholesale'!$F$113*N38), "", '7. Current Wholesale'!$F$113*N38) -> 
B39: =IF('3. Rate Classes'!Q38=1,'3. Rate Classes'!C38, 0) -> 0 | D39: =IF(ISERROR(VLOOKUP($B39, '3. Rate Classes'!$C$24:$H$45,6,0)), "", VLOOKUP($B39, '3. Rate Classes'!$C$24:$H$45,6,0)) ->  | F39: =IF(ISERROR(VLOOKUP($B39,'3. Rate Classes'!$C$24:$N$45, 8,0)), "", VLOOKUP($B39,'3. Rate Classes'!$C$24:$N$45, 8,0)) ->  | H39: =VLOOKUP('9. Adj Network to Current WS'!$B39, '4. RRR Data'!$B$27:$M$49,11,0) -> 0 | J39: =VLOOKUP('9. Adj Network to Current WS'!$B39, '4. RRR Data'!$B$27:$M$49,12,0) -> 0 | L39: =IF(F39="", "", IF(D39="kWh", F39*H39, F39*J39)) ->  | P39: =IF(ISERROR('7. Current Wholesale'!$F$113*N39), "", '7. Current Wholesale'!$F$113*N39) -> 
B40: =IF('3. Rate Classes'!Q39=1,'3. Rate Classes'!C39, 0) -> 0 | D40: =IF(ISERROR(VLOOKUP($B40, '3. Rate Classes'!$C$24:$H$45,6,0)), "", VLOOKUP($B40, '3. Rate Classes'!$C$24:$H$45,6,0)) ->  | F40: =IF(ISERROR(VLOOKUP($B40,'3. Rate Classes'!$C$24:$N$45, 8,0)), "", VLOOKUP($B40,'3. Rate Classes'!$C$24:$N$45, 8,0)) ->  | H40: =VLOOKUP('9. Adj Network to Current WS'!$B40, '4. RRR Data'!$B$27:$M$49,11,0) -> 0 | J40: =VLOOKUP('9. Adj Network to Current WS'!$B40, '4. RRR Data'!$B$27:$M$49,12,0) -> 0 | P40: =IF(ISERROR('7. Current Wholesale'!$F$113*N40), "", '7. Current Wholesale'!$F$113*N40) -> 
B41: =IF('3. Rate Classes'!Q40=1,'3. Rate Classes'!C40, 0) -> 0 | D41: =IF(ISERROR(VLOOKUP($B41, '3. Rate Classes'!$C$24:$H$45,6,0)), "", VLOOKUP($B41, '3. Rate Classes'!$C$24:$H$45,6,0)) ->  | F41: =IF(ISERROR(VLOOKUP($B41,'3. Rate Classes'!$C$24:$N$45, 8,0)), "", VLOOKUP($B41,'3. Rate Classes'!$C$24:$N$45, 8,0)) ->  | H41: =VLOOKUP('9. Adj Network to Current WS'!$B41, '4. RRR Data'!$B$27:$M$49,11,0) -> 0 | J41: =VLOOKUP('9. Adj Network to Current WS'!$B41, '4. RRR Data'!$B$27:$M$49,12,0) -> 0 | P41: =IF(ISERROR('7. Current Wholesale'!$F$113*N41), "", '7. Current Wholesale'!$F$113*N41) -> 
B42: =IF('3. Rate Classes'!Q41=1,'3. Rate Classes'!C41, 0) -> 0 | D42: =IF(ISERROR(VLOOKUP($B42, '3. Rate Classes'!$C$24:$H$45,6,0)), "", VLOOKUP($B42, '3. Rate Classes'!$C$24:$H$45,6,0)) ->  | F42: =IF(ISERROR(VLOOKUP($B42,'3. Rate Classes'!$C$24:$N$45, 8,0)), "", VLOOKUP($B42,'3. Rate Classes'!$C$24:$N$45, 8,0)) ->  | H42: =VLOOKUP('9. Adj Network to Current WS'!$B42, '4. RRR Data'!$B$27:$M$49,11,0) -> 0 | J42: =VLOOKUP('9. Adj Network to Current WS'!$B42, '4. RRR Data'!$B$27:$M$49,12,0) -> 0 | P42: =IF(ISERROR('7. Current Wholesale'!$F$113*N42), "", '7. Current Wholesale'!$F$113*N42) -> 
B43: =IF('3. Rate Classes'!Q42=1,'3. Rate Classes'!C42, 0) -> 0 | D43: =IF(ISERROR(VLOOKUP($B43, '3. Rate Classes'!$C$24:$H$45,6,0)), "", VLOOKUP($B43, '3. Rate Classes'!$C$24:$H$45,6,0)) ->  | F43: =IF(ISERROR(VLOOKUP($B43,'3. Rate Classes'!$C$24:$N$45, 8,0)), "", VLOOKUP($B43,'3. Rate Classes'!$C$24:$N$45, 8,0)) ->  | H43: =VLOOKUP('9. Adj Network to Current WS'!$B43, '4. RRR Data'!$B$27:$M$49,11,0) -> 0 | J43: =VLOOKUP('9. Adj Network to Current WS'!$B43, '4. RRR Data'!$B$27:$M$49,12,0) -> 0 | P43: =IF(ISERROR('7. Current Wholesale'!$F$113*N43), "", '7. Current Wholesale'!$F$113*N43) -> 
B44: =IF('3. Rate Classes'!Q43=1,'3. Rate Classes'!C43, 0) -> 0 | D44: =IF(ISERROR(VLOOKUP($B44, '3. Rate Classes'!$C$24:$H$45,6,0)), "", VLOOKUP($B44, '3. Rate Classes'!$C$24:$H$45,6,0)) ->  | F44: =IF(ISERROR(VLOOKUP($B44,'3. Rate Classes'!$C$24:$N$45, 8,0)), "", VLOOKUP($B44,'3. Rate Classes'!$C$24:$N$45, 8,0)) ->  | H44: =VLOOKUP('9. Adj Network to Current WS'!$B44, '4. RRR Data'!$B$27:$M$49,11,0) -> 0 | J44: =VLOOKUP('9. Adj Network to Current WS'!$B44, '4. RRR Data'!$B$27:$M$49,12,0) -> 0 | P44: =IF(ISERROR('7. Current Wholesale'!$F$113*N44), "", '7. Current Wholesale'!$F$113*N44) -> 
B45: =IF('3. Rate Classes'!Q44=1,'3. Rate Classes'!C44, 0) -> 0 | D45: =IF(ISERROR(VLOOKUP($B45, '3. Rate Classes'!$C$24:$H$45,6,0)), "", VLOOKUP($B45, '3. Rate Classes'!$C$24:$H$45,6,0)) ->  | F45: =IF(ISERROR(VLOOKUP($B45,'3. Rate Classes'!$C$24:$N$45, 8,0)), "", VLOOKUP($B45,'3. Rate Classes'!$C$24:$N$45, 8,0)) ->  | H45: =VLOOKUP('9. Adj Network to Current WS'!$B45, '4. RRR Data'!$B$27:$M$49,11,0) -> 0 | J45: =VLOOKUP('9. Adj Network to Current WS'!$B45, '4. RRR Data'!$B$27:$M$49,12,0) -> 0 | P45: =IF(ISERROR('7. Current Wholesale'!$F$113*N45), "", '7. Current Wholesale'!$F$113*N45) -> 
B46: =IF('3. Rate Classes'!Q45=1,'3. Rate Classes'!C45, 0) -> 0 | D46: =IF(ISERROR(VLOOKUP($B46, '3. Rate Classes'!$C$24:$H$45,6,0)), "", VLOOKUP($B46, '3. Rate Classes'!$C$24:$H$45,6,0)) ->  | F46: =IF(ISERROR(VLOOKUP($B46,'3. Rate Classes'!$C$24:$N$45, 8,0)), "", VLOOKUP($B46,'3. Rate Classes'!$C$24:$N$45, 8,0)) ->  | H46: =VLOOKUP('9. Adj Network to Current WS'!$B46, '4. RRR Data'!$B$27:$M$49,11,0) -> 0 | J46: =VLOOKUP('9. Adj Network to Current WS'!$B46, '4. RRR Data'!$B$27:$M$49,12,0) -> 0 | P46: =IF(ISERROR('7. Current Wholesale'!$F$113*N46), "", '7. Current Wholesale'!$F$113*N46) -> 
L49: =SUM(L25:L46) -> 4191192.663

Sheet 10. Adj Conn. to Current WS
B13: The purpose of this sheet is to re-align the current RTS Connection Rates to recover current wholesale connection costs.
B22: Rate Class | D22: Unit | F22: Current RTSR-Connection | H22: Loss Adjusted Billed kWh | J22: Loss Adjusted Billed kW | L22: Billed Amount | N22: Billed Amount % | P22: Current Wholesale Billing | R22: Proposed RTSR Connection
B25: =IF('3. Rate Classes'!Q24=1,'3. Rate Classes'!C24, 0) -> Residential | D25: =IF(ISERROR(VLOOKUP($B25, '3. Rate Classes'!$C$24:$H$45,6,0)), "", VLOOKUP($B25, '3. Rate Classes'!$C$24:$H$45,6,0)) -> kWh | F25: =IF(ISERROR(VLOOKUP($B25,'3. Rate Classes'!$C$24:$N$45, 11,0)), "", VLOOKUP($B25,'3. Rate Classes'!$C$24:$N$45, 11,0)) -> 0.0051 | H25: =VLOOKUP('9. Adj Network to Current WS'!$B25, '4. RRR Data'!$B$27:$M$49,11,0) -> 141136888.9 | J25: =VLOOKUP('9. Adj Network to Current WS'!$B25, '4. RRR Data'!$B$27:$M$49,12,0) -> 0 | L25: =IF(F25="", "", IF(D25="kWh", F25*H25, F25*J25)) -> 719798.1335 | N25: =IF(ISERROR(L25/$L$49), "", L25/$L$49) -> 0.2349520782 | P25: =IF(ISERROR('7. Current Wholesale'!$P$117*N25), "", '7. Current Wholesale'!$P$117*N25) -> 741121.8168 | R25: =IF(D25="","",IF(D25="kWh",IF(H25<>0,P25/H25,),IF(J25<>0,P25/J25,0))) -> 0.005251085117
B26: =IF('3. Rate Classes'!Q25=1,'3. Rate Classes'!C25, 0) -> Residential - Hensall | D26: =IF(ISERROR(VLOOKUP($B26, '3. Rate Classes'!$C$24:$H$45,6,0)), "", VLOOKUP($B26, '3. Rate Classes'!$C$24:$H$45,6,0)) -> kWh | F26: =IF(ISERROR(VLOOKUP($B26,'3. Rate Classes'!$C$24:$N$45, 11,0)), "", VLOOKUP($B26,'3. Rate Classes'!$C$24:$N$45, 11,0)) -> 0.0051 | H26: =VLOOKUP('9. Adj Network to Current WS'!$B26, '4. RRR Data'!$B$27:$M$49,11,0) -> 3864123.339 | J26: =VLOOKUP('9. Adj Network to Current WS'!$B26, '4. RRR Data'!$B$27:$M$49,12,0) -> 0 | L26: 19707.02903 | N26: 0.006432647168 | P26: =IF(ISERROR('7. Current Wholesale'!$P$117*N26), "", '7. Current Wholesale'!$P$117*N26) -> 20290.84055 | R26: 0.005251085117
B27: =IF('3. Rate Classes'!Q26=1,'3. Rate Classes'!C26, 0) -> General Service Less Than 50 kW | D27: =IF(ISERROR(VLOOKUP($B27, '3. Rate Classes'!$C$24:$H$45,6,0)), "", VLOOKUP($B27, '3. Rate Classes'!$C$24:$H$45,6,0)) -> kWh | F27: =IF(ISERROR(VLOOKUP($B27,'3. Rate Classes'!$C$24:$N$45, 11,0)), "", VLOOKUP($B27,'3. Rate Classes'!$C$24:$N$45, 11,0)) -> 0.0047 | H27: =VLOOKUP('9. Adj Network to Current WS'!$B27, '4. RRR Data'!$B$27:$M$49,11,0) -> 66047247.97 | J27: =VLOOKUP('9. Adj Network to Current WS'!$B27, '4. RRR Data'!$B$27:$M$49,12,0) -> 0 | L27: 310422.0655 | N27: 0.1013260607 | P27: =IF(ISERROR('7. Current Wholesale'!$P$117*N27), "", '7. Current Wholesale'!$P$117*N27) -> 319618.1741 | R27: 0.004839235304
B28: =IF('3. Rate Classes'!Q27=1,'3. Rate Classes'!C27, 0) -> General Service 50 to 4,999 kW | D28: =IF(ISERROR(VLOOKUP($B28, '3. Rate Classes'!$C$24:$H$45,6,0)), "", VLOOKUP($B28, '3. Rate Classes'!$C$24:$H$45,6,0)) -> kW | F28: =IF(ISERROR(VLOOKUP($B28,'3. Rate Classes'!$C$24:$N$45, 11,0)), "", VLOOKUP($B28,'3. Rate Classes'!$C$24:$N$45, 11,0)) -> 1.8682 | H28: =VLOOKUP('9. Adj Network to Current WS'!$B28, '4. RRR Data'!$B$27:$M$49,11,0) -> 50294714.72 | J28: =VLOOKUP('9. Adj Network to Current WS'!$B28, '4. RRR Data'!$B$27:$M$49,12,0) -> 143816.928 | L28: 268678.7849 | N28: 0.08770047592 | P28: =IF(ISERROR('7. Current Wholesale'!$P$117*N28), "", '7. Current Wholesale'!$P$117*N28) -> 276638.2683 | R28: 1.923544552
B29: =IF('3. Rate Classes'!Q28=1,'3. Rate Classes'!C28, 0) -> General Service 50 to 999 kW - Interval Metered | D29: =IF(ISERROR(VLOOKUP($B29, '3. Rate Classes'!$C$24:$H$45,6,0)), "", VLOOKUP($B29, '3. Rate Classes'!$C$24:$H$45,6,0)) -> kW | F29: =IF(ISERROR(VLOOKUP($B29,'3. Rate Classes'!$C$24:$N$45, 11,0)), "", VLOOKUP($B29,'3. Rate Classes'!$C$24:$N$45, 11,0)) -> 2.0481 | H29: =VLOOKUP('9. Adj Network to Current WS'!$B29, '4. RRR Data'!$B$27:$M$49,11,0) -> 311537765.3 | J29: =VLOOKUP('9. Adj Network to Current WS'!$B29, '4. RRR Data'!$B$27:$M$49,12,0) -> 802347.072 | L29: 1643287.038 | N29: 0.5363916447 | P29: =IF(ISERROR('7. Current Wholesale'!$P$117*N29), "", '7. Current Wholesale'!$P$117*N29) -> 1691968.649 | R29: 2.108774005
B30: =IF('3. Rate Classes'!Q29=1,'3. Rate Classes'!C29, 0) -> Large Use | D30: =IF(ISERROR(VLOOKUP($B30, '3. Rate Classes'!$C$24:$H$45,6,0)), "", VLOOKUP($B30, '3. Rate Classes'!$C$24:$H$45,6,0)) -> kW | F30: =IF(ISERROR(VLOOKUP($B30,'3. Rate Classes'!$C$24:$N$45, 11,0)), "", VLOOKUP($B30,'3. Rate Classes'!$C$24:$N$45, 11,0)) -> 2.3422 | H30: =VLOOKUP('9. Adj Network to Current WS'!$B30, '4. RRR Data'!$B$27:$M$49,11,0) -> 22191326 | J30: =VLOOKUP('9. Adj Network to Current WS'!$B30, '4. RRR Data'!$B$27:$M$49,12,0) -> 34422 | L30: 80623.2084 | N30: 0.02631653165 | P30: =IF(ISERROR('7. Current Wholesale'!$P$117*N30), "", '7. Current Wholesale'!$P$117*N30) -> 83011.63328 | R30: 2.411586581
B31: =IF('3. Rate Classes'!Q30=1,'3. Rate Classes'!C30, 0) -> Unmetered Scattered Load | D31: =IF(ISERROR(VLOOKUP($B31, '3. Rate Classes'!$C$24:$H$45,6,0)), "", VLOOKUP($B31, '3. Rate Classes'!$C$24:$H$45,6,0)) -> kWh | F31: =IF(ISERROR(VLOOKUP($B31,'3. Rate Classes'!$C$24:$N$45, 11,0)), "", VLOOKUP($B31,'3. Rate Classes'!$C$24:$N$45, 11,0)) -> 0.0047 | H31: =VLOOKUP('9. Adj Network to Current WS'!$B31, '4. RRR Data'!$B$27:$M$49,11,0) -> 680201.1397 | J31: =VLOOKUP('9. Adj Network to Current WS'!$B31, '4. RRR Data'!$B$27:$M$49,12,0) -> 0 | L31: 3196.945357 | N31: 0.001043527234 | P31: =IF(ISERROR('7. Current Wholesale'!$P$117*N31), "", '7. Current Wholesale'!$P$117*N31) -> 3291.653369 | R31: 0.004839235304
B32: =IF('3. Rate Classes'!Q31=1,'3. Rate Classes'!C31, 0) -> Sentinel Lighting | D32: =IF(ISERROR(VLOOKUP($B32, '3. Rate Classes'!$C$24:$H$45,6,0)), "", VLOOKUP($B32, '3. Rate Classes'!$C$24:$H$45,6,0)) -> kW | F32: =IF(ISERROR(VLOOKUP($B32,'3. Rate Classes'!$C$24:$N$45, 11,0)), "", VLOOKUP($B32,'3. Rate Classes'!$C$24:$N$45, 11,0)) -> 1.4746 | H32: =VLOOKUP('9. Adj Network to Current WS'!$B32, '4. RRR Data'!$B$27:$M$49,11,0) -> 150156 | J32: =VLOOKUP('9. Adj Network to Current WS'!$B32, '4. RRR Data'!$B$27:$M$49,12,0) -> 356 | L32: 524.9576 | N32: 0.00017135343 | P32: =IF(ISERROR('7. Current Wholesale'!$P$117*N32), "", '7. Current Wholesale'!$P$117*N32) -> 540.5092236 | R32: 1.518284336
B33: =IF('3. Rate Classes'!Q32=1,'3. Rate Classes'!C32, 0) -> Street Lighting | D33: =IF(ISERROR(VLOOKUP($B33, '3. Rate Classes'!$C$24:$H$45,6,0)), "", VLOOKUP($B33, '3. Rate Classes'!$C$24:$H$45,6,0)) -> kW | F33: =IF(ISERROR(VLOOKUP($B33,'3. Rate Classes'!$C$24:$N$45, 11,0)), "", VLOOKUP($B33,'3. Rate Classes'!$C$24:$N$45, 11,0)) -> 1.4444 | H33: =VLOOKUP('9. Adj Network to Current WS'!$B33, '4. RRR Data'!$B$27:$M$49,11,0) -> 4559343 | J33: =VLOOKUP('9. Adj Network to Current WS'!$B33, '4. RRR Data'!$B$27:$M$49,12,0) -> 12017 | L33: 17357.3548 | N33: 0.005665680963 | P33: =IF(ISERROR('7. Current Wholesale'!$P$117*N33), "", '7. Current Wholesale'!$P$117*N33) -> 17871.55833 | R33: 1.487189675
B34: =IF('3. Rate Classes'!Q33=1,'3. Rate Classes'!C33, 0) -> 0 | D34: =IF(ISERROR(VLOOKUP($B34, '3. Rate Classes'!$C$24:$H$45,6,0)), "", VLOOKUP($B34, '3. Rate Classes'!$C$24:$H$45,6,0)) ->  | F34: =IF(ISERROR(VLOOKUP($B34,'3. Rate Classes'!$C$24:$N$45, 11,0)), "", VLOOKUP($B34,'3. Rate Classes'!$C$24:$N$45, 11,0)) ->  | H34: =VLOOKUP('9. Adj Network to Current WS'!$B34, '4. RRR Data'!$B$27:$M$49,11,0) -> 0 | J34: =VLOOKUP('9. Adj Network to Current WS'!$B34, '4. RRR Data'!$B$27:$M$49,12,0) -> 0 | P34: =IF(ISERROR('7. Current Wholesale'!$P$117*N34), "", '7. Current Wholesale'!$P$117*N34) -> 
B35: =IF('3. Rate Classes'!Q34=1,'3. Rate Classes'!C34, 0) -> 0 | D35: =IF(ISERROR(VLOOKUP($B35, '3. Rate Classes'!$C$24:$H$45,6,0)), "", VLOOKUP($B35, '3. Rate Classes'!$C$24:$H$45,6,0)) ->  | F35: =IF(ISERROR(VLOOKUP($B35,'3. Rate Classes'!$C$24:$N$45, 11,0)), "", VLOOKUP($B35,'3. Rate Classes'!$C$24:$N$45, 11,0)) ->  | H35: =VLOOKUP('9. Adj Network to Current WS'!$B35, '4. RRR Data'!$B$27:$M$49,11,0) -> 0 | J35: =VLOOKUP('9. Adj Network to Current WS'!$B35, '4. RRR Data'!$B$27:$M$49,12,0) -> 0 | P35: =IF(ISERROR('7. Current Wholesale'!$P$117*N35), "", '7. Current Wholesale'!$P$117*N35) -> 
B36: =IF('3. Rate Classes'!Q35=1,'3. Rate Classes'!C35, 0) -> 0 | D36: =IF(ISERROR(VLOOKUP($B36, '3. Rate Classes'!$C$24:$H$45,6,0)), "", VLOOKUP($B36, '3. Rate Classes'!$C$24:$H$45,6,0)) ->  | F36: =IF(ISERROR(VLOOKUP($B36,'3. Rate Classes'!$C$24:$N$45, 11,0)), "", VLOOKUP($B36,'3. Rate Classes'!$C$24:$N$45, 11,0)) ->  | H36: =VLOOKUP('9. Adj Network to Current WS'!$B36, '4. RRR Data'!$B$27:$M$49,11,0) -> 0 | J36: =VLOOKUP('9. Adj Network to Current WS'!$B36, '4. RRR Data'!$B$27:$M$49,12,0) -> 0 | P36: =IF(ISERROR('7. Current Wholesale'!$P$117*N36), "", '7. Current Wholesale'!$P$117*N36) -> 
B37: =IF('3. Rate Classes'!Q36=1,'3. Rate Classes'!C36, 0) -> 0 | D37: =IF(ISERROR(VLOOKUP($B37, '3. Rate Classes'!$C$24:$H$45,6,0)), "", VLOOKUP($B37, '3. Rate Classes'!$C$24:$H$45,6,0)) ->  | F37: =IF(ISERROR(VLOOKUP($B37,'3. Rate Classes'!$C$24:$N$45, 11,0)), "", VLOOKUP($B37,'3. Rate Classes'!$C$24:$N$45, 11,0)) ->  | H37: =VLOOKUP('9. Adj Network to Current WS'!$B37, '4. RRR Data'!$B$27:$M$49,11,0) -> 0 | J37: =VLOOKUP('9. Adj Network to Current WS'!$B37, '4. RRR Data'!$B$27:$M$49,12,0) -> 0 | P37: =IF(ISERROR('7. Current Wholesale'!$P$117*N37), "", '7. Current Wholesale'!$P$117*N37) -> 
B38: =IF('3. Rate Classes'!Q37=1,'3. Rate Classes'!C37, 0) -> 0 | D38: =IF(ISERROR(VLOOKUP($B38, '3. Rate Classes'!$C$24:$H$45,6,0)), "", VLOOKUP($B38, '3. Rate Classes'!$C$24:$H$45,6,0)) ->  | F38: =IF(ISERROR(VLOOKUP($B38,'3. Rate Classes'!$C$24:$N$45, 11,0)), "", VLOOKUP($B38,'3. Rate Classes'!$C$24:$N$45, 11,0)) ->  | H38: =VLOOKUP('9. Adj Network to Current WS'!$B38, '4. RRR Data'!$B$27:$M$49,11,0) -> 0 | J38: =VLOOKUP('9. Adj Network to Current WS'!$B38, '4. RRR Data'!$B$27:$M$49,12,0) -> 0 | P38: =IF(ISERROR('7. Current Wholesale'!$P$117*N38), "", '7. Current Wholesale'!$P$117*N38) -> 
B39: =IF('3. Rate Classes'!Q38=1,'3. Rate Classes'!C38, 0) -> 0 | D39: =IF(ISERROR(VLOOKUP($B39, '3. Rate Classes'!$C$24:$H$45,6,0)), "", VLOOKUP($B39, '3. Rate Classes'!$C$24:$H$45,6,0)) ->  | F39: =IF(ISERROR(VLOOKUP($B39,'3. Rate Classes'!$C$24:$N$45, 11,0)), "", VLOOKUP($B39,'3. Rate Classes'!$C$24:$N$45, 11,0)) ->  | H39: =VLOOKUP('9. Adj Network to Current WS'!$B39, '4. RRR Data'!$B$27:$M$49,11,0) -> 0 | J39: =VLOOKUP('9. Adj Network to Current WS'!$B39, '4. RRR Data'!$B$27:$M$49,12,0) -> 0 | P39: =IF(ISERROR('7. Current Wholesale'!$P$117*N39), "", '7. Current Wholesale'!$P$117*N39) -> 
B40: =IF('3. Rate Classes'!Q39=1,'3. Rate Classes'!C39, 0) -> 0 | D40: =IF(ISERROR(VLOOKUP($B40, '3. Rate Classes'!$C$24:$H$45,6,0)), "", VLOOKUP($B40, '3. Rate Classes'!$C$24:$H$45,6,0)) ->  | F40: =IF(ISERROR(VLOOKUP($B40,'3. Rate Classes'!$C$24:$N$45, 11,0)), "", VLOOKUP($B40,'3. Rate Classes'!$C$24:$N$45, 11,0)) ->  | H40: =VLOOKUP('9. Adj Network to Current WS'!$B40, '4. RRR Data'!$B$27:$M$49,11,0) -> 0 | J40: =VLOOKUP('9. Adj Network to Current WS'!$B40, '4. RRR Data'!$B$27:$M$49,12,0) -> 0 | P40: =IF(ISERROR('7. Current Wholesale'!$P$117*N40), "", '7. Current Wholesale'!$P$117*N40) -> 
B41: =IF('3. Rate Classes'!Q40=1,'3. Rate Classes'!C40, 0) -> 0 | D41: =IF(ISERROR(VLOOKUP($B41, '3. Rate Classes'!$C$24:$H$45,6,0)), "", VLOOKUP($B41, '3. Rate Classes'!$C$24:$H$45,6,0)) ->  | F41: =IF(ISERROR(VLOOKUP($B41,'3. Rate Classes'!$C$24:$N$45, 11,0)), "", VLOOKUP($B41,'3. Rate Classes'!$C$24:$N$45, 11,0)) ->  | H41: =VLOOKUP('9. Adj Network to Current WS'!$B41, '4. RRR Data'!$B$27:$M$49,11,0) -> 0 | J41: =VLOOKUP('9. Adj Network to Current WS'!$B41, '4. RRR Data'!$B$27:$M$49,12,0) -> 0 | P41: =IF(ISERROR('7. Current Wholesale'!$P$117*N41), "", '7. Current Wholesale'!$P$117*N41) -> 
B42: =IF('3. Rate Classes'!Q41=1,'3. Rate Classes'!C41, 0) -> 0 | D42: =IF(ISERROR(VLOOKUP($B42, '3. Rate Classes'!$C$24:$H$45,6,0)), "", VLOOKUP($B42, '3. Rate Classes'!$C$24:$H$45,6,0)) ->  | F42: =IF(ISERROR(VLOOKUP($B42,'3. Rate Classes'!$C$24:$N$45, 11,0)), "", VLOOKUP($B42,'3. Rate Classes'!$C$24:$N$45, 11,0)) ->  | H42: =VLOOKUP('9. Adj Network to Current WS'!$B42, '4. RRR Data'!$B$27:$M$49,11,0) -> 0 | J42: =VLOOKUP('9. Adj Network to Current WS'!$B42, '4. RRR Data'!$B$27:$M$49,12,0) -> 0 | P42: =IF(ISERROR('7. Current Wholesale'!$P$117*N42), "", '7. Current Wholesale'!$P$117*N42) -> 
B43: =IF('3. Rate Classes'!Q42=1,'3. Rate Classes'!C42, 0) -> 0 | D43: =IF(ISERROR(VLOOKUP($B43, '3. Rate Classes'!$C$24:$H$45,6,0)), "", VLOOKUP($B43, '3. Rate Classes'!$C$24:$H$45,6,0)) ->  | F43: =IF(ISERROR(VLOOKUP($B43,'3. Rate Classes'!$C$24:$N$45, 11,0)), "", VLOOKUP($B43,'3. Rate Classes'!$C$24:$N$45, 11,0)) ->  | H43: =VLOOKUP('9. Adj Network to Current WS'!$B43, '4. RRR Data'!$B$27:$M$49,11,0) -> 0 | J43: =VLOOKUP('9. Adj Network to Current WS'!$B43, '4. RRR Data'!$B$27:$M$49,12,0) -> 0 | P43: =IF(ISERROR('7. Current Wholesale'!$P$117*N43), "", '7. Current Wholesale'!$P$117*N43) -> 
B44: =IF('3. Rate Classes'!Q43=1,'3. Rate Classes'!C43, 0) -> 0 | D44: =IF(ISERROR(VLOOKUP($B44, '3. Rate Classes'!$C$24:$H$45,6,0)), "", VLOOKUP($B44, '3. Rate Classes'!$C$24:$H$45,6,0)) ->  | F44: =IF(ISERROR(VLOOKUP($B44,'3. Rate Classes'!$C$24:$N$45, 11,0)), "", VLOOKUP($B44,'3. Rate Classes'!$C$24:$N$45, 11,0)) ->  | H44: =VLOOKUP('9. Adj Network to Current WS'!$B44, '4. RRR Data'!$B$27:$M$49,11,0) -> 0 | J44: =VLOOKUP('9. Adj Network to Current WS'!$B44, '4. RRR Data'!$B$27:$M$49,12,0) -> 0 | P44: =IF(ISERROR('7. Current Wholesale'!$P$117*N44), "", '7. Current Wholesale'!$P$117*N44) -> 
B45: =IF('3. Rate Classes'!Q44=1,'3. Rate Classes'!C44, 0) -> 0 | D45: =IF(ISERROR(VLOOKUP($B45, '3. Rate Classes'!$C$24:$H$45,6,0)), "", VLOOKUP($B45, '3. Rate Classes'!$C$24:$H$45,6,0)) ->  | F45: =IF(ISERROR(VLOOKUP($B45,'3. Rate Classes'!$C$24:$N$45, 11,0)), "", VLOOKUP($B45,'3. Rate Classes'!$C$24:$N$45, 11,0)) ->  | H45: =VLOOKUP('9. Adj Network to Current WS'!$B45, '4. RRR Data'!$B$27:$M$49,11,0) -> 0 | J45: =VLOOKUP('9. Adj Network to Current WS'!$B45, '4. RRR Data'!$B$27:$M$49,12,0) -> 0 | P45: =IF(ISERROR('7. Current Wholesale'!$P$117*N45), "", '7. Current Wholesale'!$P$117*N45) -> 
B46: =IF('3. Rate Classes'!Q45=1,'3. Rate Classes'!C45, 0) -> 0 | D46: =IF(ISERROR(VLOOKUP($B46, '3. Rate Classes'!$C$24:$H$45,6,0)), "", VLOOKUP($B46, '3. Rate Classes'!$C$24:$H$45,6,0)) ->  | F46: =IF(ISERROR(VLOOKUP($B46,'3. Rate Classes'!$C$24:$N$45, 11,0)), "", VLOOKUP($B46,'3. Rate Classes'!$C$24:$N$45, 11,0)) ->  | H46: =VLOOKUP('9. Adj Network to Current WS'!$B46, '4. RRR Data'!$B$27:$M$49,11,0) -> 0 | J46: =VLOOKUP('9. Adj Network to Current WS'!$B46, '4. RRR Data'!$B$27:$M$49,12,0) -> 0 | P46: =IF(ISERROR('7. Current Wholesale'!$P$117*N46), "", '7. Current Wholesale'!$P$117*N46) -> 
L49: =SUM(L25:L46) -> 3063595.517

Sheet 11. Adj Network to Forecast WS
B13: The purpose of this sheet is to update the re-align RTS Network Rates to recover forecast wholesale network costs.
B22: Rate Class | D22: Unit | F22: Adjusted RTSR-Network | H22: Loss Adjusted Billed kWh | J22: Loss Adjusted Billed kW | L22: Billed Amount | N22: Billed Amount % | P22: Forecast Wholesale Billing | R22: Proposed RTSR Network
B25: =IF('3. Rate Classes'!Q24=1,'3. Rate Classes'!C24, 0) -> Residential | D25: =IF(ISERROR(VLOOKUP($B25, '3. Rate Classes'!$C$24:$H$45,6,0)), "", VLOOKUP($B25, '3. Rate Classes'!$C$24:$H$45,6,0)) -> kWh | F25: =VLOOKUP($B25, '9. Adj Network to Current WS'!$B$25:$R$47, 17,0) -> 0.007283403625 | H25: =VLOOKUP('9. Adj Network to Current WS'!$B25, '4. RRR Data'!$B$27:$M$49,11,0) -> 141136888.9 | J25: =VLOOKUP('9. Adj Network to Current WS'!$B25, '4. RRR Data'!$B$27:$M$49,12,0) -> 0 | L25: =IF(F25="", "", IF(D25="kWh", F25*H25, F25*J25)) -> 1027956.928 | N25: =IF(ISERROR(L25/$L$49), "", L25/$L$49) -> 0.2424573819 | P25: =IF(ISERROR('8. Forecast Wholesale'!$F$113*N25), "", '8. Forecast Wholesale'!$F$113*N25) -> 1032329.697 | R25: =IF(D25="","",IF(D25="kWh",IF(H25<>0,P25/H25,),IF(J25<>0,P25/J25,0))) -> 0.007314386091
B26: =IF('3. Rate Classes'!Q25=1,'3. Rate Classes'!C25, 0) -> Residential - Hensall | D26: =IF(ISERROR(VLOOKUP($B26, '3. Rate Classes'!$C$24:$H$45,6,0)), "", VLOOKUP($B26, '3. Rate Classes'!$C$24:$H$45,6,0)) -> kWh | F26: =VLOOKUP($B26, '9. Adj Network to Current WS'!$B$25:$R$47, 17,0) -> 0.007283403625 | H26: =VLOOKUP('9. Adj Network to Current WS'!$B26, '4. RRR Data'!$B$27:$M$49,11,0) -> 3864123.339 | J26: =VLOOKUP('9. Adj Network to Current WS'!$B26, '4. RRR Data'!$B$27:$M$49,12,0) -> 0 | L26: =IF(F26="", "", IF(D26="kWh", F26*H26, F26*J26)) -> 28143.96993 | N26: 0.006638131499 | P26: =IF(ISERROR('8. Forecast Wholesale'!$F$113*N26), "", '8. Forecast Wholesale'!$F$113*N26) -> 28263.69 | R26: 0.007314386091
B27: =IF('3. Rate Classes'!Q26=1,'3. Rate Classes'!C26, 0) -> General Service Less Than 50 kW | D27: =IF(ISERROR(VLOOKUP($B27, '3. Rate Classes'!$C$24:$H$45,6,0)), "", VLOOKUP($B27, '3. Rate Classes'!$C$24:$H$45,6,0)) -> kWh | F27: =VLOOKUP($B27, '9. Adj Network to Current WS'!$B$25:$R$47, 17,0) -> 0.006271819788 | H27: =VLOOKUP('9. Adj Network to Current WS'!$B27, '4. RRR Data'!$B$27:$M$49,11,0) -> 66047247.97 | J27: =VLOOKUP('9. Adj Network to Current WS'!$B27, '4. RRR Data'!$B$27:$M$49,12,0) -> 0 | L27: 414236.4368 | N27: 0.09770320057 | P27: =IF(ISERROR('8. Forecast Wholesale'!$F$113*N27), "", '8. Forecast Wholesale'!$F$113*N27) -> 415998.5341 | R27: 0.006298499134
B28: =IF('3. Rate Classes'!Q27=1,'3. Rate Classes'!C27, 0) -> General Service 50 to 4,999 kW | D28: =IF(ISERROR(VLOOKUP($B28, '3. Rate Classes'!$C$24:$H$45,6,0)), "", VLOOKUP($B28, '3. Rate Classes'!$C$24:$H$45,6,0)) -> kW | F28: =VLOOKUP($B28, '9. Adj Network to Current WS'!$B$25:$R$47, 17,0) -> 2.643875516 | H28: =VLOOKUP('9. Adj Network to Current WS'!$B28, '4. RRR Data'!$B$27:$M$49,11,0) -> 50294714.72 | J28: =VLOOKUP('9. Adj Network to Current WS'!$B28, '4. RRR Data'!$B$27:$M$49,12,0) -> 143816.928 | L28: 380234.0547 | N28: 0.08968328426 | P28: =IF(ISERROR('8. Forecast Wholesale'!$F$113*N28), "", '8. Forecast Wholesale'!$F$113*N28) -> 381851.5112 | R28: 2.655122151
B29: =IF('3. Rate Classes'!Q28=1,'3. Rate Classes'!C28, 0) -> General Service 50 to 999 kW - Interval Metered | D29: =IF(ISERROR(VLOOKUP($B29, '3. Rate Classes'!$C$24:$H$45,6,0)), "", VLOOKUP($B29, '3. Rate Classes'!$C$24:$H$45,6,0)) -> kW | F29: =VLOOKUP($B29, '9. Adj Network to Current WS'!$B$25:$R$47, 17,0) -> 2.808257889 | H29: =VLOOKUP('9. Adj Network to Current WS'!$B29, '4. RRR Data'!$B$27:$M$49,11,0) -> 311537765.3 | J29: =VLOOKUP('9. Adj Network to Current WS'!$B29, '4. RRR Data'!$B$27:$M$49,12,0) -> 802347.072 | L29: 2253197.495 | N29: 0.5314467469 | P29: =IF(ISERROR('8. Forecast Wholesale'!$F$113*N29), "", '8. Forecast Wholesale'!$F$113*N29) -> 2262782.247 | R29: 2.820203782
B30: =IF('3. Rate Classes'!Q29=1,'3. Rate Classes'!C29, 0) -> Large Use | D30: =IF(ISERROR(VLOOKUP($B30, '3. Rate Classes'!$C$24:$H$45,6,0)), "", VLOOKUP($B30, '3. Rate Classes'!$C$24:$H$45,6,0)) -> kW | F30: =VLOOKUP($B30, '9. Adj Network to Current WS'!$B$25:$R$47, 17,0) -> 3.109406397 | H30: =VLOOKUP('9. Adj Network to Current WS'!$B30, '4. RRR Data'!$B$27:$M$49,11,0) -> 22191326 | J30: =VLOOKUP('9. Adj Network to Current WS'!$B30, '4. RRR Data'!$B$27:$M$49,12,0) -> 34422 | L30: 107031.987 | N30: 0.0252449248 | P30: =IF(ISERROR('8. Forecast Wholesale'!$F$113*N30), "", '8. Forecast Wholesale'!$F$113*N30) -> 107487.2844 | R30: 3.122633329
B31: =IF('3. Rate Classes'!Q30=1,'3. Rate Classes'!C30, 0) -> Unmetered Scattered Load | D31: =IF(ISERROR(VLOOKUP($B31, '3. Rate Classes'!$C$24:$H$45,6,0)), "", VLOOKUP($B31, '3. Rate Classes'!$C$24:$H$45,6,0)) -> kWh | F31: =VLOOKUP($B31, '9. Adj Network to Current WS'!$B$25:$R$47, 17,0) -> 0.006271819788 | H31: =VLOOKUP('9. Adj Network to Current WS'!$B31, '4. RRR Data'!$B$27:$M$49,11,0) -> 680201.1397 | J31: =VLOOKUP('9. Adj Network to Current WS'!$B31, '4. RRR Data'!$B$27:$M$49,12,0) -> 0 | L31: 4266.098968 | N31: 0.001006216465 | P31: =IF(ISERROR('8. Forecast Wholesale'!$F$113*N31), "", '8. Forecast Wholesale'!$F$113*N31) -> 4284.246289 | R31: 0.006298499134
B32: =IF('3. Rate Classes'!Q31=1,'3. Rate Classes'!C31, 0) -> Sentinel Lighting | D32: =IF(ISERROR(VLOOKUP($B32, '3. Rate Classes'!$C$24:$H$45,6,0)), "", VLOOKUP($B32, '3. Rate Classes'!$C$24:$H$45,6,0)) -> kW | F32: =VLOOKUP($B32, '9. Adj Network to Current WS'!$B$25:$R$47, 17,0) -> 2.004149897 | H32: =VLOOKUP('9. Adj Network to Current WS'!$B32, '4. RRR Data'!$B$27:$M$49,11,0) -> 150156 | J32: =VLOOKUP('9. Adj Network to Current WS'!$B32, '4. RRR Data'!$B$27:$M$49,12,0) -> 356 | L32: 713.4773635 | N32: 0.000168283173 | P32: =IF(ISERROR('8. Forecast Wholesale'!$F$113*N32), "", '8. Forecast Wholesale'!$F$113*N32) -> 716.5123852 | R32: 2.012675239
B33: =IF('3. Rate Classes'!Q32=1,'3. Rate Classes'!C32, 0) -> Street Lighting | D33: =IF(ISERROR(VLOOKUP($B33, '3. Rate Classes'!$C$24:$H$45,6,0)), "", VLOOKUP($B33, '3. Rate Classes'!$C$24:$H$45,6,0)) -> kW | F33: =VLOOKUP($B33, '9. Adj Network to Current WS'!$B$25:$R$47, 17,0) -> 1.994034059 | H33: =VLOOKUP('9. Adj Network to Current WS'!$B33, '4. RRR Data'!$B$27:$M$49,11,0) -> 4559343 | J33: =VLOOKUP('9. Adj Network to Current WS'!$B33, '4. RRR Data'!$B$27:$M$49,12,0) -> 12017 | L33: 23962.30729 | N33: 0.00565183047 | P33: =IF(ISERROR('8. Forecast Wholesale'!$F$113*N33), "", '8. Forecast Wholesale'!$F$113*N33) -> 24064.23922 | R33: 2.00251637
B34: =IF('3. Rate Classes'!Q33=1,'3. Rate Classes'!C33, 0) -> 0 | D34: =IF(ISERROR(VLOOKUP($B34, '3. Rate Classes'!$C$24:$H$45,6,0)), "", VLOOKUP($B34, '3. Rate Classes'!$C$24:$H$45,6,0)) ->  | F34: =VLOOKUP($B34, '9. Adj Network to Current WS'!$B$25:$R$47, 17,0) ->  | H34: =VLOOKUP('9. Adj Network to Current WS'!$B34, '4. RRR Data'!$B$27:$M$49,11,0) -> 0 | J34: =VLOOKUP('9. Adj Network to Current WS'!$B34, '4. RRR Data'!$B$27:$M$49,12,0) -> 0 | P34: =IF(ISERROR('8. Forecast Wholesale'!$F$113*N34), "", '8. Forecast Wholesale'!$F$113*N34) -> 
B35: =IF('3. Rate Classes'!Q34=1,'3. Rate Classes'!C34, 0) -> 0 | D35: =IF(ISERROR(VLOOKUP($B35, '3. Rate Classes'!$C$24:$H$45,6,0)), "", VLOOKUP($B35, '3. Rate Classes'!$C$24:$H$45,6,0)) ->  | F35: =VLOOKUP($B35, '9. Adj Network to Current WS'!$B$25:$R$47, 17,0) ->  | H35: =VLOOKUP('9. Adj Network to Current WS'!$B35, '4. RRR Data'!$B$27:$M$49,11,0) -> 0 | J35: =VLOOKUP('9. Adj Network to Current WS'!$B35, '4. RRR Data'!$B$27:$M$49,12,0) -> 0 | P35: =IF(ISERROR('8. Forecast Wholesale'!$F$113*N35), "", '8. Forecast Wholesale'!$F$113*N35) -> 
B36: =IF('3. Rate Classes'!Q35=1,'3. Rate Classes'!C35, 0) -> 0 | D36: =IF(ISERROR(VLOOKUP($B36, '3. Rate Classes'!$C$24:$H$45,6,0)), "", VLOOKUP($B36, '3. Rate Classes'!$C$24:$H$45,6,0)) ->  | F36: =VLOOKUP($B36, '9. Adj Network to Current WS'!$B$25:$R$47, 17,0) ->  | H36: =VLOOKUP('9. Adj Network to Current WS'!$B36, '4. RRR Data'!$B$27:$M$49,11,0) -> 0 | J36: =VLOOKUP('9. Adj Network to Current WS'!$B36, '4. RRR Data'!$B$27:$M$49,12,0) -> 0 | P36: =IF(ISERROR('8. Forecast Wholesale'!$F$113*N36), "", '8. Forecast Wholesale'!$F$113*N36) -> 
B37: =IF('3. Rate Classes'!Q36=1,'3. Rate Classes'!C36, 0) -> 0 | D37: =IF(ISERROR(VLOOKUP($B37, '3. Rate Classes'!$C$24:$H$45,6,0)), "", VLOOKUP($B37, '3. Rate Classes'!$C$24:$H$45,6,0)) ->  | F37: =VLOOKUP($B37, '9. Adj Network to Current WS'!$B$25:$R$47, 17,0) ->  | H37: =VLOOKUP('9. Adj Network to Current WS'!$B37, '4. RRR Data'!$B$27:$M$49,11,0) -> 0 | J37: =VLOOKUP('9. Adj Network to Current WS'!$B37, '4. RRR Data'!$B$27:$M$49,12,0) -> 0 | P37: =IF(ISERROR('8. Forecast Wholesale'!$F$113*N37), "", '8. Forecast Wholesale'!$F$113*N37) -> 
B38: =IF('3. Rate Classes'!Q37=1,'3. Rate Classes'!C37, 0) -> 0 | D38: =IF(ISERROR(VLOOKUP($B38, '3. Rate Classes'!$C$24:$H$45,6,0)), "", VLOOKUP($B38, '3. Rate Classes'!$C$24:$H$45,6,0)) ->  | F38: =VLOOKUP($B38, '9. Adj Network to Current WS'!$B$25:$R$47, 17,0) ->  | H38: =VLOOKUP('9. Adj Network to Current WS'!$B38, '4. RRR Data'!$B$27:$M$49,11,0) -> 0 | J38: =VLOOKUP('9. Adj Network to Current WS'!$B38, '4. RRR Data'!$B$27:$M$49,12,0) -> 0 | P38: =IF(ISERROR('8. Forecast Wholesale'!$F$113*N38), "", '8. Forecast Wholesale'!$F$113*N38) -> 
B39: =IF('3. Rate Classes'!Q38=1,'3. Rate Classes'!C38, 0) -> 0 | D39: =IF(ISERROR(VLOOKUP($B39, '3. Rate Classes'!$C$24:$H$45,6,0)), "", VLOOKUP($B39, '3. Rate Classes'!$C$24:$H$45,6,0)) ->  | F39: =VLOOKUP($B39, '9. Adj Network to Current WS'!$B$25:$R$47, 17,0) ->  | H39: =VLOOKUP('9. Adj Network to Current WS'!$B39, '4. RRR Data'!$B$27:$M$49,11,0) -> 0 | J39: =VLOOKUP('9. Adj Network to Current WS'!$B39, '4. RRR Data'!$B$27:$M$49,12,0) -> 0 | P39: =IF(ISERROR('8. Forecast Wholesale'!$F$113*N39), "", '8. Forecast Wholesale'!$F$113*N39) -> 
B40: =IF('3. Rate Classes'!Q39=1,'3. Rate Classes'!C39, 0) -> 0 | D40: =IF(ISERROR(VLOOKUP($B40, '3. Rate Classes'!$C$24:$H$45,6,0)), "", VLOOKUP($B40, '3. Rate Classes'!$C$24:$H$45,6,0)) ->  | F40: =VLOOKUP($B40, '9. Adj Network to Current WS'!$B$25:$R$47, 17,0) ->  | H40: =VLOOKUP('9. Adj Network to Current WS'!$B40, '4. RRR Data'!$B$27:$M$49,11,0) -> 0 | J40: =VLOOKUP('9. Adj Network to Current WS'!$B40, '4. RRR Data'!$B$27:$M$49,12,0) -> 0 | P40: =IF(ISERROR('8. Forecast Wholesale'!$F$113*N40), "", '8. Forecast Wholesale'!$F$113*N40) -> 
B41: =IF('3. Rate Classes'!Q40=1,'3. Rate Classes'!C40, 0) -> 0 | D41: =IF(ISERROR(VLOOKUP($B41, '3. Rate Classes'!$C$24:$H$45,6,0)), "", VLOOKUP($B41, '3. Rate Classes'!$C$24:$H$45,6,0)) ->  | F41: =VLOOKUP($B41, '9. Adj Network to Current WS'!$B$25:$R$47, 17,0) ->  | H41: =VLOOKUP('9. Adj Network to Current WS'!$B41, '4. RRR Data'!$B$27:$M$49,11,0) -> 0 | J41: =VLOOKUP('9. Adj Network to Current WS'!$B41, '4. RRR Data'!$B$27:$M$49,12,0) -> 0 | P41: =IF(ISERROR('8. Forecast Wholesale'!$F$113*N41), "", '8. Forecast Wholesale'!$F$113*N41) -> 
B42: =IF('3. Rate Classes'!Q41=1,'3. Rate Classes'!C41, 0) -> 0 | D42: =IF(ISERROR(VLOOKUP($B42, '3. Rate Classes'!$C$24:$H$45,6,0)), "", VLOOKUP($B42, '3. Rate Classes'!$C$24:$H$45,6,0)) ->  | F42: =VLOOKUP($B42, '9. Adj Network to Current WS'!$B$25:$R$47, 17,0) ->  | H42: =VLOOKUP('9. Adj Network to Current WS'!$B42, '4. RRR Data'!$B$27:$M$49,11,0) -> 0 | J42: =VLOOKUP('9. Adj Network to Current WS'!$B42, '4. RRR Data'!$B$27:$M$49,12,0) -> 0 | P42: =IF(ISERROR('8. Forecast Wholesale'!$F$113*N42), "", '8. Forecast Wholesale'!$F$113*N42) -> 
B43: =IF('3. Rate Classes'!Q42=1,'3. Rate Classes'!C42, 0) -> 0 | D43: =IF(ISERROR(VLOOKUP($B43, '3. Rate Classes'!$C$24:$H$45,6,0)), "", VLOOKUP($B43, '3. Rate Classes'!$C$24:$H$45,6,0)) ->  | F43: =VLOOKUP($B43, '9. Adj Network to Current WS'!$B$25:$R$47, 17,0) ->  | H43: =VLOOKUP('9. Adj Network to Current WS'!$B43, '4. RRR Data'!$B$27:$M$49,11,0) -> 0 | J43: =VLOOKUP('9. Adj Network to Current WS'!$B43, '4. RRR Data'!$B$27:$M$49,12,0) -> 0 | P43: =IF(ISERROR('8. Forecast Wholesale'!$F$113*N43), "", '8. Forecast Wholesale'!$F$113*N43) -> 
B44: =IF('3. Rate Classes'!Q43=1,'3. Rate Classes'!C43, 0) -> 0 | D44: =IF(ISERROR(VLOOKUP($B44, '3. Rate Classes'!$C$24:$H$45,6,0)), "", VLOOKUP($B44, '3. Rate Classes'!$C$24:$H$45,6,0)) ->  | F44: =VLOOKUP($B44, '9. Adj Network to Current WS'!$B$25:$R$47, 17,0) ->  | H44: =VLOOKUP('9. Adj Network to Current WS'!$B44, '4. RRR Data'!$B$27:$M$49,11,0) -> 0 | J44: =VLOOKUP('9. Adj Network to Current WS'!$B44, '4. RRR Data'!$B$27:$M$49,12,0) -> 0 | P44: =IF(ISERROR('8. Forecast Wholesale'!$F$113*N44), "", '8. Forecast Wholesale'!$F$113*N44) -> 
B45: =IF('3. Rate Classes'!Q44=1,'3. Rate Classes'!C44, 0) -> 0 | D45: =IF(ISERROR(VLOOKUP($B45, '3. Rate Classes'!$C$24:$H$45,6,0)), "", VLOOKUP($B45, '3. Rate Classes'!$C$24:$H$45,6,0)) ->  | F45: =VLOOKUP($B45, '9. Adj Network to Current WS'!$B$25:$R$47, 17,0) ->  | H45: =VLOOKUP('9. Adj Network to Current WS'!$B45, '4. RRR Data'!$B$27:$M$49,11,0) -> 0 | J45: =VLOOKUP('9. Adj Network to Current WS'!$B45, '4. RRR Data'!$B$27:$M$49,12,0) -> 0 | P45: =IF(ISERROR('8. Forecast Wholesale'!$F$113*N45), "", '8. Forecast Wholesale'!$F$113*N45) -> 
B46: =IF('3. Rate Classes'!Q45=1,'3. Rate Classes'!C45, 0) -> 0 | D46: =IF(ISERROR(VLOOKUP($B46, '3. Rate Classes'!$C$24:$H$45,6,0)), "", VLOOKUP($B46, '3. Rate Classes'!$C$24:$H$45,6,0)) ->  | F46: =VLOOKUP($B46, '9. Adj Network to Current WS'!$B$25:$R$47, 17,0) ->  | H46: =VLOOKUP('9. Adj Network to Current WS'!$B46, '4. RRR Data'!$B$27:$M$49,11,0) -> 0 | J46: =VLOOKUP('9. Adj Network to Current WS'!$B46, '4. RRR Data'!$B$27:$M$49,12,0) -> 0 | P46: =IF(ISERROR('8. Forecast Wholesale'!$F$113*N46), "", '8. Forecast Wholesale'!$F$113*N46) -> 
L49: =SUM(L25:L46) -> 4239742.755

Sheet 12. Adj Conn. to Forecast WS
B13: The purpose of this sheet is to update the re-aligned RTS Connection Rates to recover forecast wholesale connection costs.
B19: Rate Class
B22: Rate Class | D22: Unit | F22: Adjusted RTSR-Connection | H22: Loss Adjusted Billed kWh | J22: Loss Adjusted Billed kW | L22: Billed Amount | N22: Billed Amount % | P22: Forecast Wholesale Billing | R22: Proposed RTSR Connection
B25: =IF('3. Rate Classes'!Q24=1,'3. Rate Classes'!C24, 0) -> Residential | D25: =IF(ISERROR(VLOOKUP($B25, '3. Rate Classes'!$C$24:$H$45,6,0)), "", VLOOKUP($B25, '3. Rate Classes'!$C$24:$H$45,6,0)) -> kWh | F25: =VLOOKUP($B25, '10. Adj Conn. to Current WS'!$B$25:$R$47, 17,0) -> 0.005251085117 | H25: =VLOOKUP('9. Adj Network to Current WS'!$B25, '4. RRR Data'!$B$27:$M$49,11,0) -> 141136888.9 | J25: =VLOOKUP('9. Adj Network to Current WS'!$B25, '4. RRR Data'!$B$27:$M$49,12,0) -> 0 | L25: =IF(F25="", "", IF(D25="kWh", F25*H25, F25*J25)) -> 741121.8168 | N25: =IF(ISERROR(L25/$L$49), "", L25/$L$49) -> 0.2349520782 | P25: =IF(ISERROR('8. Forecast Wholesale'!$P$117*N25), "", '8. Forecast Wholesale'!$P$117*N25) -> 631609.0736 | R25: =IF(D25="","",IF(D25="kWh",IF(H25<>0,P25/H25,),IF(J25<>0,P25/J25,0))) -> 0.004475152304
B26: =IF('3. Rate Classes'!Q25=1,'3. Rate Classes'!C25, 0) -> Residential - Hensall | D26: =IF(ISERROR(VLOOKUP($B26, '3. Rate Classes'!$C$24:$H$45,6,0)), "", VLOOKUP($B26, '3. Rate Classes'!$C$24:$H$45,6,0)) -> kWh | F26: =VLOOKUP($B26, '10. Adj Conn. to Current WS'!$B$25:$R$47, 17,0) -> 0.005251085117 | H26: =VLOOKUP('9. Adj Network to Current WS'!$B26, '4. RRR Data'!$B$27:$M$49,11,0) -> 3864123.339 | J26: =VLOOKUP('9. Adj Network to Current WS'!$B26, '4. RRR Data'!$B$27:$M$49,12,0) -> 0 | L26: 20290.84055 | N26: 0.006432647168 | P26: =IF(ISERROR('8. Forecast Wholesale'!$P$117*N26), "", '8. Forecast Wholesale'!$P$117*N26) -> 17292.54046 | R26: 0.004475152304
B27: =IF('3. Rate Classes'!Q26=1,'3. Rate Classes'!C26, 0) -> General Service Less Than 50 kW | D27: =IF(ISERROR(VLOOKUP($B27, '3. Rate Classes'!$C$24:$H$45,6,0)), "", VLOOKUP($B27, '3. Rate Classes'!$C$24:$H$45,6,0)) -> kWh | F27: =VLOOKUP($B27, '10. Adj Conn. to Current WS'!$B$25:$R$47, 17,0) -> 0.004839235304 | H27: =VLOOKUP('9. Adj Network to Current WS'!$B27, '4. RRR Data'!$B$27:$M$49,11,0) -> 66047247.97 | J27: =VLOOKUP('9. Adj Network to Current WS'!$B27, '4. RRR Data'!$B$27:$M$49,12,0) -> 0 | L27: 319618.1741 | N27: 0.1013260607 | P27: =IF(ISERROR('8. Forecast Wholesale'!$P$117*N27), "", '8. Forecast Wholesale'!$P$117*N27) -> 272389.416 | R27: 0.004124159967
B28: =IF('3. Rate Classes'!Q27=1,'3. Rate Classes'!C27, 0) -> General Service 50 to 4,999 kW | D28: =IF(ISERROR(VLOOKUP($B28, '3. Rate Classes'!$C$24:$H$45,6,0)), "", VLOOKUP($B28, '3. Rate Classes'!$C$24:$H$45,6,0)) -> kW | F28: =VLOOKUP($B28, '10. Adj Conn. to Current WS'!$B$25:$R$47, 17,0) -> 1.923544552 | H28: =VLOOKUP('9. Adj Network to Current WS'!$B28, '4. RRR Data'!$B$27:$M$49,11,0) -> 50294714.72 | J28: =VLOOKUP('9. Adj Network to Current WS'!$B28, '4. RRR Data'!$B$27:$M$49,12,0) -> 143816.928 | L28: 276638.2683 | N28: 0.08770047592 | P28: =IF(ISERROR('8. Forecast Wholesale'!$P$117*N28), "", '8. Forecast Wholesale'!$P$117*N28) -> 235760.4869 | R28: 1.639309713
B29: =IF('3. Rate Classes'!Q28=1,'3. Rate Classes'!C28, 0) -> General Service 50 to 999 kW - Interval Metered | D29: =IF(ISERROR(VLOOKUP($B29, '3. Rate Classes'!$C$24:$H$45,6,0)), "", VLOOKUP($B29, '3. Rate Classes'!$C$24:$H$45,6,0)) -> kW | F29: =VLOOKUP($B29, '10. Adj Conn. to Current WS'!$B$25:$R$47, 17,0) -> 2.108774005 | H29: =VLOOKUP('9. Adj Network to Current WS'!$B29, '4. RRR Data'!$B$27:$M$49,11,0) -> 311537765.3 | J29: =VLOOKUP('9. Adj Network to Current WS'!$B29, '4. RRR Data'!$B$27:$M$49,12,0) -> 802347.072 | L29: 1691968.649 | N29: 0.5363916447 | P29: =IF(ISERROR('8. Forecast Wholesale'!$P$117*N29), "", '8. Forecast Wholesale'!$P$117*N29) -> 1441952.897 | R29: 1.797168517
B30: =IF('3. Rate Classes'!Q29=1,'3. Rate Classes'!C29, 0) -> Large Use | D30: =IF(ISERROR(VLOOKUP($B30, '3. Rate Classes'!$C$24:$H$45,6,0)), "", VLOOKUP($B30, '3. Rate Classes'!$C$24:$H$45,6,0)) -> kW | F30: =VLOOKUP($B30, '10. Adj Conn. to Current WS'!$B$25:$R$47, 17,0) -> 2.411586581 | H30: =VLOOKUP('9. Adj Network to Current WS'!$B30, '4. RRR Data'!$B$27:$M$49,11,0) -> 22191326 | J30: =VLOOKUP('9. Adj Network to Current WS'!$B30, '4. RRR Data'!$B$27:$M$49,12,0) -> 34422 | L30: 83011.63328 | N30: 0.02631653165 | P30: =IF(ISERROR('8. Forecast Wholesale'!$P$117*N30), "", '8. Forecast Wholesale'!$P$117*N30) -> 70745.32095 | R30: 2.055235633
B31: =IF('3. Rate Classes'!Q30=1,'3. Rate Classes'!C30, 0) -> Unmetered Scattered Load | D31: =IF(ISERROR(VLOOKUP($B31, '3. Rate Classes'!$C$24:$H$45,6,0)), "", VLOOKUP($B31, '3. Rate Classes'!$C$24:$H$45,6,0)) -> kWh | F31: =VLOOKUP($B31, '10. Adj Conn. to Current WS'!$B$25:$R$47, 17,0) -> 0.004839235304 | H31: =VLOOKUP('9. Adj Network to Current WS'!$B31, '4. RRR Data'!$B$27:$M$49,11,0) -> 680201.1397 | J31: =VLOOKUP('9. Adj Network to Current WS'!$B31, '4. RRR Data'!$B$27:$M$49,12,0) -> 0 | L31: 3291.653369 | N31: 0.001043527234 | P31: =IF(ISERROR('8. Forecast Wholesale'!$P$117*N31), "", '8. Forecast Wholesale'!$P$117*N31) -> 2805.25831 | R31: 0.004124159967
B32: =IF('3. Rate Classes'!Q31=1,'3. Rate Classes'!C31, 0) -> Sentinel Lighting | D32: =IF(ISERROR(VLOOKUP($B32, '3. Rate Classes'!$C$24:$H$45,6,0)), "", VLOOKUP($B32, '3. Rate Classes'!$C$24:$H$45,6,0)) -> kW | F32: =VLOOKUP($B32, '10. Adj Conn. to Current WS'!$B$25:$R$47, 17,0) -> 1.518284336 | H32: =VLOOKUP('9. Adj Network to Current WS'!$B32, '4. RRR Data'!$B$27:$M$49,11,0) -> 150156 | J32: =VLOOKUP('9. Adj Network to Current WS'!$B32, '4. RRR Data'!$B$27:$M$49,12,0) -> 356 | L32: 540.5092236 | N32: 0.00017135343 | P32: =IF(ISERROR('8. Forecast Wholesale'!$P$117*N32), "", '8. Forecast Wholesale'!$P$117*N32) -> 460.6402379 | R32: 1.293933253
B33: =IF('3. Rate Classes'!Q32=1,'3. Rate Classes'!C32, 0) -> Street Lighting | D33: =IF(ISERROR(VLOOKUP($B33, '3. Rate Classes'!$C$24:$H$45,6,0)), "", VLOOKUP($B33, '3. Rate Classes'!$C$24:$H$45,6,0)) -> kW | F33: =VLOOKUP($B33, '10. Adj Conn. to Current WS'!$B$25:$R$47, 17,0) -> 1.487189675 | H33: =VLOOKUP('9. Adj Network to Current WS'!$B33, '4. RRR Data'!$B$27:$M$49,11,0) -> 4559343 | J33: =VLOOKUP('9. Adj Network to Current WS'!$B33, '4. RRR Data'!$B$27:$M$49,12,0) -> 12017 | L33: 17871.55833 | N33: 0.005665680963 | P33: =IF(ISERROR('8. Forecast Wholesale'!$P$117*N33), "", '8. Forecast Wholesale'!$P$117*N33) -> 15230.74634 | R33: 1.267433331
B34: =IF('3. Rate Classes'!Q33=1,'3. Rate Classes'!C33, 0) -> 0 | D34: =IF(ISERROR(VLOOKUP($B34, '3. Rate Classes'!$C$24:$H$45,6,0)), "", VLOOKUP($B34, '3. Rate Classes'!$C$24:$H$45,6,0)) ->  | F34: =VLOOKUP($B34, '10. Adj Conn. to Current WS'!$B$25:$R$47, 17,0) ->  | H34: =VLOOKUP('9. Adj Network to Current WS'!$B34, '4. RRR Data'!$B$27:$M$49,11,0) -> 0 | J34: =VLOOKUP('9. Adj Network to Current WS'!$B34, '4. RRR Data'!$B$27:$M$49,12,0) -> 0 | P34: =IF(ISERROR('8. Forecast Wholesale'!$P$117*N34), "", '8. Forecast Wholesale'!$P$117*N34) -> 
B35: =IF('3. Rate Classes'!Q34=1,'3. Rate Classes'!C34, 0) -> 0 | D35: =IF(ISERROR(VLOOKUP($B35, '3. Rate Classes'!$C$24:$H$45,6,0)), "", VLOOKUP($B35, '3. Rate Classes'!$C$24:$H$45,6,0)) ->  | F35: =VLOOKUP($B35, '10. Adj Conn. to Current WS'!$B$25:$R$47, 17,0) ->  | H35: =VLOOKUP('9. Adj Network to Current WS'!$B35, '4. RRR Data'!$B$27:$M$49,11,0) -> 0 | J35: =VLOOKUP('9. Adj Network to Current WS'!$B35, '4. RRR Data'!$B$27:$M$49,12,0) -> 0 | P35: =IF(ISERROR('8. Forecast Wholesale'!$P$117*N35), "", '8. Forecast Wholesale'!$P$117*N35) -> 
B36: =IF('3. Rate Classes'!Q35=1,'3. Rate Classes'!C35, 0) -> 0 | D36: =IF(ISERROR(VLOOKUP($B36, '3. Rate Classes'!$C$24:$H$45,6,0)), "", VLOOKUP($B36, '3. Rate Classes'!$C$24:$H$45,6,0)) ->  | F36: =VLOOKUP($B36, '10. Adj Conn. to Current WS'!$B$25:$R$47, 17,0) ->  | H36: =VLOOKUP('9. Adj Network to Current WS'!$B36, '4. RRR Data'!$B$27:$M$49,11,0) -> 0 | J36: =VLOOKUP('9. Adj Network to Current WS'!$B36, '4. RRR Data'!$B$27:$M$49,12,0) -> 0 | P36: =IF(ISERROR('8. Forecast Wholesale'!$P$117*N36), "", '8. Forecast Wholesale'!$P$117*N36) -> 
B37: =IF('3. Rate Classes'!Q36=1,'3. Rate Classes'!C36, 0) -> 0 | D37: =IF(ISERROR(VLOOKUP($B37, '3. Rate Classes'!$C$24:$H$45,6,0)), "", VLOOKUP($B37, '3. Rate Classes'!$C$24:$H$45,6,0)) ->  | F37: =VLOOKUP($B37, '10. Adj Conn. to Current WS'!$B$25:$R$47, 17,0) ->  | H37: =VLOOKUP('9. Adj Network to Current WS'!$B37, '4. RRR Data'!$B$27:$M$49,11,0) -> 0 | J37: =VLOOKUP('9. Adj Network to Current WS'!$B37, '4. RRR Data'!$B$27:$M$49,12,0) -> 0 | P37: =IF(ISERROR('8. Forecast Wholesale'!$P$117*N37), "", '8. Forecast Wholesale'!$P$117*N37) -> 
B38: =IF('3. Rate Classes'!Q37=1,'3. Rate Classes'!C37, 0) -> 0 | D38: =IF(ISERROR(VLOOKUP($B38, '3. Rate Classes'!$C$24:$H$45,6,0)), "", VLOOKUP($B38, '3. Rate Classes'!$C$24:$H$45,6,0)) ->  | F38: =VLOOKUP($B38, '10. Adj Conn. to Current WS'!$B$25:$R$47, 17,0) ->  | H38: =VLOOKUP('9. Adj Network to Current WS'!$B38, '4. RRR Data'!$B$27:$M$49,11,0) -> 0 | J38: =VLOOKUP('9. Adj Network to Current WS'!$B38, '4. RRR Data'!$B$27:$M$49,12,0) -> 0 | P38: =IF(ISERROR('8. Forecast Wholesale'!$P$117*N38), "", '8. Forecast Wholesale'!$P$117*N38) -> 
B39: =IF('3. Rate Classes'!Q38=1,'3. Rate Classes'!C38, 0) -> 0 | D39: =IF(ISERROR(VLOOKUP($B39, '3. Rate Classes'!$C$24:$H$45,6,0)), "", VLOOKUP($B39, '3. Rate Classes'!$C$24:$H$45,6,0)) ->  | F39: =VLOOKUP($B39, '10. Adj Conn. to Current WS'!$B$25:$R$47, 17,0) ->  | H39: =VLOOKUP('9. Adj Network to Current WS'!$B39, '4. RRR Data'!$B$27:$M$49,11,0) -> 0 | J39: =VLOOKUP('9. Adj Network to Current WS'!$B39, '4. RRR Data'!$B$27:$M$49,12,0) -> 0 | P39: =IF(ISERROR('8. Forecast Wholesale'!$P$117*N39), "", '8. Forecast Wholesale'!$P$117*N39) -> 
B40: =IF('3. Rate Classes'!Q39=1,'3. Rate Classes'!C39, 0) -> 0 | D40: =IF(ISERROR(VLOOKUP($B40, '3. Rate Classes'!$C$24:$H$45,6,0)), "", VLOOKUP($B40, '3. Rate Classes'!$C$24:$H$45,6,0)) ->  | F40: =VLOOKUP($B40, '10. Adj Conn. to Current WS'!$B$25:$R$47, 17,0) ->  | H40: =VLOOKUP('9. Adj Network to Current WS'!$B40, '4. RRR Data'!$B$27:$M$49,11,0) -> 0 | J40: =VLOOKUP('9. Adj Network to Current WS'!$B40, '4. RRR Data'!$B$27:$M$49,12,0) -> 0 | P40: =IF(ISERROR('8. Forecast Wholesale'!$P$117*N40), "", '8. Forecast Wholesale'!$P$117*N40) -> 
B41: =IF('3. Rate Classes'!Q40=1,'3. Rate Classes'!C40, 0) -> 0 | D41: =IF(ISERROR(VLOOKUP($B41, '3. Rate Classes'!$C$24:$H$45,6,0)), "", VLOOKUP($B41, '3. Rate Classes'!$C$24:$H$45,6,0)) ->  | F41: =VLOOKUP($B41, '10. Adj Conn. to Current WS'!$B$25:$R$47, 17,0) ->  | H41: =VLOOKUP('9. Adj Network to Current WS'!$B41, '4. RRR Data'!$B$27:$M$49,11,0) -> 0 | J41: =VLOOKUP('9. Adj Network to Current WS'!$B41, '4. RRR Data'!$B$27:$M$49,12,0) -> 0 | P41: =IF(ISERROR('8. Forecast Wholesale'!$P$117*N41), "", '8. Forecast Wholesale'!$P$117*N41) -> 
B42: =IF('3. Rate Classes'!Q41=1,'3. Rate Classes'!C41, 0) -> 0 | D42: =IF(ISERROR(VLOOKUP($B42, '3. Rate Classes'!$C$24:$H$45,6,0)), "", VLOOKUP($B42, '3. Rate Classes'!$C$24:$H$45,6,0)) ->  | F42: =VLOOKUP($B42, '10. Adj Conn. to Current WS'!$B$25:$R$47, 17,0) ->  | H42: =VLOOKUP('9. Adj Network to Current WS'!$B42, '4. RRR Data'!$B$27:$M$49,11,0) -> 0 | J42: =VLOOKUP('9. Adj Network to Current WS'!$B42, '4. RRR Data'!$B$27:$M$49,12,0) -> 0 | P42: =IF(ISERROR('8. Forecast Wholesale'!$P$117*N42), "", '8. Forecast Wholesale'!$P$117*N42) -> 
B43: =IF('3. Rate Classes'!Q42=1,'3. Rate Classes'!C42, 0) -> 0 | D43: =IF(ISERROR(VLOOKUP($B43, '3. Rate Classes'!$C$24:$H$45,6,0)), "", VLOOKUP($B43, '3. Rate Classes'!$C$24:$H$45,6,0)) ->  | F43: =VLOOKUP($B43, '10. Adj Conn. to Current WS'!$B$25:$R$47, 17,0) ->  | H43: =VLOOKUP('9. Adj Network to Current WS'!$B43, '4. RRR Data'!$B$27:$M$49,11,0) -> 0 | J43: =VLOOKUP('9. Adj Network to Current WS'!$B43, '4. RRR Data'!$B$27:$M$49,12,0) -> 0 | P43: =IF(ISERROR('8. Forecast Wholesale'!$P$117*N43), "", '8. Forecast Wholesale'!$P$117*N43) -> 
B44: =IF('3. Rate Classes'!Q43=1,'3. Rate Classes'!C43, 0) -> 0 | D44: =IF(ISERROR(VLOOKUP($B44, '3. Rate Classes'!$C$24:$H$45,6,0)), "", VLOOKUP($B44, '3. Rate Classes'!$C$24:$H$45,6,0)) ->  | F44: =VLOOKUP($B44, '10. Adj Conn. to Current WS'!$B$25:$R$47, 17,0) ->  | H44: =VLOOKUP('9. Adj Network to Current WS'!$B44, '4. RRR Data'!$B$27:$M$49,11,0) -> 0 | J44: =VLOOKUP('9. Adj Network to Current WS'!$B44, '4. RRR Data'!$B$27:$M$49,12,0) -> 0 | P44: =IF(ISERROR('8. Forecast Wholesale'!$P$117*N44), "", '8. Forecast Wholesale'!$P$117*N44) -> 
B45: =IF('3. Rate Classes'!Q44=1,'3. Rate Classes'!C44, 0) -> 0 | D45: =IF(ISERROR(VLOOKUP($B45, '3. Rate Classes'!$C$24:$H$45,6,0)), "", VLOOKUP($B45, '3. Rate Classes'!$C$24:$H$45,6,0)) ->  | F45: =VLOOKUP($B45, '10. Adj Conn. to Current WS'!$B$25:$R$47, 17,0) ->  | H45: =VLOOKUP('9. Adj Network to Current WS'!$B45, '4. RRR Data'!$B$27:$M$49,11,0) -> 0 | J45: =VLOOKUP('9. Adj Network to Current WS'!$B45, '4. RRR Data'!$B$27:$M$49,12,0) -> 0 | P45: =IF(ISERROR('8. Forecast Wholesale'!$P$117*N45), "", '8. Forecast Wholesale'!$P$117*N45) -> 
B46: =IF('3. Rate Classes'!Q45=1,'3. Rate Classes'!C45, 0) -> 0 | D46: =IF(ISERROR(VLOOKUP($B46, '3. Rate Classes'!$C$24:$H$45,6,0)), "", VLOOKUP($B46, '3. Rate Classes'!$C$24:$H$45,6,0)) ->  | F46: =VLOOKUP($B46, '10. Adj Conn. to Current WS'!$B$25:$R$47, 17,0) ->  | H46: =VLOOKUP('9. Adj Network to Current WS'!$B46, '4. RRR Data'!$B$27:$M$49,11,0) -> 0 | J46: =VLOOKUP('9. Adj Network to Current WS'!$B46, '4. RRR Data'!$B$27:$M$49,12,0) -> 0 | P46: =IF(ISERROR('8. Forecast Wholesale'!$P$117*N46), "", '8. Forecast Wholesale'!$P$117*N46) -> 
L49: =SUM(L25:L46) -> 3154353.103

Sheet 13. Final 2014 RTS Rates
B13: For Cost of Service Applicants, please enter the following Proposed RTS rates into your rates model. For IRM applicants, please enter these rates into the 2013 IRM Rate Generator, Sheet 11 "Proposed Rates", column I. Please note that the rate descriptions for the RTSRs are transfered automatically from Sheet 4 to Sheet 11, Column A.
B23: Rate Class | D23: Unit | F23: Proposed RTSR Network | H23: Proposed RTSR Connection
B26: =IF('3. Rate Classes'!Q24=1,'3. Rate Classes'!C24, 0) -> Residential | D26: =IF(ISERROR(VLOOKUP($B26, '3. Rate Classes'!$C$24:$H$45,6,0)), "", VLOOKUP($B26, '3. Rate Classes'!$C$24:$H$45,6,0)) -> kWh | F26: =VLOOKUP($B26, '11. Adj Network to Forecast WS'!$B$25:$R$48,17,0) -> 0.007314386091 | H26: =VLOOKUP($B26, '12. Adj Conn. to Forecast WS'!$B$25:$R$48,17,0) -> 0.004475152304
B27: =IF('3. Rate Classes'!Q25=1,'3. Rate Classes'!C25, 0) -> Residential - Hensall | D27: =IF(ISERROR(VLOOKUP($B27, '3. Rate Classes'!$C$24:$H$45,6,0)), "", VLOOKUP($B27, '3. Rate Classes'!$C$24:$H$45,6,0)) -> kWh | F27: =VLOOKUP($B27, '11. Adj Network to Forecast WS'!$B$25:$R$48,17,0) -> 0.007314386091 | H27: =VLOOKUP($B27, '12. Adj Conn. to Forecast WS'!$B$25:$R$48,17,0) -> 0.004475152304
B28: =IF('3. Rate Classes'!Q26=1,'3. Rate Classes'!C26, 0) -> General Service Less Than 50 kW | D28: =IF(ISERROR(VLOOKUP($B28, '3. Rate Classes'!$C$24:$H$45,6,0)), "", VLOOKUP($B28, '3. Rate Classes'!$C$24:$H$45,6,0)) -> kWh | F28: =VLOOKUP($B28, '11. Adj Network to Forecast WS'!$B$25:$R$48,17,0) -> 0.006298499134 | H28: =VLOOKUP($B28, '12. Adj Conn. to Forecast WS'!$B$25:$R$48,17,0) -> 0.004124159967
B29: =IF('3. Rate Classes'!Q27=1,'3. Rate Classes'!C27, 0) -> General Service 50 to 4,999 kW | D29: =IF(ISERROR(VLOOKUP($B29, '3. Rate Classes'!$C$24:$H$45,6,0)), "", VLOOKUP($B29, '3. Rate Classes'!$C$24:$H$45,6,0)) -> kW | F29: =VLOOKUP($B29, '11. Adj Network to Forecast WS'!$B$25:$R$48,17,0) -> 2.655122151 | H29: =VLOOKUP($B29, '12. Adj Conn. to Forecast WS'!$B$25:$R$48,17,0) -> 1.639309713
B30: =IF('3. Rate Classes'!Q28=1,'3. Rate Classes'!C28, 0) -> General Service 50 to 999 kW - Interval Metered | D30: =IF(ISERROR(VLOOKUP($B30, '3. Rate Classes'!$C$24:$H$45,6,0)), "", VLOOKUP($B30, '3. Rate Classes'!$C$24:$H$45,6,0)) -> kW | F30: =VLOOKUP($B30, '11. Adj Network to Forecast WS'!$B$25:$R$48,17,0) -> 2.820203782 | H30: =VLOOKUP($B30, '12. Adj Conn. to Forecast WS'!$B$25:$R$48,17,0) -> 1.797168517
B31: =IF('3. Rate Classes'!Q29=1,'3. Rate Classes'!C29, 0) -> Large Use | D31: =IF(ISERROR(VLOOKUP($B31, '3. Rate Classes'!$C$24:$H$45,6,0)), "", VLOOKUP($B31, '3. Rate Classes'!$C$24:$H$45,6,0)) -> kW | F31: =VLOOKUP($B31, '11. Adj Network to Forecast WS'!$B$25:$R$48,17,0) -> 3.122633329 | H31: =VLOOKUP($B31, '12. Adj Conn. to Forecast WS'!$B$25:$R$48,17,0) -> 2.055235633
B32: =IF('3. Rate Classes'!Q30=1,'3. Rate Classes'!C30, 0) -> Unmetered Scattered Load | D32: =IF(ISERROR(VLOOKUP($B32, '3. Rate Classes'!$C$24:$H$45,6,0)), "", VLOOKUP($B32, '3. Rate Classes'!$C$24:$H$45,6,0)) -> kWh | F32: =VLOOKUP($B32, '11. Adj Network to Forecast WS'!$B$25:$R$48,17,0) -> 0.006298499134 | H32: =VLOOKUP($B32, '12. Adj Conn. to Forecast WS'!$B$25:$R$48,17,0) -> 0.004124159967
B33: =IF('3. Rate Classes'!Q31=1,'3. Rate Classes'!C31, 0) -> Sentinel Lighting | D33: =IF(ISERROR(VLOOKUP($B33, '3. Rate Classes'!$C$24:$H$45,6,0)), "", VLOOKUP($B33, '3. Rate Classes'!$C$24:$H$45,6,0)) -> kW | F33: =VLOOKUP($B33, '11. Adj Network to Forecast WS'!$B$25:$R$48,17,0) -> 2.012675239 | H33: =VLOOKUP($B33, '12. Adj Conn. to Forecast WS'!$B$25:$R$48,17,0) -> 1.293933253
B34: =IF('3. Rate Classes'!Q32=1,'3. Rate Classes'!C32, 0) -> Street Lighting | D34: =IF(ISERROR(VLOOKUP($B34, '3. Rate Classes'!$C$24:$H$45,6,0)), "", VLOOKUP($B34, '3. Rate Classes'!$C$24:$H$45,6,0)) -> kW | F34: =VLOOKUP($B34, '11. Adj Network to Forecast WS'!$B$25:$R$48,17,0) -> 2.00251637 | H34: =VLOOKUP($B34, '12. Adj Conn. to Forecast WS'!$B$25:$R$48,17,0) -> 1.267433331
B35: =IF('3. Rate Classes'!Q33=1,'3. Rate Classes'!C33, 0) -> 0 | D35: =IF(ISERROR(VLOOKUP($B35, '3. Rate Classes'!$C$24:$H$45,6,0)), "", VLOOKUP($B35, '3. Rate Classes'!$C$24:$H$45,6,0)) ->  | F35: =VLOOKUP($B35, '11. Adj Network to Forecast WS'!$B$25:$R$48,17,0) ->  | H35: =VLOOKUP($B35, '12. Adj Conn. to Forecast WS'!$B$25:$R$48,17,0) -> 
B36: =IF('3. Rate Classes'!Q34=1,'3. Rate Classes'!C34, 0) -> 0 | D36: =IF(ISERROR(VLOOKUP($B36, '3. Rate Classes'!$C$24:$H$45,6,0)), "", VLOOKUP($B36, '3. Rate Classes'!$C$24:$H$45,6,0)) ->  | F36: =VLOOKUP($B36, '11. Adj Network to Forecast WS'!$B$25:$R$48,17,0) ->  | H36: =VLOOKUP($B36, '12. Adj Conn. to Forecast WS'!$B$25:$R$48,17,0) -> 
B37: =IF('3. Rate Classes'!Q35=1,'3. Rate Classes'!C35, 0) -> 0 | D37: =IF(ISERROR(VLOOKUP($B37, '3. Rate Classes'!$C$24:$H$45,6,0)), "", VLOOKUP($B37, '3. Rate Classes'!$C$24:$H$45,6,0)) ->  | F37: =VLOOKUP($B37, '11. Adj Network to Forecast WS'!$B$25:$R$48,17,0) ->  | H37: =VLOOKUP($B37, '12. Adj Conn. to Forecast WS'!$B$25:$R$48,17,0) -> 
B38: =IF('3. Rate Classes'!Q36=1,'3. Rate Classes'!C36, 0) -> 0 | D38: =IF(ISERROR(VLOOKUP($B38, '3. Rate Classes'!$C$24:$H$45,6,0)), "", VLOOKUP($B38, '3. Rate Classes'!$C$24:$H$45,6,0)) ->  | F38: =VLOOKUP($B38, '11. Adj Network to Forecast WS'!$B$25:$R$48,17,0) ->  | H38: =VLOOKUP($B38, '12. Adj Conn. to Forecast WS'!$B$25:$R$48,17,0) -> 
B39: =IF('3. Rate Classes'!Q37=1,'3. Rate Classes'!C37, 0) -> 0 | D39: =IF(ISERROR(VLOOKUP($B39, '3. Rate Classes'!$C$24:$H$45,6,0)), "", VLOOKUP($B39, '3. Rate Classes'!$C$24:$H$45,6,0)) ->  | F39: =VLOOKUP($B39, '11. Adj Network to Forecast WS'!$B$25:$R$48,17,0) ->  | H39: =VLOOKUP($B39, '12. Adj Conn. to Forecast WS'!$B$25:$R$48,17,0) -> 
B40: =IF('3. Rate Classes'!Q38=1,'3. Rate Classes'!C38, 0) -> 0 | D40: =IF(ISERROR(VLOOKUP($B40, '3. Rate Classes'!$C$24:$H$45,6,0)), "", VLOOKUP($B40, '3. Rate Classes'!$C$24:$H$45,6,0)) ->  | F40: =VLOOKUP($B40, '11. Adj Network to Forecast WS'!$B$25:$R$48,17,0) ->  | H40: =VLOOKUP($B40, '12. Adj Conn. to Forecast WS'!$B$25:$R$48,17,0) -> 
B41: =IF('3. Rate Classes'!Q39=1,'3. Rate Classes'!C39, 0) -> 0 | D41: =IF(ISERROR(VLOOKUP($B41, '3. Rate Classes'!$C$24:$H$45,6,0)), "", VLOOKUP($B41, '3. Rate Classes'!$C$24:$H$45,6,0)) ->  | F41: =VLOOKUP($B41, '11. Adj Network to Forecast WS'!$B$25:$R$48,17,0) ->  | H41: =VLOOKUP($B41, '12. Adj Conn. to Forecast WS'!$B$25:$R$48,17,0) -> 
B42: =IF('3. Rate Classes'!Q40=1,'3. Rate Classes'!C40, 0) -> 0 | D42: =IF(ISERROR(VLOOKUP($B42, '3. Rate Classes'!$C$24:$H$45,6,0)), "", VLOOKUP($B42, '3. Rate Classes'!$C$24:$H$45,6,0)) ->  | F42: =VLOOKUP($B42, '11. Adj Network to Forecast WS'!$B$25:$R$48,17,0) ->  | H42: =VLOOKUP($B42, '12. Adj Conn. to Forecast WS'!$B$25:$R$48,17,0) -> 
B43: =IF('3. Rate Classes'!Q41=1,'3. Rate Classes'!C41, 0) -> 0 | D43: =IF(ISERROR(VLOOKUP($B43, '3. Rate Classes'!$C$24:$H$45,6,0)), "", VLOOKUP($B43, '3. Rate Classes'!$C$24:$H$45,6,0)) ->  | F43: =VLOOKUP($B43, '11. Adj Network to Forecast WS'!$B$25:$R$48,17,0) ->  | H43: =VLOOKUP($B43, '12. Adj Conn. to Forecast WS'!$B$25:$R$48,17,0) -> 
B44: =IF('3. Rate Classes'!Q42=1,'3. Rate Classes'!C42, 0) -> 0 | D44: =IF(ISERROR(VLOOKUP($B44, '3. Rate Classes'!$C$24:$H$45,6,0)), "", VLOOKUP($B44, '3. Rate Classes'!$C$24:$H$45,6,0)) ->  | F44: =VLOOKUP($B44, '11. Adj Network to Forecast WS'!$B$25:$R$48,17,0) ->  | H44: =VLOOKUP($B44, '12. Adj Conn. to Forecast WS'!$B$25:$R$48,17,0) -> 
B45: =IF('3. Rate Classes'!Q43=1,'3. Rate Classes'!C43, 0) -> 0 | D45: =IF(ISERROR(VLOOKUP($B45, '3. Rate Classes'!$C$24:$H$45,6,0)), "", VLOOKUP($B45, '3. Rate Classes'!$C$24:$H$45,6,0)) ->  | F45: =VLOOKUP($B45, '11. Adj Network to Forecast WS'!$B$25:$R$48,17,0) ->  | H45: =VLOOKUP($B45, '12. Adj Conn. to Forecast WS'!$B$25:$R$48,17,0) -> 
B46: =IF('3. Rate Classes'!Q44=1,'3. Rate Classes'!C44, 0) -> 0 | D46: =IF(ISERROR(VLOOKUP($B46, '3. Rate Classes'!$C$24:$H$45,6,0)), "", VLOOKUP($B46, '3. Rate Classes'!$C$24:$H$45,6,0)) ->  | F46: =VLOOKUP($B46, '11. Adj Network to Forecast WS'!$B$25:$R$48,17,0) ->  | H46: =VLOOKUP($B46, '12. Adj Conn. to Forecast WS'!$B$25:$R$48,17,0) -> 
B47: =IF('3. Rate Classes'!Q45=1,'3. Rate Classes'!C45, 0) -> 0 | D47: =IF(ISERROR(VLOOKUP($B47, '3. Rate Classes'!$C$24:$H$45,6,0)), "", VLOOKUP($B47, '3. Rate Classes'!$C$24:$H$45,6,0)) ->  | F47: =VLOOKUP($B47, '11. Adj Network to Forecast WS'!$B$25:$R$48,17,0) ->  | H47: =VLOOKUP($B47, '12. Adj Conn. to Forecast WS'!$B$25:$R$48,17,0) -> 

Sheet hidden1 (hidden)
A1: =IF('3. Rate Classes'!Q24=1, '3. Rate Classes'!C24, "") -> Residential | B1: 1
A2: =IF('3. Rate Classes'!Q25=1, '3. Rate Classes'!C25, "") -> Residential - Hensall | B2: 2
A3: =IF('3. Rate Classes'!Q26=1, '3. Rate Classes'!C26, "") -> General Service Less Than 50 kW | B3: 3
A4: =IF('3. Rate Classes'!Q27=1, '3. Rate Classes'!C27, "") -> General Service 50 to 4,999 kW | B4: 4
A5: =IF('3. Rate Classes'!Q28=1, '3. Rate Classes'!C28, "") -> General Service 50 to 999 kW - Interval Metered | B5: 5
A6: =IF('3. Rate Classes'!Q29=1, '3. Rate Classes'!C29, "") -> Large Use | B6: 6
A7: =IF('3. Rate Classes'!Q30=1, '3. Rate Classes'!C30, "") -> Unmetered Scattered Load | B7: 7
A8: =IF('3. Rate Classes'!Q31=1, '3. Rate Classes'!C31, "") -> Sentinel Lighting | B8: 8
A9: =IF('3. Rate Classes'!Q32=1, '3. Rate Classes'!C32, "") -> Street Lighting | B9: 9
A10: =IF('3. Rate Classes'!Q33=1, '3. Rate Classes'!C33, "") ->  | B10: 10
A11: =IF('3. Rate Classes'!Q34=1, '3. Rate Classes'!C34, "") ->  | B11: 11
A12: =IF('3. Rate Classes'!Q35=1, '3. Rate Classes'!C35, "") ->  | B12: 12
A13: =IF('3. Rate Classes'!Q36=1, '3. Rate Classes'!C36, "") ->  | B13: 13
A14: =IF('3. Rate Classes'!Q37=1, '3. Rate Classes'!C37, "") ->  | B14: 14
A15: =IF('3. Rate Classes'!Q38=1, '3. Rate Classes'!C38, "") ->  | B15: 15
A16: =IF('3. Rate Classes'!Q39=1, '3. Rate Classes'!C39, "") ->  | B16: 16
A17: =IF('3. Rate Classes'!Q40=1, '3. Rate Classes'!C40, "") ->  | B17: 17
A18: =IF('3. Rate Classes'!Q41=1, '3. Rate Classes'!C41, "") ->  | B18: 18
A19: =IF('3. Rate Classes'!Q42=1, '3. Rate Classes'!C42, "") ->  | B19: 19
A20: =IF('3. Rate Classes'!Q43=1, '3. Rate Classes'!C43, "") ->  | B20: 20
A21: =IF('3. Rate Classes'!Q44=1, '3. Rate Classes'!C44, "") ->  | B21: 21
A22: =IF('3. Rate Classes'!Q45=1, '3. Rate Classes'!C45, "") ->  | B22: 22
